Directorate,Department,Expenditure Type,Ref.Doc.1,Vendor Name,Expenditure Amount (exc VAT),Payment Date
Assurance,Assurance,Postage,60112618,ROYAL MAIL GROUP LIMITED,0.48,03/09/2018
Assurance,Assurance,Other Services,60112626,ROYAL MAIL GROUP LIMITED,"1,726.55",03/09/2018
Assurance,Assurance,Subscriptions,60112491,ASSOCIATION OF ELECTORAL ADMINISTRA,47.50,04/09/2018
Assurance,Assurance,Transport Hire Charges,60112538,MOTT MACDONALD LTD/CAMBRIDGE EDUCATION,84.70,03/09/2018
Assurance,Assurance,Rents,60112779,RAF MUSEUM ENTERPRISES LTD,150.00,07/09/2018
Assurance,Assurance,Rents,60113454,CROWN MORAN HOTEL,312.50,20/09/2018
Assurance,Assurance,Training,60113017,LLG LEGAL TRAINING,215.00,11/09/2018
Assurance,Assurance,Training,60113037,LLG LEGAL TRAINING,215.00,11/09/2018
Assurance,Assurance,Professional Services,60113928,REDACTED - PERSONAL DATA,400.00,27/09/2018
Assurance,Assurance,Other Indirect Employee Expens,80019793,LONDON MAYORS' ASSOCIATION,25.00,20/09/2018
Assurance,Assurance,Professional Services,60113921,REDACTED - PERSONAL DATA,375.00,27/09/2018
Assurance,Assurance,Other Indirect Employee Expens,80019527,REDACTED - PERSONAL DATA,200.00,07/09/2018
Assurance,Assurance,Other Indirect Employee Expens,80019571,REDACTED - PERSONAL DATA,312.75,10/09/2018
Assurance,Assurance,Other Indirect Employee Expens,80019804,REDACTED - PERSONAL DATA,30.64,19/09/2018
Assurance,Assurance,Training,60112706,CIPFA BUSINESS LIMITED,175.00,05/09/2018
Assurance,Assurance,Professional Services,60113911,REDACTED - PERSONAL DATA,"1,350.00",27/09/2018
Assurance,Assurance,Professional Services,60113936,REDACTED - PERSONAL DATA,350.00,27/09/2018
Assurance,Assurance,Equipment and Materials Purcha,60111132,PRIME PRODUCTION LTD,45.00,10/09/2018
Assurance,Assurance,Equipment and Materials Purcha,60111180,PRIME PRODUCTION LTD,69.50,10/09/2018
Assurance,Assurance,Translation Exp / Interpret,60112748,PRIME PRODUCTION LTD,84.50,05/09/2018
Assurance,Assurance,Training,60113268,HERTFORDSHIRE COUNTY COUNCIL,700.00,21/09/2018
Balance Sheet,Balance Sheet,Season ticket loans,80019997,REDACTED - PERSONAL DATA,"1,960.00",28/09/2018
Balance Sheet,Balance Sheet,Season ticket loans,80019676,REDACTED - PERSONAL DATA,"1,960.00",14/09/2018
Central Expenses,Central Expenses,Other Establishments - Third P,60111791,LONDON COUNCILS,"100,517.00",06/09/2018
Central Expenses,Central Expenses,Other Establishments - Third P,EBX0244798,LEE VALLEY REGIONAL PARK AUTH.,"28,597.64",13/09/2018
Central Expenses,Central Expenses,Other Establishments - Third P,EBX0244331,GREATER LONDON AUTHORITY,"3,396,343.00",11/09/2018
Central Expenses,Central Expenses,Other Establishments - Third P,EBX0243725,GREATER LONDON AUTHORITY,"4,363,157.80",05/09/2018
Central Expenses,Central Expenses,Audit Fee,60112263,BDO LLP,"65,460.00",24/09/2018
Central Expenses,Central Expenses,Audit Fee,60112284,BDO LLP,"8,085.00",24/09/2018
Central Expenses,Central Expenses,Insurance Claims,60112532,GRISTWOOD & TOM LTD,69.00,05/09/2018
Central Expenses,Central Expenses,Insurance Claims,60112537,GRISTWOOD & TOM LTD,104.00,05/09/2018
Central Expenses,Central Expenses,Insurance Claims,60112539,GRISTWOOD & TOM LTD,119.00,05/09/2018
Central Expenses,Central Expenses,Insurance Claims,60112918,JOHNSON AUSTIN PARTNERSHIP LLP,375.00,18/09/2018
Central Expenses,Central Expenses,Insurance Claims,60113295,JOHNSON AUSTIN PARTNERSHIP LLP,770.00,18/09/2018
Central Expenses,Central Expenses,Insurance Claims,60113300,JOHNSON AUSTIN PARTNERSHIP LLP,"1,000.00",18/09/2018
Central Expenses,Central Expenses,Insurance Claims,60113303,JOHNSON AUSTIN PARTNERSHIP LLP,"1,000.00",18/09/2018
Central Expenses,Central Expenses,Insurance Claims,60113319,JOHNSON AUSTIN PARTNERSHIP LLP,"1,000.00",18/09/2018
Central Expenses,Central Expenses,Insurance Claims,80019952,IRWIN MITCHELL LLP,"21,500.00",25/09/2018
Central Expenses,Central Expenses,Insurance Claims,60112282,WEIGHTMANS LLP,"1,075.00",18/09/2018
Central Expenses,Central Expenses,Insurance Claims,60112604,WEIGHTMANS LLP,828.00,05/09/2018
Central Expenses,Central Expenses,Insurance Claims,60113940,WEIGHTMANS LLP,"1,000.00",27/09/2018
Central Expenses,Central Expenses,Insurance Claims,60113611,BROWNE JACOBSON SOLS.,"1,046.00",26/09/2018
Central Expenses,Central Expenses,Insurance Claims,80019867,BROWNE JACOBSON SOLS.,"7,140.00",24/09/2018
Central Expenses,Central Expenses,Insurance Claims,80019511,CCL VEHICLE RENTALS LTD,782.11,05/09/2018
Central Expenses,Central Expenses,Insurance Claims,80019821,SIMPSON MILLAR LLP,"12,853.00",21/09/2018
Central Expenses,Central Expenses,Insurance Claims,80019602,DWP COMPENSATION RECOVERY UNIT,637.00,11/09/2018
Central Expenses,Central Expenses,Insurance Claims,80019640,DWP COMPENSATION RECOVERY UNIT,688.00,11/09/2018
Central Expenses,Central Expenses,Insurance Claims,80019691,DWP COMPENSATION RECOVERY UNIT,816.00,17/09/2018
Central Expenses,Central Expenses,Insurance Claims,80019853,DWP COMPENSATION RECOVERY UNIT,637.00,21/09/2018
Central Expenses,Central Expenses,Insurance Claims,80019841,SUPREME MEDICAL CENTRE,50.00,21/09/2018
Central Expenses,Central Expenses,Insurance Claims,80019890,CHURCHILL MOTOR CLAIMS,"5,914.62",25/09/2018
Central Expenses,Central Expenses,Insurance Claims,80019476,REDACTED - PERSONAL DATA,81.60,04/09/2018
Central Expenses,Central Expenses,Insurance Claims,80019510,REDACTED - PERSONAL DATA,136.00,05/09/2018
Central Expenses,Central Expenses,Insurance Claims,80019512,REDACTED - PERSONAL DATA,120.00,05/09/2018
Central Expenses,Central Expenses,Insurance Claims,80019662,REDACTED - PERSONAL DATA,115.00,11/09/2018
Central Expenses,Central Expenses,Insurance Claims,80019690,PJW LEGAL,"18,330.00",17/09/2018
Central Expenses,Central Expenses,Insurance Claims,80019852,REDACTED - PERSONAL DATA,161.02,21/09/2018
Central Expenses,Central Expenses,Insurance Claims,80020007,REDACTED - PERSONAL DATA,175.00,28/09/2018
Central Expenses,Central Expenses,Insurance Claims,80019480,REDACTED - PERSONAL DATA,646.03,03/09/2018
Central Expenses,Central Expenses,Insurance Claims,80019507,REDACTED - PERSONAL DATA,"1,250.00",05/09/2018
Central Expenses,Central Expenses,Insurance Claims,80019513,REDACTED - PERSONAL DATA,344.99,05/09/2018
Central Expenses,Central Expenses,Insurance Claims,80019639,REDACTED - PERSONAL DATA,"6,500.00",11/09/2018
Central Expenses,Central Expenses,Insurance Claims,80019714,REDACTED - PERSONAL DATA,777.60,17/09/2018
Central Expenses,Central Expenses,Insurance Claims,80019715,REDACTED - PERSONAL DATA,320.00,17/09/2018
Central Expenses,Central Expenses,Insurance Claims,80019716,REDACTED - PERSONAL DATA,"1,500.00",17/09/2018
Central Expenses,Central Expenses,Insurance Claims,80019782,REDACTED - PERSONAL DATA,216.69,19/09/2018
Central Expenses,Central Expenses,Insurance Claims,80019794,REDACTED - PERSONAL DATA,50.00,19/09/2018
Central Expenses,Central Expenses,Insurance Claims,80019816,REDACTED - PERSONAL DATA,132.00,19/09/2018
Central Expenses,Central Expenses,Insurance Claims,80019854,REDACTED - PERSONAL DATA,"1,116.00",21/09/2018
Central Expenses,Central Expenses,Insurance Claims,80019872,REDACTED - PERSONAL DATA,78.00,25/09/2018
Central Expenses,Central Expenses,Insurance Claims,80019889,REDACTED - PERSONAL DATA,252.01,25/09/2018
Commercial,Customer Support Group,Building Repairs & Maintenance,60112559,OAKRAY LIMITED,273.38,03/09/2018
Commercial,Customer Support Group,Building Repairs & Maintenance,60113768,OAKRAY LIMITED,"1,218.38",26/09/2018
Commercial,Customer Support Group,Building Repairs & Maintenance,60112645,OAKRAY LIMITED,617.74,04/09/2018
Commercial,Customer Support Group,Building Repairs & Maintenance,60113165,AJS LTD,391.88,13/09/2018
Commercial,Customer Support Group,Building Repairs & Maintenance,60099373,OAKRAY LIMITED,80.00,18/09/2018
Commercial,Customer Support Group,Building Repairs & Maintenance,60099440,OAKRAY LIMITED,681.11,20/09/2018
Commercial,Customer Support Group,Building Repairs & Maintenance,60112082,OAKRAY LIMITED,128.00,27/09/2018
Commercial,Customer Support Group,Equipment and Materials Purcha,60112783,H.C. SLINGSBY PLC.,149.00,27/09/2018
Commercial,Customer Support Group,Electricity,60112760,KENT COUNTY COUNCIL (KCS),"4,896.80",05/09/2018
Commercial,Customer Support Group,Gas,60113389,KENT COUNTY COUNCIL (KCS),"1,680.88",26/09/2018
Commercial,Customer Support Group,Gas,60113417,KENT COUNTY COUNCIL (KCS),"1,152.60",26/09/2018
Commercial,Customer Support Group,Gas,60113427,KENT COUNTY COUNCIL (KCS),"1,147.43",26/09/2018
Commercial,Customer Support Group,Cleaning and domestic material,60113059,HERTFORDSHIRE SUPPLIES   COUNTY CO,"1,711.50",12/09/2018
Commercial,Customer Support Group,Cleaning and domestic material,60113062,HERTFORDSHIRE SUPPLIES   COUNTY CO,147.08,12/09/2018
Commercial,Customer Support Group,Furniture-Purchase-Repair,60106505,SCREWFIX DIRECT LTD,134.70,03/09/2018
Commercial,Customer Support Group,Furniture-Purchase-Repair,60113724,SCREWFIX DIRECT LTD,56.60,28/09/2018
Commercial,Customer Support Group,Rubbish Collection,60113217,PEARCE RECYCLING CO. LTD,183.50,27/09/2018
Commercial,Customer Support Group,Building Repairs & Maintenance,60112555,RGE SERVICES,97.34,03/09/2018
Commercial,Customer Support Group,Building Repairs & Maintenance,60112578,RGE SERVICES,180.10,03/09/2018
Commercial,Customer Support Group,Other Services,60112932,LEASING PROGRAMMES LIMITED,"1,235.00",27/09/2018
Commercial,Customer Support Group,Other Services,10014229,BLUE 9 SECURITY LIMITED,"24,145.16",20/09/2018
Commercial,Customer Support Group,Building Repairs & Maintenance,60099060,S W BRUCE & CO LTD,85.58,13/09/2018
Commercial,Customer Support Group,Building Repairs & Maintenance,60110972,S W BRUCE & CO LTD,120.38,10/09/2018
Commercial,Customer Support Group,Rents,80019790,MONTAGU EVANS LLP,"223,500.00",19/09/2018
Commercial,Customer Support Group,Building Repairs & Maintenance,60112637,OAKRAY LIMITED,463.05,04/09/2018
Commercial,Customer Support Group,Equipment and Materials Purcha,60112852,DAY PLANT HIRE CO LIMITED,198.00,10/09/2018
Commercial,Customer Support Group,Other Services,60112899,BLUE 9 SECURITY LIMITED,"5,823.77",12/09/2018
Commercial,Customer Support Group,Books-CDs-Audio-Video,60110895,SM ELECTRICAL SERVICES,250.00,04/09/2018
Commercial,Customer Support Group,Building Repairs & Maintenance,60099424,OAKRAY LIMITED,162.00,06/09/2018
Commercial,Customer Support Group,Electricity,60112432,KENT COUNTY COUNCIL (KCS),"1,433.24",26/09/2018
Commercial,Customer Support Group,Building Repairs & Maintenance,60099395,OAKRAY LIMITED,96.00,27/09/2018
Commercial,Customer Support Group,Building Repairs & Maintenance,60108680,OAKRAY LIMITED,200.10,21/09/2018
Commercial,Customer Support Group,Building Repairs & Maintenance,60108710,OAKRAY LIMITED,795.23,21/09/2018
Commercial,Customer Support Group,Equipment and Materials Purcha,60112772,H.C. SLINGSBY PLC.,149.00,27/09/2018
Commercial,Customer Support Group,Furniture-Purchase-Repair,60113833,SCREWFIX DIRECT LTD,74.96,28/09/2018
Commercial,Customer Support Group,Insurance-Premises,60113535,MIDDLESEX UNIVERSITY,"27,406.86",24/09/2018
Commercial,Customer Support Group,Other Services,60112911,BLUE 9 SECURITY LIMITED,"11,584.08",12/09/2018
Commercial,Customer Support Group,Rubbish Collection,60112634,PREMIER SHREDDING,50.00,03/09/2018
Commercial,Customer Support Group,Building Repairs & Maintenance,60112552,NORTH LONDON CATERING EQUIPMENT,174.00,03/09/2018
Commercial,Customer Support Group,Building Repairs & Maintenance,60106490,OAKRAY LIMITED,144.00,18/09/2018
Commercial,Customer Support Group,Building Repairs & Maintenance,60108019,OAKRAY LIMITED,350.00,20/09/2018
Commercial,Customer Support Group,Building Repairs & Maintenance,60112958,OAKRAY LIMITED,643.28,27/09/2018
Commercial,Customer Support Group,Training,60112819,SKILLS TRAINING CENTRE LTD,510.00,06/09/2018
Commercial,Customer Support Group,Other Services,60113006,BLUE 9 SECURITY LIMITED,13.43,13/09/2018
Commercial,Customer Support Group,Building Repairs & Maintenance,60110916,S W BRUCE & CO LTD,431.25,10/09/2018
Commercial,Customer Support Group,Equipment and Materials Purcha,60111542,NORTH LONDON CATERING EQUIPMENT,"1,595.00",19/09/2018
Commercial,Customer Support Group,CSG Services Contract Payment,60113471,CAPITA BUSINESS SERVICES LTD,"6,368,693.00",24/09/2018
Commercial,Customer Support Group,CSG Services Contract Payment,60108655,CAPITA BUSINESS SERVICES LTD,961.05,04/09/2018
Commercial,Customer Support Group,CSG Services Contract Payment,60108698,CAPITA BUSINESS SERVICES LTD,"2,243.24",04/09/2018
Commercial,Customer Support Group,CSG Services Contract Payment,60111705,CAPITA BUSINESS SERVICES LTD,"595,514.00",21/09/2018
Commercial,Customer Support Group,CSG Services Contract Payment,60113447,CAPITA BUSINESS SERVICES LTD,"15,225.00",27/09/2018
Commercial,Customer Support Group,CSG Services Contract Payment,60113481,CAPITA BUSINESS SERVICES LTD,"985,927.00",24/09/2018
Commercial,Customer Support Group,Building Repairs & Maintenance,60089661,OAKRAY LIMITED,48.00,14/09/2018
Commercial,Customer Support Group,Building Repairs & Maintenance,60095620,OAKRAY LIMITED,48.00,14/09/2018
Commercial,Customer Support Group,Building Repairs & Maintenance,60099349,OAKRAY LIMITED,189.00,27/09/2018
Commercial,Customer Support Group,Building Repairs & Maintenance,60099352,OAKRAY LIMITED,128.00,21/09/2018
Commercial,Customer Support Group,Building Repairs & Maintenance,60099353,OAKRAY LIMITED,548.10,14/09/2018
Commercial,Customer Support Group,Building Repairs & Maintenance,60099357,OAKRAY LIMITED,498.83,21/09/2018
Commercial,Customer Support Group,Building Repairs & Maintenance,60099360,OAKRAY LIMITED,64.00,21/09/2018
Commercial,Customer Support Group,Building Repairs & Maintenance,60099372,OAKRAY LIMITED,96.00,21/09/2018
Commercial,Customer Support Group,Building Repairs & Maintenance,60099374,OAKRAY LIMITED,108.00,06/09/2018
Commercial,Customer Support Group,Building Repairs & Maintenance,60099379,OAKRAY LIMITED,160.00,14/09/2018
Commercial,Customer Support Group,Building Repairs & Maintenance,60099392,OAKRAY LIMITED,96.00,27/09/2018
Commercial,Customer Support Group,Building Repairs & Maintenance,60099399,OAKRAY LIMITED,96.00,06/09/2018
Commercial,Customer Support Group,Building Repairs & Maintenance,60099405,OAKRAY LIMITED,96.00,06/09/2018
Commercial,Customer Support Group,Building Repairs & Maintenance,60099426,OAKRAY LIMITED,140.94,14/09/2018
Commercial,Customer Support Group,Building Repairs & Maintenance,60099438,OAKRAY LIMITED,96.00,06/09/2018
Commercial,Customer Support Group,Building Repairs & Maintenance,60099439,OAKRAY LIMITED,112.00,27/09/2018
Commercial,Customer Support Group,Building Repairs & Maintenance,60099446,OAKRAY LIMITED,248.75,14/09/2018
Commercial,Customer Support Group,Building Repairs & Maintenance,60099447,OAKRAY LIMITED,135.00,27/09/2018
Commercial,Customer Support Group,Building Repairs & Maintenance,60099451,OAKRAY LIMITED,80.00,21/09/2018
Commercial,Customer Support Group,Building Repairs & Maintenance,60099452,OAKRAY LIMITED,64.00,27/09/2018
Commercial,Customer Support Group,Building Repairs & Maintenance,60099457,OAKRAY LIMITED,96.00,06/09/2018
Commercial,Customer Support Group,Building Repairs & Maintenance,60099459,OAKRAY LIMITED,96.00,06/09/2018
Commercial,Customer Support Group,Building Repairs & Maintenance,60099465,OAKRAY LIMITED,80.00,06/09/2018
Commercial,Customer Support Group,Building Repairs & Maintenance,60099472,OAKRAY LIMITED,96.00,06/09/2018
Commercial,Customer Support Group,Building Repairs & Maintenance,60099480,OAKRAY LIMITED,313.20,14/09/2018
Commercial,Customer Support Group,Building Repairs & Maintenance,60102291,OAKRAY LIMITED,437.19,18/09/2018
Commercial,Customer Support Group,Building Repairs & Maintenance,60102295,OAKRAY LIMITED,520.83,17/09/2018
Commercial,Customer Support Group,Building Repairs & Maintenance,60102315,OAKRAY LIMITED,270.00,14/09/2018
Commercial,Customer Support Group,Building Repairs & Maintenance,60102357,OAKRAY LIMITED,235.82,17/09/2018
Commercial,Customer Support Group,Building Repairs & Maintenance,60102367,OAKRAY LIMITED,531.49,18/09/2018
Commercial,Customer Support Group,Building Repairs & Maintenance,60102370,OAKRAY LIMITED,558.38,18/09/2018
Commercial,Customer Support Group,Building Repairs & Maintenance,60103412,OAKRAY LIMITED,128.00,14/09/2018
Commercial,Customer Support Group,Building Repairs & Maintenance,60103439,OAKRAY LIMITED,200.10,17/09/2018
Commercial,Customer Support Group,Building Repairs & Maintenance,60103448,OAKRAY LIMITED,135.00,14/09/2018
Commercial,Customer Support Group,Building Repairs & Maintenance,60103451,OAKRAY LIMITED,96.00,14/09/2018
Commercial,Customer Support Group,Building Repairs & Maintenance,60103460,OAKRAY LIMITED,323.53,17/09/2018
Commercial,Customer Support Group,Building Repairs & Maintenance,60106409,OAKRAY LIMITED,162.00,14/09/2018
Commercial,Customer Support Group,Building Repairs & Maintenance,60106416,OAKRAY LIMITED,80.00,18/09/2018
Commercial,Customer Support Group,Building Repairs & Maintenance,60106433,OAKRAY LIMITED,108.00,19/09/2018
Commercial,Customer Support Group,Building Repairs & Maintenance,60106458,OAKRAY LIMITED,168.88,14/09/2018
Commercial,Customer Support Group,Building Repairs & Maintenance,60106492,OAKRAY LIMITED,316.28,19/09/2018
Commercial,Customer Support Group,Building Repairs & Maintenance,60108619,OAKRAY LIMITED,64.00,20/09/2018
Commercial,Customer Support Group,Building Repairs & Maintenance,60111980,OAKRAY LIMITED,162.00,25/09/2018
Commercial,Customer Support Group,Building Repairs & Maintenance,60112003,OAKRAY LIMITED,355.21,25/09/2018
Commercial,Customer Support Group,Building Repairs & Maintenance,60112009,OAKRAY LIMITED,112.00,27/09/2018
Commercial,Customer Support Group,Building Repairs & Maintenance,60112010,OAKRAY LIMITED,80.00,27/09/2018
Commercial,Customer Support Group,Building Repairs & Maintenance,60112013,OAKRAY LIMITED,80.00,27/09/2018
Commercial,Customer Support Group,Building Repairs & Maintenance,60112021,OAKRAY LIMITED,112.00,25/09/2018
Commercial,Customer Support Group,Building Repairs & Maintenance,60112026,OAKRAY LIMITED,80.00,27/09/2018
Commercial,Customer Support Group,Building Repairs & Maintenance,60112033,OAKRAY LIMITED,112.00,27/09/2018
Commercial,Customer Support Group,Building Repairs & Maintenance,60112055,OAKRAY LIMITED,108.00,27/09/2018
Commercial,Customer Support Group,Building Repairs & Maintenance,60112056,OAKRAY LIMITED,128.00,27/09/2018
Commercial,Customer Support Group,Building Repairs & Maintenance,60112067,OAKRAY LIMITED,64.00,21/09/2018
Commercial,Customer Support Group,Building Repairs & Maintenance,60112077,OAKRAY LIMITED,160.00,27/09/2018
Commercial,Customer Support Group,Building Repairs & Maintenance,60112104,OAKRAY LIMITED,96.00,27/09/2018
Commercial,Customer Support Group,Building Repairs & Maintenance,60112105,OAKRAY LIMITED,160.00,13/09/2018
Commercial,Customer Support Group,Building Repairs & Maintenance,60112110,OAKRAY LIMITED,128.00,13/09/2018
Commercial,Customer Support Group,Building Repairs & Maintenance,60112113,OAKRAY LIMITED,135.00,13/09/2018
Commercial,Customer Support Group,Building Repairs & Maintenance,60112118,OAKRAY LIMITED,112.00,13/09/2018
Commercial,Customer Support Group,Building Repairs & Maintenance,60112636,OAKRAY LIMITED,573.75,04/09/2018
Commercial,Customer Support Group,Building Repairs & Maintenance,60112644,OAKRAY LIMITED,459.00,04/09/2018
Commercial,Customer Support Group,Building Repairs & Maintenance,60112647,OAKRAY LIMITED,560.25,04/09/2018
Commercial,Customer Support Group,Building Repairs & Maintenance,60112648,OAKRAY LIMITED,428.63,04/09/2018
Commercial,Customer Support Group,Building Repairs & Maintenance,60112651,OAKRAY LIMITED,492.75,04/09/2018
Commercial,Customer Support Group,Building Repairs & Maintenance,60112657,OAKRAY LIMITED,537.30,04/09/2018
Commercial,Customer Support Group,Building Repairs & Maintenance,60112660,OAKRAY LIMITED,502.20,04/09/2018
Commercial,Customer Support Group,Building Repairs & Maintenance,60112673,OAKRAY LIMITED,583.88,04/09/2018
Commercial,Customer Support Group,Building Repairs & Maintenance,60112708,OAKRAY LIMITED,"1,604.25",27/09/2018
Commercial,Customer Support Group,Electricity,60111685,KENT COUNTY COUNCIL (KCS),"1,609.55",03/09/2018
Commercial,Customer Support Group,Electricity,60111713,KENT COUNTY COUNCIL (KCS),"1,227.05",03/09/2018
Commercial,Customer Support Group,Electricity,60111839,KENT COUNTY COUNCIL (KCS),"1,507.14",21/09/2018
Commercial,Customer Support Group,Electricity,60111857,KENT COUNTY COUNCIL (KCS),92.95,05/09/2018
Commercial,Customer Support Group,Gas,60111944,KENT COUNTY COUNCIL (KCS),121.83,26/09/2018
Commercial,Customer Support Group,Electricity,60111970,KENT COUNTY COUNCIL (KCS),325.70,05/09/2018
Commercial,Customer Support Group,Electricity,60112061,KENT COUNTY COUNCIL (KCS),204.59,03/09/2018
Commercial,Customer Support Group,Electricity,60112128,KENT COUNTY COUNCIL (KCS),662.97,03/09/2018
Commercial,Customer Support Group,Electricity,60112291,KENT COUNTY COUNCIL (KCS),862.55,05/09/2018
Commercial,Customer Support Group,Electricity,60112313,KENT COUNTY COUNCIL (KCS),429.13,25/09/2018
Commercial,Customer Support Group,Electricity,60112366,KENT COUNTY COUNCIL (KCS),208.55,05/09/2018
Commercial,Customer Support Group,Electricity,60112384,KENT COUNTY COUNCIL (KCS),685.20,05/09/2018
Commercial,Customer Support Group,Building Repairs & Maintenance,60112587,LEE SECURITY LONDON LIMITED,992.00,03/09/2018
Commercial,Customer Support Group,Other Services,60112923,ENVIRONMENT AGENCY,"1,290.00",10/09/2018
Commercial,Customer Support Group,Electricity,60112724,E-ON ENERGY,44.75,05/09/2018
Commercial,Customer Support Group,Electricity,60113357,E-ON ENERGY,22.40,18/09/2018
Commercial,Customer Support Group,Other Services,60112952,BLUE 9 SECURITY LIMITED,85.64,12/09/2018
Commercial,Customer Support Group,Other Services,60112965,BLUE 9 SECURITY LIMITED,53.72,12/09/2018
Commercial,Customer Support Group,Other Services,60112994,BLUE 9 SECURITY LIMITED,201.45,12/09/2018
Commercial,Customer Support Group,Other Services,60113000,BLUE 9 SECURITY LIMITED,249.12,12/09/2018
Commercial,Customer Support Group,Other Services,60113040,BLUE 9 SECURITY LIMITED,46.71,13/09/2018
Commercial,Customer Support Group,Electricity,60112601,BRITISH GAS BUSINESS,78.20,06/09/2018
Commercial,Customer Support Group,Electricity,60112676,BRITISH GAS BUSINESS,53.36,04/09/2018
Commercial,Customer Support Group,Building Repairs & Maintenance,60110322,DOORWAY-MAINTENANCE CO.,220.00,17/09/2018
Commercial,Customer Support Group,Water Services,10014226,AFFINITY WATER LIMITED,15.60,17/09/2018
Commercial,Customer Support Group,Water Services,60112223,AFFINITY WATER LIMITED,15.60,10/09/2018
Commercial,Customer Support Group,Water Services,60113386,AFFINITY WATER LIMITED,101.29,19/09/2018
Commercial,Customer Support Group,Other Services,10014223,DEPARTMENT OF BUSINESS  ENERGY AND INDUS,"61,950.00",12/09/2018
Commercial,Customer Support Group,Rents,60112059,CANAL & RIVER TRUST,"2,000.00",13/09/2018
Commercial,Customer Support Group,Consultants Fees,60112572,COPPING JOYCE SURVEYORS LIMITED,"3,000.00",03/09/2018
Commercial,Customer Support Group,Building Repairs & Maintenance,60111897,WATES LIVING SPACE,"1,336.87",25/09/2018
Commercial,Customer Support Group,Building Repairs & Maintenance,60112534,WATES LIVING SPACE,71.25,20/09/2018
Commercial,Customer Support Group,Building Repairs & Maintenance,60098941,S W BRUCE & CO LTD,76.36,13/09/2018
Commercial,Customer Support Group,Building Repairs & Maintenance,60099024,S W BRUCE & CO LTD,72.00,13/09/2018
Commercial,Customer Support Group,Building Repairs & Maintenance,60099074,S W BRUCE & CO LTD,75.00,13/09/2018
Commercial,Customer Support Group,Building Repairs & Maintenance,60099129,S W BRUCE & CO LTD,76.36,13/09/2018
Commercial,Customer Support Group,Building Repairs & Maintenance,60099160,S W BRUCE & CO LTD,50.00,13/09/2018
Commercial,Customer Support Group,Building Repairs & Maintenance,60099166,S W BRUCE & CO LTD,50.00,13/09/2018
Commercial,Customer Support Group,Service Charges,60112561,LAZARI INVESTMENTS LTD,183.36,20/09/2018
Commercial,Customer Support Group,Service Charges,60112590,LAZARI INVESTMENTS LTD,"27,966.24",20/09/2018
Commercial,Customer Support Group,Water Services,60112006,CASTLE WATER LTD,125.97,10/09/2018
Commercial,Customer Support Group,Other Services,10014222,LONDON CARETAKERS,350.00,10/09/2018
Commercial,Customer Support Group,Professional Services,10014237,WORKMAN LLP,"1,016.80",24/09/2018
Commercial,Customer Support Group,Building Repairs & Maintenance,60112721,REDACTED - PERSONAL DATA,260.00,06/09/2018
Commercial,Customer Support Group,Ttl IT & Comms,60112136,TELEFONICA UK LTD,60.00,07/09/2018
Commercial,Customer Support Group,Ttl IT & Comms,60112140,TELEFONICA UK LTD,28.68,07/09/2018
Commercial,Customer Support Group,Ttl IT & Comms,60112163,TELEFONICA UK LTD,60.00,07/09/2018
Commercial,Customer Support Group,Ttl IT & Comms,60112218,TELEFONICA UK LTD,60.00,06/09/2018
Commercial,Customer Support Group,Postage,20038281,ROYAL MAIL GROUP LIMITED,646.38,18/09/2018
Commercial,Customer Support Group,Postage,20038282,ROYAL MAIL GROUP LIMITED,646.38,19/09/2018
Commercial,Customer Support Group,Other Services,20038786,LOOMIS UK LIMITED,-106.30,26/09/2018
Commercial,Customer Support Group,Other Services,20038787,LOOMIS UK LIMITED,942.22,26/09/2018
Commercial,Customer Support Group,Postage,60112762,ROYAL MAIL GROUP LIMITED,94.46,05/09/2018
Commercial,Customer Support Group,Postage,60112775,OFF THE WALL MARKETING LTD,"1,102.00",13/09/2018
Commercial,Customer Support Group,Postage,60113191,OFF THE WALL MARKETING LTD,"1,102.00",20/09/2018
Commercial,Customer Support Group,Postage,10014220,ENVOPRINT,507.00,04/09/2018
Commercial,Customer Support Group,Postage,60112675,ENVOPRINT,627.00,04/09/2018
Commercial,Customer Support Group,Gas,60111931,KENT COUNTY COUNCIL (KCS),269.20,26/09/2018
Commercial,Customer Support Group,Electricity,60112072,KENT COUNTY COUNCIL (KCS),"1,753.60",03/09/2018
Commercial,Customer Support Group,Electricity,60113440,KENT COUNTY COUNCIL (KCS),134.45,20/09/2018
Commercial,Customer Support Group,Vending Machines,60113281,SIEMENS FINANCIAL SERVICES LTD,"2,543.89",18/09/2018
Commercial,Customer Support Group,Rubbish Collection,60113275,PEARCE RECYCLING CO. LTD,125.00,27/09/2018
Commercial,Customer Support Group,Other Services,60112947,BLUE 9 SECURITY LIMITED,"22,773.84",12/09/2018
Commercial,Customer Support Group,Rents,60112543,NETWORK RAIL ACCOUNTS RECEIVABLE,"4,500.00",03/09/2018
Commercial,Customer Support Group,Rents,60112606,NETWORK RAIL ACCOUNTS RECEIVABLE,"20,375.00",03/09/2018
Commercial,Customer Support Group,Publications,10014234,TV LICENSING,150.50,21/09/2018
Commercial,Customer Support Group,Building Repairs & Maintenance,10013838,OAKRAY LIMITED,288.00,11/09/2018
Commercial,Customer Support Group,Building Repairs & Maintenance,60081084,OAKRAY LIMITED,80.00,21/09/2018
Commercial,Customer Support Group,Building Repairs & Maintenance,60081145,OAKRAY LIMITED,80.00,11/09/2018
Commercial,Customer Support Group,Building Repairs & Maintenance,60094069,OAKRAY LIMITED,189.00,10/09/2018
Commercial,Customer Support Group,Building Repairs & Maintenance,60111956,OAKRAY LIMITED,135.00,25/09/2018
Commercial,Customer Support Group,Building Repairs & Maintenance,60112001,OAKRAY LIMITED,80.00,27/09/2018
Commercial,Customer Support Group,Building Repairs & Maintenance,60112074,OAKRAY LIMITED,64.00,25/09/2018
Commercial,Customer Support Group,Building Repairs & Maintenance,60112763,OAKRAY LIMITED,435.55,06/09/2018
Commercial,Customer Support Group,Building Repairs & Maintenance,60112925,OAKRAY LIMITED,672.91,13/09/2018
Commercial,Customer Support Group,Building Repairs & Maintenance,60112981,OAKRAY LIMITED,80.00,13/09/2018
Commercial,Customer Support Group,Building Repairs & Maintenance,60113673,OAKRAY LIMITED,511.88,26/09/2018
Commercial,Customer Support Group,Building Repairs & Maintenance,60113013,ADAMS ENVIRONMENTAL LTD,430.00,13/09/2018
Commercial,Customer Support Group,Building Repairs & Maintenance,60113015,ADAMS ENVIRONMENTAL LTD,430.00,13/09/2018
Commercial,Customer Support Group,Building Repairs & Maintenance,60113151,HERTEL (UK) LTD,466.64,27/09/2018
Commercial,Customer Support Group,Building Repairs & Maintenance,60113192,HERTEL (UK) LTD,"1,605.14",27/09/2018
Commercial,Customer Support Group,Building Repairs & Maintenance,60113198,HERTEL (UK) LTD,"1,606.08",27/09/2018
Commercial,Customer Support Group,Building Repairs & Maintenance,60109101,DOORWAY-MAINTENANCE CO.,220.00,17/09/2018
Commercial,Customer Support Group,Building Repairs & Maintenance,60109122,DOORWAY-MAINTENANCE CO.,180.00,17/09/2018
Commercial,Customer Support Group,Building Repairs & Maintenance,60099152,S W BRUCE & CO LTD,62.00,17/09/2018
Commercial,Customer Support Group,Building Repairs & Maintenance,60101698,S W BRUCE & CO LTD,333.50,10/09/2018
Commercial,Customer Support Group,Building Repairs & Maintenance,60101836,S W BRUCE & CO LTD,480.00,10/09/2018
Commercial,Customer Support Group,Building Repairs & Maintenance,60111847,LIFT & ENGINEERING SERVICES LTD,215.07,27/09/2018
Commercial,Customer Support Group,Building Repairs & Maintenance,60113388,LIFT & ENGINEERING SERVICES LTD,"14,166.00",27/09/2018
Commercial,Customer Support Group,Electricity,60113364,E-ON ENERGY,19.45,18/09/2018
Commercial,Customer Support Group,Other Services,60112885,BLUE 9 SECURITY LIMITED,"1,058.00",20/09/2018
Commercial,Customer Support Group,Other Services,60112968,BLUE 9 SECURITY LIMITED,"11,584.08",13/09/2018
Commercial,Customer Support Group,Other Services,60112974,BLUE 9 SECURITY LIMITED,136.00,13/09/2018
Commercial,Customer Support Group,Gas,60113254,TOTAL GAS & POWER LTD,503.60,14/09/2018
Commercial,Green Spaces,Building Repairs & Maintenance,60106442,OAKRAY LIMITED,80.00,18/09/2018
Commercial,Green Spaces,Building Repairs & Maintenance,60106472,OAKRAY LIMITED,96.00,18/09/2018
Commercial,Green Spaces,Building Repairs & Maintenance,60106496,OAKRAY LIMITED,80.00,19/09/2018
Commercial,Green Spaces,Building Repairs & Maintenance,60112083,OAKRAY LIMITED,80.00,21/09/2018
Commercial,Green Spaces,Building Repairs & Maintenance,60112093,OAKRAY LIMITED,126.57,25/09/2018
Commercial,Green Spaces,Building Repairs & Maintenance,60112115,OAKRAY LIMITED,507.58,13/09/2018
Commercial,Green Spaces,Building Repairs & Maintenance,60112117,OAKRAY LIMITED,80.00,13/09/2018
Commercial,Green Spaces,Building Repairs & Maintenance,60112659,OAKRAY LIMITED,448.88,04/09/2018
Commercial,Green Spaces,Building Repairs & Maintenance,60112452,BARNET LOCK CENTRE LTD.,104.66,05/09/2018
Commercial,Green Spaces,Building Repairs & Maintenance,60112466,BARNET LOCK CENTRE LTD.,121.84,05/09/2018
Commercial,Green Spaces,Building Repairs & Maintenance,60112483,BARNET LOCK CENTRE LTD.,62.00,05/09/2018
Commercial,Green Spaces,Building Repairs & Maintenance,60112484,BARNET LOCK CENTRE LTD.,62.00,05/09/2018
Commercial,Green Spaces,Building Repairs & Maintenance,60112492,BARNET LOCK CENTRE LTD.,144.61,05/09/2018
Commercial,Green Spaces,Building Repairs & Maintenance,60112499,BARNET LOCK CENTRE LTD.,99.65,05/09/2018
Commercial,Green Spaces,Building Repairs & Maintenance,60112507,BARNET LOCK CENTRE LTD.,164.50,05/09/2018
Commercial,Green Spaces,Building Repairs & Maintenance,60112511,BARNET LOCK CENTRE LTD.,152.00,05/09/2018
Commercial,Green Spaces,Building Repairs & Maintenance,60112527,BARNET LOCK CENTRE LTD.,62.00,07/09/2018
Commercial,Green Spaces,Building Repairs & Maintenance,60112530,BARNET LOCK CENTRE LTD.,164.50,05/09/2018
Commercial,Green Spaces,Building Repairs & Maintenance,60113329,BARNET LOCK CENTRE LTD.,121.84,18/09/2018
Commercial,Green Spaces,Building Repairs & Maintenance,60113910,BARNET LOCK CENTRE LTD.,62.00,27/09/2018
Commercial,Green Spaces,Equipment and Materials Purcha,60110931,HAGS PLAY LTD,"4,186.60",18/09/2018
Commercial,Green Spaces,Equipment and Materials Purcha,60111670,HAGS PLAY LTD,"1,590.00",06/09/2018
Commercial,Green Spaces,Equipment and Materials Purcha,60112785,HAGS PLAY LTD,473.85,27/09/2018
Commercial,Green Spaces,Gas,60092619,KENT COUNTY COUNCIL (KCS),143.82,26/09/2018
Commercial,Green Spaces,Gas,60101513,KENT COUNTY COUNCIL (KCS),72.53,10/09/2018
Commercial,Green Spaces,Gas,60101521,KENT COUNTY COUNCIL (KCS),76.81,10/09/2018
Commercial,Green Spaces,Electricity,60101625,KENT COUNTY COUNCIL (KCS),21.38,11/09/2018
Commercial,Green Spaces,Gas,60108342,KENT COUNTY COUNCIL (KCS),72.08,03/09/2018
Commercial,Green Spaces,Gas,60108354,KENT COUNTY COUNCIL (KCS),52.52,03/09/2018
Commercial,Green Spaces,Gas,60108408,KENT COUNTY COUNCIL (KCS),81.48,03/09/2018
Commercial,Green Spaces,Electricity,60108479,KENT COUNTY COUNCIL (KCS),20.68,06/09/2018
Commercial,Green Spaces,Gas,60110175,KENT COUNTY COUNCIL (KCS),124.49,24/09/2018
Commercial,Green Spaces,Gas,60110308,KENT COUNTY COUNCIL (KCS),33.26,03/09/2018
Commercial,Green Spaces,Gas,60110321,KENT COUNTY COUNCIL (KCS),42.25,03/09/2018
Commercial,Green Spaces,Gas,60112259,KENT COUNTY COUNCIL (KCS),40.28,26/09/2018
Commercial,Green Spaces,Electricity,60112340,KENT COUNTY COUNCIL (KCS),26.53,26/09/2018
Commercial,Green Spaces,Electricity,60112696,KENT COUNTY COUNCIL (KCS),21.38,12/09/2018
Commercial,Green Spaces,Electricity,60112734,KENT COUNTY COUNCIL (KCS),"2,387.80",06/09/2018
Commercial,Green Spaces,Electricity,60112747,KENT COUNTY COUNCIL (KCS),581.55,06/09/2018
Commercial,Green Spaces,Electricity,60112761,KENT COUNTY COUNCIL (KCS),598.82,05/09/2018
Commercial,Green Spaces,Other Services,60113182,IRIS GARDENING SERVICES LTD,260.00,13/09/2018
Commercial,Green Spaces,Equipment and Materials Purcha,60113918,IRIS GARDENING SERVICES LTD,745.00,28/09/2018
Commercial,Green Spaces,Other Services,10014239,RM COUNTRYSIDE SERVICES LTD,688.00,27/09/2018
Commercial,Green Spaces,Other Services,60113147,RM COUNTRYSIDE SERVICES LTD,470.00,17/09/2018
Commercial,Green Spaces,Other Services,60113177,RM COUNTRYSIDE SERVICES LTD,210.00,14/09/2018
Commercial,Green Spaces,Other Services,60113186,RM COUNTRYSIDE SERVICES LTD,563.25,14/09/2018
Commercial,Green Spaces,Other Services,60113201,RM COUNTRYSIDE SERVICES LTD,360.00,14/09/2018
Commercial,Green Spaces,Other Services,60113416,RM COUNTRYSIDE SERVICES LTD,266.00,24/09/2018
Commercial,Green Spaces,Other Services,60113426,RM COUNTRYSIDE SERVICES LTD,485.00,24/09/2018
Commercial,Green Spaces,Other Services,60113912,RM COUNTRYSIDE SERVICES LTD,894.00,27/09/2018
Commercial,Green Spaces,Other Services,60113932,RM COUNTRYSIDE SERVICES LTD,220.00,27/09/2018
Commercial,Green Spaces,Grounds maintenance,60112129,BUSH WHEELER SERVICES LIMITED,350.00,13/09/2018
Commercial,Green Spaces,Gas,60110758,BRITISH GAS BUSINESS,48.44,10/09/2018
Commercial,Green Spaces,Building Repairs & Maintenance,60113054,S W BRUCE & CO LTD,130.50,13/09/2018
Commercial,Green Spaces,Building Repairs & Maintenance,60113273,S W BRUCE & CO LTD,135.52,18/09/2018
Commercial,Green Spaces,Building Repairs & Maintenance,60113277,S W BRUCE & CO LTD,50.00,18/09/2018
Commercial,Green Spaces,Grounds maintenance,60113393,BLAISE NURSERY,288.55,27/09/2018
Commercial,Green Spaces,Advertising,60111739,CAN DIGITAL SOLUTIONS LTD,"1,836.00",11/09/2018
Commercial,Green Spaces,Water Services,60112134,CASTLE WATER LTD,104.06,26/09/2018
Commercial,Green Spaces,Equipment and Materials Purcha,60111564,REDACTED - PERSONAL DATA,22.50,06/09/2018
Commercial,Green Spaces,Grounds maintenance,60112599,GRISTWOOD & TOM LTD,"2,520.00",05/09/2018
Commercial,Green Spaces,Grounds maintenance,60112603,GRISTWOOD & TOM LTD,"1,520.00",05/09/2018
Commercial,Green Spaces,Grounds maintenance,60112616,GRISTWOOD & TOM LTD,"2,020.00",05/09/2018
Commercial,Green Spaces,Grounds maintenance,60112617,GRISTWOOD & TOM LTD,"4,196.00",05/09/2018
Commercial,Green Spaces,Grounds maintenance,60112629,GRISTWOOD & TOM LTD,446.50,05/09/2018
Commercial,Green Spaces,Grounds maintenance,60112737,GRISTWOOD & TOM LTD,"2,452.00",19/09/2018
Commercial,Green Spaces,Grounds maintenance,60112749,GRISTWOOD & TOM LTD,553.50,19/09/2018
Commercial,Green Spaces,Grounds maintenance,60113103,GRISTWOOD & TOM LTD,"3,548.00",27/09/2018
Commercial,Green Spaces,Grounds maintenance,60113088,CITY SUBURBAN TREE SURGEONS LTD,"7,464.40",12/09/2018
Commercial,Green Spaces,Grounds maintenance,60113108,CITY SUBURBAN TREE SURGEONS LTD,"9,897.85",12/09/2018
Commercial,Green Spaces,Grounds maintenance,60112703,GLENDALE COUNTRYSIDE LTD,774.60,27/09/2018
Commercial,Green Spaces,Grounds maintenance,60112707,GLENDALE COUNTRYSIDE LTD,391.34,27/09/2018
Commercial,Green Spaces,Grounds maintenance,60112714,GLENDALE COUNTRYSIDE LTD,163.74,27/09/2018
Commercial,Green Spaces,Grounds maintenance,60112722,GLENDALE COUNTRYSIDE LTD,"1,077.08",27/09/2018
Commercial,Green Spaces,Grounds maintenance,60112726,GLENDALE COUNTRYSIDE LTD,906.02,27/09/2018
Commercial,Green Spaces,Grounds maintenance,60112736,GLENDALE COUNTRYSIDE LTD,237.97,27/09/2018
Commercial,Green Spaces,Grounds maintenance,60112751,GLENDALE COUNTRYSIDE LTD,346.65,27/09/2018
Commercial,Green Spaces,Grounds maintenance,60113118,GLENDALE COUNTRYSIDE LTD,"23,440.50",27/09/2018
Commercial,Green Spaces,Grounds maintenance,60113128,GLENDALE COUNTRYSIDE LTD,"2,256.67",27/09/2018
COMMERCIAL,HOUSING NEEDS RESOURCES,Grant Payments,80019795,PROPERTY PROCURE LTD,"25,500.00",26/09/2018
COMMERCIAL,HOUSING NEEDS RESOURCES,Grant Payments,80019573,REDACTED - PERSONAL DATA,"11,322.00",21/09/2018
COMMERCIAL,HOUSING NEEDS RESOURCES,Grant Payments,80019576,REDACTED - PERSONAL DATA,"11,322.00",21/09/2018
COMMERCIAL,HOUSING NEEDS RESOURCES,Grant Payments,80019908,REDACTED - PERSONAL DATA,"20,400.00",27/09/2018
Commercial,Parking & Infrastructure,Equipment and Materials Purcha,60112123,GREENHAM TRADING LIMITED,820.60,13/09/2018
Commercial,Parking & Infrastructure,Equipment and Materials Purcha,60112461,GREENHAM TRADING LIMITED,645.95,20/09/2018
Commercial,Parking & Infrastructure,Equipment and Materials Purcha,60112686,GREENHAM TRADING LIMITED,560.54,27/09/2018
Commercial,Parking & Infrastructure,Equipment and Materials Purcha,60112806,GREENHAM TRADING LIMITED,56.10,27/09/2018
Commercial,Parking & Infrastructure,Equipment and Materials Purcha,60113010,W. FAYERS & SONS,218.94,11/09/2018
Commercial,Parking & Infrastructure,Equipment and Materials Purcha,60112283,RENNICK UK LTD,829.41,20/09/2018
Commercial,Parking & Infrastructure,Equipment and Materials Purcha,60112189,LAFARGE TARMAC TRADING LIMITED,146.40,13/09/2018
Commercial,Parking & Infrastructure,Equipment and Materials Purcha,60112206,LAFARGE TARMAC TRADING LIMITED,92.79,13/09/2018
Commercial,Parking & Infrastructure,Equipment and Materials Purcha,60112226,LAFARGE TARMAC TRADING LIMITED,162.90,13/09/2018
Commercial,Parking & Infrastructure,Equipment and Materials Purcha,60112710,LAFARGE TARMAC TRADING LIMITED,216.51,25/09/2018
Commercial,Parking & Infrastructure,Capital Construction and Works,60112851,KB INDUSTRIES UK LTD,"7,026.00",07/09/2018
Commercial,Parking & Infrastructure,Equipment and Materials Purcha,60113361,LONDON BOROUGH OF HARROW,"50,512.03",24/09/2018
Commercial,Parking & Infrastructure,Equipment and Materials Purcha,60113496,LONDON BOROUGH OF HARROW,"4,340.55",24/09/2018
Commercial,Parking & Infrastructure,Equipment and Materials Purcha,60113783,METDESK LTD,911.88,26/09/2018
Commercial,Parking & Infrastructure,Other Services,60111643,PARKEON LIMITED,810.00,12/09/2018
Commercial,Parking & Infrastructure,Other Services,60111649,PARKEON LIMITED,"2,100.48",12/09/2018
Commercial,Parking & Infrastructure,Other Services,60113270,PARKEON LIMITED,"8,146.96",14/09/2018
Commercial,Parking & Infrastructure,Professional Services,60113034,NSL LTD,"36,809.16",13/09/2018
Commercial,Parking & Infrastructure,Software Licences & Support,60113920,NSL LTD,"33,094.93",28/09/2018
Commercial,Parking & Infrastructure,Other Services,60113927,NSL LTD,"1,977.75",28/09/2018
Commercial,Parking & Infrastructure,Software Licences & Support,60113943,NSL LTD,"9,728.70",28/09/2018
Commercial,Parking & Infrastructure,Professional Services,60113951,NSL LTD,"646,341.88",28/09/2018
Commercial,Public Health,Other Establishments - Third P,60111195,INTERNATIONAL GOSPEL CHURCH,"1,100.00",18/09/2018
Commercial,Public Health,Other Establishments - Third P,60111207,LOVE BURNT OAK COMMUNITY RESOURCE & SUPP,250.00,21/09/2018
Commercial,Public Health,Other Establishments - Third P,60111526,THE SOCIAL MARKETING GATEWAY,296.00,20/09/2018
Commercial,Public Health,Other Establishments - Third P,60113065,SILVER STAR DIABETES,"1,000.00",12/09/2018
Commercial,Public Health,Other Establishments - Third P,60111793,WILLIAMS AND ASSOCIATES,"1,400.00",20/09/2018
Commercial,Public Health,Other Transfer Payments to Soc,60107293,CENTRAL LONDONCOMMUNITY HEALTHCARE,"-356,000.00",06/09/2018
Commercial,Public Health,Health authorities - Third Par,60111495,CENTRAL LONDONCOMMUNITY HEALTHCARE,"394,750.00",06/09/2018
Commercial,Public Health,Health authorities - Third Par,60111505,CENTRAL LONDONCOMMUNITY HEALTHCARE,"394,750.00",06/09/2018
Commercial,Public Health,Health authorities - Third Par,60111511,CENTRAL LONDONCOMMUNITY HEALTHCARE,"394,750.00",06/09/2018
Commercial,Public Health,Health authorities - Third Par,60111515,CENTRAL LONDONCOMMUNITY HEALTHCARE,"394,750.00",06/09/2018
Commercial,Public Health,Health authorities - Third Par,60111890,CENTRAL LONDONCOMMUNITY HEALTHCARE,"394,750.00",27/09/2018
Commercial,Public Health,Professional Services,60107248,CENTRAL LONDONCOMMUNITY HEALTHCARE,"-85,834.00",06/09/2018
Commercial,Public Health,Health authorities - Third Par,60111425,CENTRAL LONDONCOMMUNITY HEALTHCARE,"85,834.00",06/09/2018
Commercial,Public Health,Health authorities - Third Par,60111441,CENTRAL LONDONCOMMUNITY HEALTHCARE,"85,834.00",06/09/2018
Commercial,Public Health,Health authorities - Third Par,60111457,CENTRAL LONDONCOMMUNITY HEALTHCARE,"85,834.00",06/09/2018
Commercial,Public Health,Health authorities - Third Par,60111507,CENTRAL LONDONCOMMUNITY HEALTHCARE,"85,834.00",06/09/2018
Commercial,Public Health,Health authorities - Third Par,60111829,CENTRAL LONDONCOMMUNITY HEALTHCARE,"85,834.00",06/09/2018
Commercial,Public Health,Health authorities - Third Par,60113477,CENTRAL LONDONCOMMUNITY HEALTHCARE,"85,834.00",27/09/2018
Commercial,Public Health,Professional Services,60107237,CENTRAL LONDONCOMMUNITY HEALTHCARE,"-9,583.00",06/09/2018
Commercial,Public Health,Other Transfer Payments to Soc,60107211,CENTRAL LONDONCOMMUNITY HEALTHCARE,"-29,167.00",06/09/2018
Commercial,Public Health,Professional Services,60107246,CENTRAL LONDONCOMMUNITY HEALTHCARE,"-4,917.00",06/09/2018
Commercial,Public Health,Health authorities - Third Par,60112615,OAKLODGE MEDICAL CENTRE,425.00,03/09/2018
Commercial,Public Health,Health authorities - Third Par,60112571,LONGROVE SURGERY,775.00,03/09/2018
Commercial,Public Health,Health authorities - Third Par,60113167,PARKVIEW SURGERY,225.00,13/09/2018
Commercial,Public Health,Health authorities - Third Par,60112591,VALE DRIVE MEDICAL CENTRE,"3,250.00",03/09/2018
Commercial,Public Health,Health authorities - Third Par,60113464,DR ADLER & DR ROSENBERG,125.00,27/09/2018
Commercial,Public Health,Health authorities - Third Par,60112321,COLINDALE MEDICAL CENTRE,"2,025.00",05/09/2018
Commercial,Public Health,Health authorities - Third Par,60112335,COLINDALE MEDICAL CENTRE,875.00,05/09/2018
Commercial,Public Health,Health authorities - Third Par,60113181,MEDICAL CENTRE,300.00,13/09/2018
Commercial,Public Health,Health authorities - Third Par,60113161,DR AZIM AND PARTNERS,125.00,13/09/2018
Commercial,Public Health,Other Local Authorities - Thir,60113213,CITY OF LONDON,"56,847.96",14/09/2018
Commercial,Public Health,Health authorities - Third Par,60107696,CENTRAL LONDONCOMMUNITY HEALTHCARE,"2,691.00",06/09/2018
Commercial,Public Health,Health authorities - Third Par,60111547,CENTRAL LONDONCOMMUNITY HEALTHCARE,"1,924.00",27/09/2018
Commercial,Public Health,Health authorities - Third Par,60111552,CENTRAL LONDONCOMMUNITY HEALTHCARE,"1,924.00",27/09/2018
Commercial,Public Health,Health authorities - Third Par,60111688,CENTRAL LONDONCOMMUNITY HEALTHCARE,"-1,924.00",27/09/2018
Commercial,Public Health,Health authorities - Third Par,60108402,CENTRAL & NORTH WEST LONDON NHS FT,"152,639.99",21/09/2018
Commercial,Public Health,Health authorities - Third Par,60111183,CENTRAL & NORTH WEST LONDON NHS FT,"3,093.64",25/09/2018
Commercial,Public Health,Health authorities - Third Par,60111203,CENTRAL & NORTH WEST LONDON NHS FT,"152,711.22",25/09/2018
Commercial,Public Health,Health authorities - Third Par,60111213,CENTRAL & NORTH WEST LONDON NHS FT,"34,500.00",20/09/2018
Commercial,Public Health,Health authorities - Third Par,60111325,CENTRAL & NORTH WEST LONDON NHS FT,"11,500.00",24/09/2018
Commercial,Public Health,Health authorities - Third Par,60112804,CENTRAL & NORTH WEST LONDON NHS FT,"151,534.62",25/09/2018
Commercial,Public Health,Health authorities - Third Par,60112824,CENTRAL & NORTH WEST LONDON NHS FT,"1,227.38",25/09/2018
Commercial,Public Health,Health authorities - Third Par,60113158,CENTRAL & NORTH WEST LONDON NHS FT,"11,500.00",24/09/2018
Commercial,Public Health,Health authorities - Third Par,60112897,LONDON NORTH WEST HEALTHCARE NHS TRUST,"8,900.00",27/09/2018
Commercial,Public Health,Health authorities - Third Par,60109575,KING'S COLLEGE HOSPITAL NHS FOUNDATION T,11.52,25/09/2018
Commercial,Public Health,Health authorities - Third Par,60110664,KING'S COLLEGE HOSPITAL NHS FOUNDATION T,448.44,25/09/2018
Commercial,Public Health,Health authorities - Third Par,60112814,KING'S COLLEGE HOSPITAL NHS FOUNDATION T,467.72,27/09/2018
Commercial,Public Health,Health authorities - Third Par,60106415,CHELSEA & WESTMINSTER HOSPITAL NHS,"41,528.71",25/09/2018
Commercial,Public Health,Health authorities - Third Par,60110725,CHELSEA & WESTMINSTER HOSPITAL NHS,"41,528.71",25/09/2018
Commercial,Public Health,Health authorities - Third Par,60113442,CHELSEA & WESTMINSTER HOSPITAL NHS,304.29,24/09/2018
Commercial,Public Health,Health authorities - Third Par,60113457,CHELSEA & WESTMINSTER HOSPITAL NHS,59.94,24/09/2018
Commercial,Public Health,Health authorities - Third Par,60113484,CHELSEA & WESTMINSTER HOSPITAL NHS,95.69,27/09/2018
Commercial,Public Health,Health authorities - Third Par,60112566,BARTS HEALTH NHS TRUST,"2,229.21",05/09/2018
Commercial,Public Health,Health authorities - Third Par,60112630,BARTS HEALTH NHS TRUST,"3,397.96",05/09/2018
Commercial,Public Health,Health authorities - Third Par,60112860,BARTS HEALTH NHS TRUST,"2,818.14",27/09/2018
Commercial,Public Health,Health authorities - Third Par,60113497,KINGSTON HOSPITAL NHS FOUNDATION TRUST,603.07,21/09/2018
Commercial,Public Health,Health authorities - Third Par,60112575,LONGROVE SURGERY,560.00,03/09/2018
Commercial,Public Health,Health authorities - Third Par,60113142,MEDICAL CENTRE,520.00,13/09/2018
Commercial,Public Health,Health authorities - Third Par,60113148,DR AZIM AND PARTNERS,870.00,13/09/2018
Commercial,Regional Enterprise,Other Services,60111108,AFFINITY WATER LIMITED,19.92,13/09/2018
Commercial,Regional Enterprise,Advertising,60106161,TMP (UK) LTD,170.00,14/09/2018
Commercial,Regional Enterprise,Advertising,60106176,TMP (UK) LTD,170.00,14/09/2018
Commercial,Regional Enterprise,Advertising,60106579,TMP (UK) LTD,90.00,14/09/2018
Commercial,Regional Enterprise,Advertising,60106597,TMP (UK) LTD,90.00,14/09/2018
Commercial,Regional Enterprise,Advertising,60110277,TMP (UK) LTD,144.00,03/09/2018
Commercial,Regional Enterprise,Advertising,60111586,TMP (UK) LTD,161.00,21/09/2018
Commercial,Regional Enterprise,Advertising,60112004,TMP (UK) LTD,81.00,21/09/2018
Commercial,Regional Enterprise,Advertising,60112053,TMP (UK) LTD,170.00,21/09/2018
Commercial,Regional Enterprise,Advertising,60112584,TMP (UK) LTD,90.00,21/09/2018
Commercial,Regional Enterprise,Advertising,60112611,TMP (UK) LTD,188.00,18/09/2018
Commercial,Regional Enterprise,Other Services,60113900,CONWAY AECOM LTD,252.83,26/09/2018
Commercial,Regional Enterprise,Advertising,60112598,TMP (UK) LTD,296.00,03/09/2018
Commercial,Regional Enterprise,Other Services,60112711,RM COUNTRYSIDE SERVICES LTD,"2,250.00",06/09/2018
Commercial,Regional Enterprise,Other Services,60112719,RM COUNTRYSIDE SERVICES LTD,"1,220.00",06/09/2018
Commercial,Regional Enterprise,Other Services,60113730,CONWAY AECOM LTD,300.30,26/09/2018
Commercial,Regional Enterprise,Other Services,60113738,CONWAY AECOM LTD,510.30,26/09/2018
Commercial,Regional Enterprise,Other Services,60113744,CONWAY AECOM LTD,705.60,26/09/2018
Commercial,Regional Enterprise,Other Services,60113772,CONWAY AECOM LTD,554.40,26/09/2018
Commercial,Regional Enterprise,Other Services,60113856,CONWAY AECOM LTD,529.20,26/09/2018
Commercial,Regional Enterprise,Other Services,60113877,CONWAY AECOM LTD,472.50,26/09/2018
Commercial,Regional Enterprise,Other Services,60113895,CONWAY AECOM LTD,"1,285.20",26/09/2018
Commercial,Regional Enterprise,Professional Services,60112222,WATES LIVING SPACE,414.48,06/09/2018
Commercial,Regional Enterprise,Professional Services,60112991,WATES LIVING SPACE,"2,152.58",10/09/2018
Commercial,Regional Enterprise,Equipment and Materials Purcha,60113541,RM COUNTRYSIDE SERVICES LTD,887.50,26/09/2018
Commercial,Regional Enterprise,Advertising,60112057,TMP (UK) LTD,296.00,18/09/2018
Commercial,Regional Enterprise,Other Services,60113814,CONWAY AECOM LTD,40.82,26/09/2018
Commercial,Regional Enterprise,Other Services,60112702,RM COUNTRYSIDE SERVICES LTD,820.00,06/09/2018
Commercial,Regional Enterprise,Other Services,60113956,RM COUNTRYSIDE SERVICES LTD,"2,241.00",27/09/2018
Commercial,Regional Enterprise,Other Services,60110914,CONWAY AECOM LTD,209.08,19/09/2018
Commercial,Regional Enterprise,Other Services,60110919,CONWAY AECOM LTD,94.88,19/09/2018
Commercial,Regional Enterprise,Other Services,60113793,CONWAY AECOM LTD,94.50,26/09/2018
Commercial,Regional Enterprise,Other Services,60113839,CONWAY AECOM LTD,94.50,26/09/2018
Commercial,Regional Enterprise,Other Services,60113869,CONWAY AECOM LTD,735.00,26/09/2018
Commercial,Regional Enterprise,Fees and Charges,80019657,INFINITY PROPERTY SOLUTIONS,75.00,11/09/2018
Commercial,Regional Enterprise,Other Services,60109486,CONWAY AECOM LTD,340.00,03/09/2018
Commercial,Regional Enterprise,Other Services,60109496,CONWAY AECOM LTD,"3,024.00",03/09/2018
Commercial,Regional Enterprise,Other Services,60113714,CONWAY AECOM LTD,882.00,26/09/2018
Commercial,Regional Enterprise,Other Services,60113718,CONWAY AECOM LTD,378.00,26/09/2018
Commercial,Regional Enterprise,Other Services,60113742,CONWAY AECOM LTD,"1,864.80",26/09/2018
Commercial,Regional Enterprise,Other Services,60113762,CONWAY AECOM LTD,"1,562.40",26/09/2018
Commercial,Regional Enterprise,Other Services,60113763,CONWAY AECOM LTD,756.00,26/09/2018
Commercial,Regional Enterprise,Other Services,60113764,CONWAY AECOM LTD,821.10,26/09/2018
Commercial,Regional Enterprise,Other Services,60113776,CONWAY AECOM LTD,"1,159.20",26/09/2018
Commercial,Regional Enterprise,Other Services,60113781,CONWAY AECOM LTD,"4,372.74",26/09/2018
Commercial,Regional Enterprise,Other Services,60113790,CONWAY AECOM LTD,604.80,26/09/2018
Commercial,Regional Enterprise,Other Services,60113806,CONWAY AECOM LTD,945.00,26/09/2018
Commercial,Regional Enterprise,Other Services,60113812,CONWAY AECOM LTD,756.00,26/09/2018
Commercial,Regional Enterprise,Other Services,60113819,CONWAY AECOM LTD,"4,372.74",26/09/2018
Commercial,Regional Enterprise,Other Services,60113825,CONWAY AECOM LTD,"1,732.50",26/09/2018
Commercial,Regional Enterprise,Other Services,60113867,CONWAY AECOM LTD,"1,512.00",26/09/2018
Commercial,Regional Enterprise,Other Services,60113868,CONWAY AECOM LTD,"1,209.60",26/09/2018
Commercial,Regional Enterprise,Other Services,60113888,CONWAY AECOM LTD,"1,108.80",26/09/2018
Commercial,Regional Enterprise,Other Services,60113889,CONWAY AECOM LTD,"1,260.00",26/09/2018
Commercial,Regional Enterprise,Other Services,60113891,CONWAY AECOM LTD,"2,072.70",26/09/2018
Commercial,Regional Enterprise,Other Services,60113902,CONWAY AECOM LTD,294.00,26/09/2018
Commercial,Regional Enterprise,Other Services,60113906,CONWAY AECOM LTD,338.10,26/09/2018
Commercial,Regional Enterprise,Grant Payments,80019538,ECOLOGIC ENERGY,696.00,10/09/2018
Commercial,Regional Enterprise,Grant Payments,80019944,REDACTED - PERSONAL DATA,500.00,25/09/2018
Commercial,Regional Enterprise,Grant Payments,80019768,REDACTED - PERSONAL DATA,"1,128.00",18/09/2018
Commercial,Regional Enterprise,Grant Payments,80019646,REDACTED - PERSONAL DATA,432.00,13/09/2018
Commercial,Regional Enterprise,Consultants Fees,60113682,GOWLING WLG,"3,418.60",25/09/2018
Commercial,Regional Enterprise,Consultants Fees,60113685,GOWLING WLG,818.90,26/09/2018
Commercial,Regional Enterprise,Consultants Fees,60113855,GOWLING WLG,"1,898.99",25/09/2018
Commercial,Regional Enterprise,Consultants Fees,60112185,SAPIENS CONSULTANCY,485.00,20/09/2018
Commercial,Regional Enterprise,Consultants Fees,60113688,GOWLING WLG,"1,145.86",25/09/2018
Commercial,Regional Enterprise,Consultants Fees,60113705,GOWLING WLG,"1,763.35",25/09/2018
Commercial,Regional Enterprise,Consultants Fees,60113712,GOWLING WLG,"1,898.99",25/09/2018
Commercial,Regional Enterprise,Consultants Fees,60113746,GOWLING WLG,"1,378.79",25/09/2018
Commercial,Regional Enterprise,Consultants Fees,60113786,GOWLING WLG,"1,210.34",25/09/2018
Commercial,Regional Enterprise,Consultants Fees,60113792,GOWLING WLG,"6,602.13",25/09/2018
Commercial,Regional Enterprise,Consultants Fees,60113811,GOWLING WLG,"1,269.47",25/09/2018
Commercial,Regional Enterprise,Consultants Fees,60113861,GOWLING WLG,"1,439.89",25/09/2018
Commercial,Regional Enterprise,Consultants Fees,60113887,GOWLING WLG,"5,290.04",25/09/2018
Commercial,Regional Enterprise,RE Services Contract Payment,10014215,RE (REGIONAL ENTERPRISE) LIMITED,"599,660.20",06/09/2018
Commercial,Regional Enterprise,RE Services Contract Payment,60109935,RE (REGIONAL ENTERPRISE) LIMITED,"121,969.18",06/09/2018
Commercial,Regional Enterprise,Training,60113382,POPUP BUSINESS SCHOOL,"11,000.00",19/09/2018
Commercial,Regional Enterprise,Professional Services,60111095,RE (REGIONAL ENTERPRISE) LIMITED,392.48,28/09/2018
Commercial,Regional Enterprise,Professional Services,60111136,RE (REGIONAL ENTERPRISE) LIMITED,"1,326.05",28/09/2018
Commercial,Regional Enterprise,Professional Services,60112553,RE (REGIONAL ENTERPRISE) LIMITED,694.90,03/09/2018
Commercial,Regional Enterprise,Professional Services,60112602,RE (REGIONAL ENTERPRISE) LIMITED,"1,902.80",03/09/2018
Commercial,Regional Enterprise,Professional Services,60112613,RE (REGIONAL ENTERPRISE) LIMITED,120.48,03/09/2018
COMMERCIAL,REGIONAL ENTERPRISE,Grant Payments,80019627,STANNAH STAIRLIFTS LTD,"5,758.00",10/09/2018
COMMERCIAL,REGIONAL ENTERPRISE,Grant Payments,80019687,STANNAH STAIRLIFTS LTD,"5,527.00",13/09/2018
COMMERCIAL,REGIONAL ENTERPRISE,Grant Payments,80019848,STANNAH STAIRLIFTS LTD,"5,852.00",25/09/2018
COMMERCIAL,REGIONAL ENTERPRISE,Grant Payments,80019970,STANNAH STAIRLIFTS LTD,"4,918.00",26/09/2018
COMMERCIAL,REGIONAL ENTERPRISE,Grant Payments,80019840,DOLPHIN MOBILITY LTD.,"2,895.00",25/09/2018
COMMERCIAL,REGIONAL ENTERPRISE,Grant Payments,80019927,DOLPHIN MOBILITY LTD.,"6,122.00",25/09/2018
COMMERCIAL,REGIONAL ENTERPRISE,Grant Payments,80019647,ARTHUR J. FERRYMAN ASSOCIATES,750.00,13/09/2018
COMMERCIAL,REGIONAL ENTERPRISE,Grant Payments,80019969,ARTHUR J. FERRYMAN ASSOCIATES,480.00,26/09/2018
COMMERCIAL,REGIONAL ENTERPRISE,Grant Payments,80019999,ARTHUR J. FERRYMAN ASSOCIATES,960.00,27/09/2018
COMMERCIAL,REGIONAL ENTERPRISE,Grant Payments,80019540,AMWELL CONSTRUCTION LTD,"6,961.00",10/09/2018
COMMERCIAL,REGIONAL ENTERPRISE,Grant Payments,80019699,AMWELL CONSTRUCTION LTD,"11,244.00",14/09/2018
COMMERCIAL,REGIONAL ENTERPRISE,Grant Payments,80019941,AMWELL CONSTRUCTION LTD,"6,228.00",25/09/2018
COMMERCIAL,REGIONAL ENTERPRISE,Grant Payments,80019550,SOUTH HERTFORDSHIRE,"7,721.00",10/09/2018
COMMERCIAL,REGIONAL ENTERPRISE,Grant Payments,80019375,DP BUILDERS DISABLED ADAPTATIONS,"29,375.50",27/09/2018
COMMERCIAL,REGIONAL ENTERPRISE,Grant Payments,80019546,DP BUILDERS DISABLED ADAPTATIONS,"4,869.00",13/09/2018
COMMERCIAL,REGIONAL ENTERPRISE,Grant Payments,80019603,DP BUILDERS DISABLED ADAPTATIONS,"5,271.00",13/09/2018
COMMERCIAL,REGIONAL ENTERPRISE,Grant Payments,80019648,DP BUILDERS DISABLED ADAPTATIONS,"6,250.00",14/09/2018
COMMERCIAL,REGIONAL ENTERPRISE,Grant Payments,80019953,DP BUILDERS DISABLED ADAPTATIONS,"7,048.00",28/09/2018
COMMERCIAL,REGIONAL ENTERPRISE,Grant Payments,80019515,H D PROPERTY SERVICES LTD,"3,270.50",10/09/2018
COMMERCIAL,REGIONAL ENTERPRISE,Grant Payments,80019677,H D PROPERTY SERVICES LTD,748.00,13/09/2018
COMMERCIAL,REGIONAL ENTERPRISE,Grant Payments,80019971,H D PROPERTY SERVICES LTD,"6,477.00",26/09/2018
COMMERCIAL,REGIONAL ENTERPRISE,Grant Payments,80019612,REDACTED - PERSONAL DATA,"12,161.00",10/09/2018
COMMERCIAL,REGIONAL ENTERPRISE,Grant Payments,80019626,REDACTED - PERSONAL DATA,"7,792.00",10/09/2018
COMMERCIAL,REGIONAL ENTERPRISE,Grant Payments,80019642,REDACTED - PERSONAL DATA,"4,910.00",13/09/2018
COMMERCIAL,REGIONAL ENTERPRISE,Grant Payments,80020002,REDACTED - PERSONAL DATA,"6,139.00",27/09/2018
COMMERCIAL,REGIONAL ENTERPRISE,Grant Payments,80019532,REDACTED - PERSONAL DATA,"15,000.00",10/09/2018
COMMERCIAL,REGIONAL ENTERPRISE,Other Services,60112755,CONWAY AECOM LTD,81.97,19/09/2018
COMMERCIAL,REGIONAL ENTERPRISE,Professional Services,60112654,PROVING SERVICES LTD,"5,250.00",20/09/2018
COMMERCIAL,REGIONAL ENTERPRISE,Professional Services,60113483,BOLT & HEEKS LTD,"26,645.49",20/09/2018
COMMERCIAL,REGIONAL ENTERPRISE,Other Services,60111787,CONWAY AECOM LTD,"48,741.56",19/09/2018
COMMERCIAL,REGIONAL ENTERPRISE,Other Services,60113852,CONWAY AECOM LTD,"67,214.60",27/09/2018
COMMERCIAL,REGIONAL ENTERPRISE,Other Services,60113897,CONWAY AECOM LTD,"56,027.25",27/09/2018
COMMERCIAL,REGIONAL ENTERPRISE,Consultants Fees,60113632,JOHN GRAHAM CONSTRUCTION LTD,"17,488.00",28/09/2018
Commissioning,Commissioning,Other Local Authorities - Thir,EBX0246656,NORTH LONDON WASTE AUTHORITY,"1,014,603.00",21.9.18
Commissioning,Commissioning,Professional Services,60112565,HAYS SPECIALIST RECRUITMENT LTD,"9,875.00",20/09/2018
Commissioning,Commissioning,Other Services,60113247,STOR-A FILE LTD,"5,734.07",27/09/2018
Commissioning,Commissioning,Grant Payments,80019784,EAST FINCHLEY ARTS FESTIVAL,"1,200.00",26/09/2018
Commissioning,Commissioning,Travelling Expenses,80019127,REDACTED - PERSONAL DATA,30.00,13/09/2018
Commissioning,Commissioning,Travelling Expenses,80019128,REDACTED - PERSONAL DATA,30.00,13/09/2018
Commissioning,Commissioning,Professional Services,60108254,PENNA PLC,"3,861.00",18/09/2018
Commissioning,Commissioning,Professional Services,60108664,PENNA PLC,"3,510.00",03/09/2018
Commissioning,Commissioning,Professional Services,60113081,PENNA PLC,"14,458.50",13/09/2018
Commissioning,Commissioning,Professional Services,60113100,PENNA PLC,"1,606.50",13/09/2018
Commissioning,Commissioning,Professional Services,60113111,PENNA PLC,"13,338.00",13/09/2018
Commissioning,Commissioning,Professional Services,60113119,PENNA PLC,"12,852.00",13/09/2018
Commissioning,Commissioning,Professional Services,60112847,GRANT THORNTON UK LLP,"28,202.70",26/09/2018
Commissioning,Commissioning,Professional Services,60112378,ELKA SOLUTIONS,"1,200.00",13/09/2018
Commissioning,Commissioning,Ttl IT & Comms,60112685,DATAPRESS LTD,"8,988.00",04/09/2018
Commissioning,Commissioning,Consultants Fees,60112966,LEIDOS INNOVATIONS UK LTD,"5,857.30",10/09/2018
Commissioning,Commissioning,Professional Services,60113289,CIPFA BUSINESS LIMITED,"2,440.00",18/09/2018
Commissioning,Commissioning,Professional Services,60111537,LINK TREASURY SERVICES T/AS,275.00,06/09/2018
Commissioning,Commissioning,Professional Services,60089022,COMMUNITY BARNET,"15,000.00",06/09/2018
Commissioning,Commissioning,Professional Services,60110997,COMMUNITY BARNET,"15,000.00",06/09/2018
Commissioning,Commissioning,Professional Services,60111019,COMMUNITY BARNET,"15,000.00",06/09/2018
Commissioning,Commissioning,Equipment and Materials Purcha,60113031,OCS GROUP UK LIMITED,"47,269.00",11/09/2018
Commissioning,Commissioning,Other Services,60111885,GOOD IMPRESSIONS (LONDON) LIMITED,575.00,13/09/2018
Commissioning,Commissioning,Other Services,60107786,PHOENIX CANOE CLUB LIMITED,136.18,12/09/2018
Commissioning,Commissioning,Other Services,80019260,LONDON SPORT TRADING LTD,165.00,12/09/2018
Commissioning,Commissioning,Other Transfer Payments to Soc,60113405,SIGNET SIGNS LTD,190.00,19/09/2018
Commissioning,Commissioning,Other Transfer Payments to Soc,60113489,EMPOWERING COMMUNITIES,"5,949.00",20/09/2018
Commissioning,Commissioning,Equipment and Materials Purcha,60111896,GLOBAL MSC SECURITY LIMITED,"6,000.00",13/09/2018
Commissioning,Commissioning,Private Contractors - Third Pa,60112684,GREENWICH LEISURE LTD,"33,066.58",12/09/2018
Commissioning,Commissioning,Other Services,60112050,REDACTED - PERSONAL DATA,112.50,26/09/2018
Commissioning,Commissioning,Consultants Fees,60109538,PROJECT CENTRE LTD,687.50,14/09/2018
Commissioning,Commissioning,Professional Services,60113296,MOTT MACDONALD LTD,"29,555.00",20/09/2018
Commissioning,Commissioning,Other Transfer Payments to Soc,60112883,HA9 CONSULTANCY LTD,"7,875.00",20/09/2018
Commissioning,Commissioning,Consultants Fees,60111979,CITY OF LONDON,"1,200.00",04/09/2018
Commissioning,Commissioning,Consultants Fees,60108641,REDACTED - PERSONAL DATA,150.00,27/09/2018
Commissioning,Commissioning,Professional Services,60112635,ELECTORAL REFORM SERVICES,"5,071.92",07/09/2018
Commissioning,Commissioning,Publications,60111574,GOOD IMPRESSIONS (LONDON) LIMITED,240.00,11/09/2018
Commissioning,Commissioning,Publications,60111611,GOOD IMPRESSIONS (LONDON) LIMITED,210.00,11/09/2018
Commissioning,Commissioning,Publications,60112193,GOOD IMPRESSIONS (LONDON) LIMITED,210.00,19/09/2018
Commissioning,Commissioning,Printing-Contract,10014231,LETTERBOX DISTRIBUTION.COM,"10,237.50",24/09/2018
Commissioning,Commissioning,Publications,10014233,LETTERBOX DISTRIBUTION.COM,"10,237.50",24/09/2018
Commissioning,Commissioning,Training,40003017,OFFICE DEPOT UK LTD,8.72,07/09/2018
Commissioning,Commissioning,General Office Expenses,40003019,OFFICE DEPOT UK LTD,2.28,07/09/2018
Commissioning,Commissioning,Miscellaneous Expenses,60110384,JUDELINE NICOLAS,"1,287.50",21/09/2018
Commissioning,Commissioning,Miscellaneous Expenses,80019873,BRUNSWICK PRESS LTD,268.50,21/09/2018
Commissioning,Commissioning,Consultants Fees,60106594,SENATOR INTERNATIONAL,292.05,24/09/2018
COMMISSIONING,COMMISSIONING GROUP,Equipment and Materials Purcha,60111709,JOHN GRAHAM CONSTRUCTION LTD,"402,830.70",27/09/2018
COMMISSIONING,COMMISSIONING GROUP,Building Repairs & Maintenance,60093977,OAKRAY LIMITED,576.00,13/09/2018
COMMISSIONING,COMMISSIONING GROUP,Building Repairs & Maintenance,60099351,OAKRAY LIMITED,192.00,21/09/2018
COMMISSIONING,COMMISSIONING GROUP,Building Repairs & Maintenance,60099371,OAKRAY LIMITED,216.00,06/09/2018
COMMISSIONING,COMMISSIONING GROUP,Building Repairs & Maintenance,60099466,OAKRAY LIMITED,176.00,27/09/2018
COMMISSIONING,COMMISSIONING GROUP,Capital Construction and Works,60108806,OAKRAY LIMITED,"7,000.00",18/09/2018
COMMISSIONING,COMMISSIONING GROUP,Equipment and Materials Purcha,60113085,JOHN GRAHAM CONSTRUCTION LTD,"656,174.48",13/09/2018
COMMISSIONING,COMMISSIONING GROUP,Building Repairs & Maintenance,60112813,UK ENERGY PARTNERS LTD,"254,960.40",20/09/2018
COMMISSIONING,COMMISSIONING GROUP,Consultants Fees,80019755,MHTC TRANSPORT DATA COLLECTION,800.00,18/09/2018
COMMISSIONING,COMMISSIONING GROUP,Building Repairs & Maintenance,60112665,MRDA ARCHITECTS & CONSERVATION CONSULT,300.00,05/09/2018
COMMISSIONING,COMMISSIONING GROUP,Building Repairs & Maintenance,60112674,MRDA ARCHITECTS & CONSERVATION CONSULT,"2,405.50",05/09/2018
COMMISSIONING,COMMISSIONING GROUP,Building Repairs & Maintenance,60112564,JOHN TAYLOR & GREEN LTD,"33,838.48",03/09/2018
COMMISSIONING,COMMISSIONING GROUP,Other Energy,60112678,EDF ENERGY CUSTOMER FIELD SERVICES,95.86,04/09/2018
COMMISSIONING,COMMISSIONING GROUP,Consultants Fees,60112605,E-CAR CLUB,"2,694.17",18/09/2018
COMMISSIONING,COMMISSIONING GROUP,Consultants Fees,60113463,GALLIFORD TRY,"1,273,899.43",27/09/2018
COMMISSIONING,COMMISSIONING GROUP,Building Repairs & Maintenance,60113305,SMS CONNECTIONS LTD,"2,033.82",17/09/2018
COMMISSIONING,COMMISSIONING GROUP,Capital Construction and Works,60112465,TRAFFIC SURVEY PARTNERS (TSP) LTD,"1,200.00",03/09/2018
COMMISSIONING,COMMISSIONING GROUP,Equipment and Materials Purcha,60112513,TRAFFIC SURVEY PARTNERS (TSP) LTD,360.00,03/09/2018
COMMISSIONING,COMMISSIONING GROUP,Other Services,60113458,CYCLE CONFIDENT LTD,"8,091.36",28/09/2018
COMMISSIONING,COMMISSIONING GROUP,Other Services,60112689,CONWAY AECOM LTD,"118,990.80",19/09/2018
COMMISSIONING,COMMISSIONING GROUP,Other Services,60112412,CONWAY AECOM LTD,"21,786.08",25/09/2018
COMMISSIONING,COMMISSIONING GROUP,Other Services,60112692,CONWAY AECOM LTD,"37,130.35",06/09/2018
COMMISSIONING,COMMISSIONING GROUP,Other Services,60112730,CONWAY AECOM LTD,260.05,06/09/2018
COMMISSIONING,COMMISSIONING GROUP,Other Services,60112446,TRAFFIC SURVEY PARTNERS (TSP) LTD,240.00,03/09/2018
COMMISSIONING,COMMISSIONING GROUP,Other Services,60112326,BOUYGUES E&S INFRASTRUCTURE UK LTD,"1,447.29",05/09/2018
COMMISSIONING,COMMISSIONING GROUP,Other Services,60113874,CONWAY AECOM LTD,"60,186.09",26/09/2018
Corporate Accounting,Corporate Accounting,Other Local Authorities - Thir,EBX0246570,GREATER LONDON AUTHORITY,"236,146.00",20.09.18
Corporate Accounting,Corporate Accounting,Miscellaneous Expenses,80019521,REDACTED - PERSONAL DATA,256.04,04/09/2018
Corporate Accounting,Corporate Accounting,Miscellaneous Expenses,80019549,REDACTED - PERSONAL DATA,632.30,07/09/2018
Corporate Accounting,Corporate Accounting,Miscellaneous Expenses,80019655,REDACTED - PERSONAL DATA,21.39,11/09/2018
Corporate Accounting,Corporate Accounting,Miscellaneous Expenses,80019763,REDACTED - PERSONAL DATA,352.79,14/09/2018
Corporate Accounting,Corporate Accounting,Miscellaneous Expenses,80019818,REDACTED - PERSONAL DATA,"1,084.75",21/09/2018
Corporate Accounting,Corporate Accounting,Miscellaneous Expenses,80019885,REDACTED - PERSONAL DATA,"1,188.68",21/09/2018
Corporate Accounting,Corporate Accounting,Miscellaneous Expenses,80019557,REDACTED - PERSONAL DATA,122.72,06/09/2018
Corporate Accounting,Corporate Accounting,Miscellaneous Expenses,80019597,REDACTED - PERSONAL DATA,643.81,10/09/2018
Corporate Accounting,Corporate Accounting,Miscellaneous Expenses,80019616,REDACTED - PERSONAL DATA,302.73,10/09/2018
Corporate Accounting,Corporate Accounting,Miscellaneous Expenses,80019637,REDACTED - PERSONAL DATA,"1,349.53",12/09/2018
Corporate Accounting,Corporate Accounting,Miscellaneous Expenses,80019654,REDACTED - PERSONAL DATA,203.56,12/09/2018
Corporate Accounting,Corporate Accounting,Miscellaneous Expenses,80019684,REDACTED - PERSONAL DATA,276.09,13/09/2018
Corporate Accounting,Corporate Accounting,Miscellaneous Expenses,80019695,REDACTED - PERSONAL DATA,"1,000.00",13/09/2018
Corporate Accounting,Corporate Accounting,Miscellaneous Expenses,80019707,REDACTED - PERSONAL DATA,83.39,14/09/2018
Corporate Accounting,Corporate Accounting,Miscellaneous Expenses,80019712,REDACTED - PERSONAL DATA,214.51,17/09/2018
Corporate Accounting,Corporate Accounting,Miscellaneous Expenses,80019548,REDACTED - PERSONAL DATA,20.32,07/09/2018
Corporate Accounting,Corporate Accounting,Miscellaneous Expenses,80019454,REDACTED - PERSONAL DATA,206.80,03/09/2018
Corporate Accounting,Corporate Accounting,Miscellaneous Expenses,80019483,REDACTED - PERSONAL DATA,100.00,04/09/2018
Corporate Accounting,Corporate Accounting,Miscellaneous Expenses,80019530,REDACTED - PERSONAL DATA,38.49,05/09/2018
Corporate Accounting,Corporate Accounting,Miscellaneous Expenses,80019594,REDACTED - PERSONAL DATA,"3,647.52",10/09/2018
Corporate Accounting,Corporate Accounting,Miscellaneous Expenses,80019595,REDACTED - PERSONAL DATA,723.03,10/09/2018
Corporate Accounting,Corporate Accounting,Miscellaneous Expenses,80019705,REDACTED - PERSONAL DATA,124.32,14/09/2018
Corporate Accounting,Corporate Accounting,Miscellaneous Expenses,80019706,REDACTED - PERSONAL DATA,278.33,14/09/2018
Corporate Accounting,Corporate Accounting,Miscellaneous Expenses,80019708,REDACTED - PERSONAL DATA,411.82,14/09/2018
Corporate Accounting,Corporate Accounting,Miscellaneous Expenses,80019747,REDACTED - PERSONAL DATA,798.37,17/09/2018
Corporate Accounting,Corporate Accounting,Miscellaneous Expenses,80019803,REDACTED - PERSONAL DATA,"1,195.45",25/09/2018
Corporate Accounting,Corporate Accounting,Miscellaneous Expenses,80019850,REDACTED - PERSONAL DATA,30.00,24/09/2018
Corporate Accounting,Corporate Accounting,Miscellaneous Expenses,80019968,REDACTED - PERSONAL DATA,120.00,26/09/2018
Corporate Accounting,Corporate Accounting,Advertising,60112574,TMP (UK) LTD,418.00,28/09/2018
Corporate Accounting,Corporate Accounting,Advertising,60113238,TMP (UK) LTD,378.00,28/09/2018
Delivery Units,Adults and Communities,Stationery,40003029,OFFICE DEPOT UK LTD,5.83,20/09/2018
Delivery Units,Adults and Communities,Other Services,80019228,REDACTED - PERSONAL DATA,"1,500.00",07/09/2018
Delivery Units,Adults and Communities,Voluntary Associations - Third,20038351,SANCTUARY HOUSING ASSOCIATION,"6,351.61",21/09/2018
Delivery Units,Adults and Communities,Voluntary Associations - Third,20038352,SANCTUARY HOUSING ASSOCIATION,407.80,21/09/2018
Delivery Units,Adults and Communities,Voluntary Associations - Third,20038340,ELEANOR PALMER TRUST NO 2 A/C.,486.50,21/09/2018
Delivery Units,Adults and Communities,Voluntary Associations - Third,20038337,BARNET MENCAP,"11,142.65",21/09/2018
Delivery Units,Adults and Communities,Voluntary Associations - Third,20038339,CHRISTIAN ACTION (ENFIELD),365.80,21/09/2018
Delivery Units,Adults and Communities,Voluntary Associations - Third,20038336,ASRA GREATER LONDON HOUSING ASSOC,379.30,21/09/2018
Delivery Units,Adults and Communities,Voluntary Associations - Third,20038350,LINEN & WOOLLEN DRAPERS COTTAGE,730.11,21/09/2018
Delivery Units,Adults and Communities,Voluntary Associations - Third,20038343,HABINTEG HOUSING ASSOCIATION,446.37,21/09/2018
Delivery Units,Adults and Communities,Voluntary Associations - Third,20038348,ORCHARD HOUSING ASSOCIATION,196.62,21/09/2018
Delivery Units,Adults and Communities,Voluntary Associations - Third,20038349,ST PANCRAS & HUMANIST H.A.,661.55,21/09/2018
Delivery Units,Adults and Communities,Other Services,20038354,WILLOW HOUSING & CARE LTD.,711.38,21/09/2018
Delivery Units,Adults and Communities,Voluntary Associations - Third,20038344,JEWISH COMMUNITY HOUSING ASSOCIATIO,568.17,21/09/2018
Delivery Units,Adults and Communities,Voluntary Associations - Third,20038346,METROPOLITAN SUPPORT TRUST,502.00,21/09/2018
Delivery Units,Adults and Communities,Voluntary Associations - Third,20038347,METROPOLITAN SUPPORT TRUST,"5,475.20",21/09/2018
Delivery Units,Adults and Communities,Voluntary Associations - Third,20038341,GENESIS HOUSING ASSOCIATION LIMITED,"35,676.00",21/09/2018
Delivery Units,Adults and Communities,Voluntary Associations - Third,20038353,SCOTSCARE,361.52,21/09/2018
Delivery Units,Adults and Communities,Other Transfer Payments to Soc,80019787,REDACTED - PERSONAL DATA,330.15,19/09/2018
Delivery Units,Adults and Communities,Other Transfer Payments to Soc,80019788,REDACTED - PERSONAL DATA,305.85,19/09/2018
Delivery Units,Adults and Communities,Other Transfer Payments to Soc,80019791,REDACTED - PERSONAL DATA,768.50,19/09/2018
Delivery Units,Adults and Communities,Other Services,60113083,D.A. LANGUAGES LTD,235.50,14/09/2018
Delivery Units,Adults and Communities,Other Transfer Payments to Soc,60111309,ACTION FIRST RECRUITMENT,130.00,27/09/2018
Delivery Units,Adults and Communities,Other Services,60113154,LEE SECURITY LONDON LIMITED,636.00,20/09/2018
Delivery Units,Adults and Communities,Food Costs,60112919,MULLER MILK & INGREDIENTS,0.88,21/09/2018
Delivery Units,Adults and Communities,Food Costs,60112950,MULLER MILK & INGREDIENTS,0.88,14/09/2018
Delivery Units,Adults and Communities,Food Costs,60112964,MULLER MILK & INGREDIENTS,0.88,14/09/2018
Delivery Units,Adults and Communities,Voluntary Associations - Third,20038345,MIDDLESEX ASSOCIATION  FOR THE BLIN,"2,394.00",21/09/2018
Delivery Units,Adults and Communities,Voluntary Associations - Third,20038338,BARNET MENCAP,"28,583.00",21/09/2018
Delivery Units,Adults and Communities,Professional Services,60107688,BARNET CITIZENS ADVICE BUREAU,"84,705.00",10/09/2018
Delivery Units,Adults and Communities,Voluntary Associations - Third,20038335,AGE CONCERN,"58,333.00",21/09/2018
Delivery Units,Adults and Communities,Voluntary Associations - Third,20038342,GENESIS HOUSING ASSOCIATION LIMITED,"33,577.00",21/09/2018
Delivery Units,Adults and Communities,Other Services,80019897,POHWER,"2,860.00",24/09/2018
Delivery Units,Adults and Communities,Training,60109263,ADJUSTING THE BALANCE,600.00,11/09/2018
Delivery Units,Adults and Communities,Training,60112945,ADJUSTING THE BALANCE,"1,200.00",11/09/2018
Delivery Units,Adults and Communities,Other Services,60111652,COMMUNITY BARNET,"53,333.35",17/09/2018
Delivery Units,Adults and Communities,Other Services,80019833,CARE MONITORING 2000 LTD,"5,552.79",26/09/2018
Delivery Units,Adults and Communities,Other Services,80019800,MI HOMECARE LIMITED,"42,323.60",20/09/2018
Delivery Units,Adults and Communities,Other Transfer Payments to Soc,80019875,FRIERN RESIDENTIAL CARE HOME,200.00,27/09/2018
Delivery Units,Adults and Communities,Other Transfer Payments to Soc,80019625,OAK TREE,151.67,10/09/2018
Delivery Units,Adults and Communities,Other Transfer Payments to Soc,80019556,WHITTINGTON HOSPITAL NHS TRUST,21.60,07/09/2018
Delivery Units,Adults and Communities,Other Transfer Payments to Soc,80019725,REDACTED - PERSONAL DATA,165.00,17/09/2018
Delivery Units,Adults and Communities,Other Transfer Payments to Soc,80019738,REDACTED - PERSONAL DATA,460.00,17/09/2018
Delivery Units,Adults and Communities,Other Transfer Payments to Soc,80019733,REDACTED - PERSONAL DATA,99.60,17/09/2018
Delivery Units,Adults and Communities,Other Transfer Payments to Soc,80019623,REDACTED - PERSONAL DATA,99.60,10/09/2018
Delivery Units,Adults and Communities,Other Transfer Payments to Soc,80019624,REDACTED - PERSONAL DATA,186.80,10/09/2018
Delivery Units,Adults and Communities,Other Transfer Payments to Soc,80019730,REDACTED - PERSONAL DATA,340.00,17/09/2018
Delivery Units,Adults and Communities,Other Transfer Payments to Soc,80019728,REDACTED - PERSONAL DATA,80.00,17/09/2018
Delivery Units,Adults and Communities,Other Transfer Payments to Soc,80019720,REDACTED - PERSONAL DATA,99.60,17/09/2018
Delivery Units,Adults and Communities,Other Transfer Payments to Soc,80019721,REDACTED - PERSONAL DATA,155.00,17/09/2018
Delivery Units,Adults and Communities,Other Transfer Payments to Soc,80019727,REDACTED - PERSONAL DATA,160.00,17/09/2018
Delivery Units,Adults and Communities,Other Transfer Payments to Soc,80019742,REDACTED - PERSONAL DATA,80.00,17/09/2018
Delivery Units,Adults and Communities,Other Transfer Payments to Soc,80019735,REDACTED - PERSONAL DATA,183.80,17/09/2018
Delivery Units,Adults and Communities,Other Transfer Payments to Soc,80019740,REDACTED - PERSONAL DATA,336.00,17/09/2018
Delivery Units,Adults and Communities,Other Transfer Payments to Soc,80019737,REDACTED - PERSONAL DATA,300.00,17/09/2018
Delivery Units,Adults and Communities,Other Transfer Payments to Soc,80019622,REDACTED - PERSONAL DATA,200.00,10/09/2018
Delivery Units,Adults and Communities,Other Transfer Payments to Soc,80019741,REDACTED - PERSONAL DATA,99.60,17/09/2018
Delivery Units,Adults and Communities,Other Transfer Payments to Soc,80019731,REDACTED - PERSONAL DATA,99.60,17/09/2018
Delivery Units,Adults and Communities,Other Transfer Payments to Soc,80019726,REDACTED - PERSONAL DATA,200.00,17/09/2018
Delivery Units,Adults and Communities,Other Transfer Payments to Soc,80019739,REDACTED - PERSONAL DATA,93.40,17/09/2018
Delivery Units,Adults and Communities,Other Transfer Payments to Soc,80019736,REDACTED - PERSONAL DATA,280.00,17/09/2018
Delivery Units,Adults and Communities,Other Transfer Payments to Soc,80019744,REDACTED - PERSONAL DATA,99.60,17/09/2018
Delivery Units,Adults and Communities,Other Transfer Payments to Soc,80019743,REDACTED - PERSONAL DATA,160.00,17/09/2018
Delivery Units,Adults and Communities,Other Transfer Payments to Soc,80019723,REDACTED - PERSONAL DATA,99.60,17/09/2018
Delivery Units,Adults and Communities,Other Transfer Payments to Soc,80019898,REDACTED - PERSONAL DATA,300.00,24/09/2018
Delivery Units,Adults and Communities,Other Transfer Payments to Soc,80019734,REDACTED - PERSONAL DATA,99.60,17/09/2018
Delivery Units,Adults and Communities,Other Services,60113028,GOOD IMPRESSIONS (LONDON) LIMITED,360.00,11/09/2018
Delivery Units,Adults and Communities,Other Services,60113098,D.A. LANGUAGES LTD,27.00,14/09/2018
Delivery Units,Adults and Communities,Other Services,60113125,D.A. LANGUAGES LTD,130.00,14/09/2018
Delivery Units,Adults and Communities,Other Services,60113188,D.A. LANGUAGES LTD,234.00,14/09/2018
Delivery Units,Adults and Communities,Other Services,60113232,D.A. LANGUAGES LTD,91.25,14/09/2018
Delivery Units,Adults and Communities,Other Services,60113944,PRIME PRODUCTION LTD,500.00,26/09/2018
Delivery Units,Adults and Communities,Translation Exp / Interpret,60113091,D.A. LANGUAGES LTD,245.50,14/09/2018
Delivery Units,Adults and Communities,Translation Exp / Interpret,60113269,D.A. LANGUAGES LTD,463.48,18/09/2018
Delivery Units,Adults and Communities,Other Services,80019805,REDACTED - PERSONAL DATA,"3,885.71",25/09/2018
Delivery Units,Adults and Communities,Other Services,60112551,ANGEL SPRINGS LTD,12.60,05/09/2018
Delivery Units,Adults and Communities,Other Services,60112567,ANGEL SPRINGS LTD,33.85,05/09/2018
Delivery Units,Adults and Communities,Other Services,60112569,ANGEL SPRINGS LTD,42.25,05/09/2018
Delivery Units,Adults and Communities,Other Services,60112583,ANGEL SPRINGS LTD,12.60,05/09/2018
Delivery Units,Adults and Communities,Other Transfer Payments to Soc,60113507,KEVIN SCHEURING LTD,910.00,27/09/2018
Delivery Units,Adults and Communities,Other Transfer Payments to Soc,60101211,HCL SOCIAL CARE LTD,335.00,11/09/2018
Delivery Units,Adults and Communities,Other Transfer Payments to Soc,60105670,PEACEABLE HABITATION LTD,450.00,07/09/2018
Delivery Units,Adults and Communities,Other Transfer Payments to Soc,60103273,MAINPAY LTD,300.00,11/09/2018
Delivery Units,Adults and Communities,Other Transfer Payments to Soc,60103293,MAINPAY LTD,300.00,11/09/2018
Delivery Units,Adults and Communities,Other Transfer Payments to Soc,60103301,MAINPAY LTD,300.00,11/09/2018
Delivery Units,Adults and Communities,Other Transfer Payments to Soc,60103302,MAINPAY LTD,300.00,11/09/2018
Delivery Units,Adults and Communities,Other Transfer Payments to Soc,60103309,MAINPAY LTD,300.00,11/09/2018
Delivery Units,Adults and Communities,Other Transfer Payments to Soc,60112108,MAINPAY LTD,"-1,500.00",11/09/2018
Delivery Units,Adults and Communities,Other Services,60108854,KMCA CONSULTANCY SERVICES LTD,938.28,14/09/2018
Delivery Units,Adults and Communities,Other Services,80019996,APPLE CATERING HIRE,77.10,28/09/2018
Delivery Units,Adults and Communities,Other Services,80019955,THE DERWENT MEDICAL CENTRE,200.00,25/09/2018
Delivery Units,Adults and Communities,Other Agencies - Third Party P,90109629,NIGHTINGALE HOUSE,"2,807.14",27/09/2018
Delivery Units,Adults and Communities,Other Agencies - Third Party P,90105063,JEWISH CARE,"2,319.47",12/09/2018
Delivery Units,Adults and Communities,Other Agencies - Third Party P,90105064,JEWISH CARE,"2,319.44",12/09/2018
Delivery Units,Adults and Communities,Other Agencies - Third Party P,90105065,JEWISH CARE,"2,319.44",12/09/2018
Delivery Units,Adults and Communities,Other Agencies - Third Party P,90105066,JEWISH CARE,"2,319.44",12/09/2018
Delivery Units,Adults and Communities,Other Agencies - Third Party P,90105094,JEWISH CARE,"2,319.44",12/09/2018
Delivery Units,Adults and Communities,Other Agencies - Third Party P,90105166,JEWISH CARE,"2,568.84",12/09/2018
Delivery Units,Adults and Communities,Other Agencies - Third Party P,90105167,JEWISH CARE,"2,319.44",12/09/2018
Delivery Units,Adults and Communities,Other Agencies - Third Party P,90105168,JEWISH CARE,"2,319.44",12/09/2018
Delivery Units,Adults and Communities,Other Agencies - Third Party P,90105169,JEWISH CARE,"2,568.84",12/09/2018
Delivery Units,Adults and Communities,Other Agencies - Third Party P,90105170,JEWISH CARE,"2,319.44",12/09/2018
Delivery Units,Adults and Communities,Other Agencies - Third Party P,90105171,JEWISH CARE,"2,568.84",12/09/2018
Delivery Units,Adults and Communities,Other Agencies - Third Party P,90105172,JEWISH CARE,"2,568.84",12/09/2018
Delivery Units,Adults and Communities,Other Agencies - Third Party P,90105173,JEWISH CARE,"2,319.44",12/09/2018
Delivery Units,Adults and Communities,Other Agencies - Third Party P,90105174,JEWISH CARE,"2,319.44",12/09/2018
Delivery Units,Adults and Communities,Other Agencies - Third Party P,90105175,JEWISH CARE,"2,319.44",12/09/2018
Delivery Units,Adults and Communities,Other Agencies - Third Party P,90105176,JEWISH CARE,"2,568.84",12/09/2018
Delivery Units,Adults and Communities,Other Agencies - Third Party P,90105177,JEWISH CARE,"2,319.44",12/09/2018
Delivery Units,Adults and Communities,Other Agencies - Third Party P,90105179,JEWISH CARE,"2,568.84",12/09/2018
Delivery Units,Adults and Communities,Other Agencies - Third Party P,90105180,JEWISH CARE,"2,568.84",12/09/2018
Delivery Units,Adults and Communities,Other Agencies - Third Party P,90105181,JEWISH CARE,"2,319.44",12/09/2018
Delivery Units,Adults and Communities,Other Agencies - Third Party P,90105182,JEWISH CARE,"2,568.84",12/09/2018
Delivery Units,Adults and Communities,Other Agencies - Third Party P,90105183,JEWISH CARE,"2,568.84",12/09/2018
Delivery Units,Adults and Communities,Other Agencies - Third Party P,90105184,JEWISH CARE,"2,568.84",12/09/2018
Delivery Units,Adults and Communities,Other Agencies - Third Party P,90107132,JEWISH CARE,"2,319.44",17/09/2018
Delivery Units,Adults and Communities,Other Agencies - Third Party P,90108183,JEWISH CARE,366.98,19/09/2018
Delivery Units,Adults and Communities,Other Agencies - Third Party P,90108184,JEWISH CARE,"3,047.42",19/09/2018
Delivery Units,Adults and Communities,Other Agencies - Third Party P,90106433,FERNBANK NURSING HOME.,"2,320.20",14/09/2018
Delivery Units,Adults and Communities,Other Agencies - Third Party P,90106434,FERNBANK NURSING HOME.,"2,320.20",14/09/2018
Delivery Units,Adults and Communities,Other Agencies - Third Party P,90106435,FERNBANK NURSING HOME.,"2,320.20",14/09/2018
Delivery Units,Adults and Communities,Other Agencies - Third Party P,90106436,FERNBANK NURSING HOME.,"2,320.20",14/09/2018
Delivery Units,Adults and Communities,Other Agencies - Third Party P,90106437,FERNBANK NURSING HOME.,"2,335.50",14/09/2018
Delivery Units,Adults and Communities,Other Agencies - Third Party P,90106438,FERNBANK NURSING HOME.,"2,320.20",14/09/2018
Delivery Units,Adults and Communities,Other Agencies - Third Party P,90106440,FERNBANK NURSING HOME.,"2,571.30",14/09/2018
Delivery Units,Adults and Communities,Other Agencies - Third Party P,90106441,FERNBANK NURSING HOME.,"4,221.30",14/09/2018
Delivery Units,Adults and Communities,Other Agencies - Third Party P,90109656,FERNBANK NURSING HOME.,"1,547.81",27/09/2018
Delivery Units,Adults and Communities,Other Agencies - Third Party P,90107512,CEDARS NURSING HOME,"2,397.72",17/09/2018
Delivery Units,Adults and Communities,Other Agencies - Third Party P,90108197,CEDARS NURSING HOME,"4,071.43",19/09/2018
Delivery Units,Adults and Communities,Other Agencies - Third Party P,90108198,CEDARS NURSING HOME,"2,569.89",19/09/2018
Delivery Units,Adults and Communities,Other Agencies - Third Party P,90108199,CEDARS NURSING HOME,"2,320.37",19/09/2018
Delivery Units,Adults and Communities,Other Agencies - Third Party P,90108200,CEDARS NURSING HOME,"4,071.43",19/09/2018
Delivery Units,Adults and Communities,Other Agencies - Third Party P,90108201,CEDARS NURSING HOME,"2,571.43",19/09/2018
Delivery Units,Adults and Communities,Other Agencies - Third Party P,90108297,CEDARS NURSING HOME,"2,869.29",20/09/2018
Delivery Units,Adults and Communities,Other Agencies - Third Party P,90108305,BUPA NURSING HOMES LTD - ARKLEY,"2,227.40",20/09/2018
Delivery Units,Adults and Communities,Other Agencies - Third Party P,90108307,BUPA NURSING HOMES LTD - ARKLEY,"2,227.24",20/09/2018
Delivery Units,Adults and Communities,Other Agencies - Third Party P,90108308,BUPA NURSING HOMES LTD - ARKLEY,"2,227.24",20/09/2018
Delivery Units,Adults and Communities,Other Agencies - Third Party P,90108309,BUPA NURSING HOMES LTD - ARKLEY,"2,227.52",20/09/2018
Delivery Units,Adults and Communities,Other Agencies - Third Party P,90104100,AGUDAS ISRAEL HOUSING ASSCTN LTD,"2,736.86",14/09/2018
Delivery Units,Adults and Communities,Other Agencies - Third Party P,90109664,WESTMINSTER HEALTH CARE LTD,"2,310.48",27/09/2018
Delivery Units,Adults and Communities,Other Agencies - Third Party P,90109665,WESTMINSTER HEALTH CARE LTD,"2,293.60",27/09/2018
Delivery Units,Adults and Communities,Other Agencies - Third Party P,90109666,WESTMINSTER HEALTH CARE LTD,"2,310.48",27/09/2018
Delivery Units,Adults and Communities,Other Agencies - Third Party P,90108221,WESTMINSTER HEALTH CARE LTD,"5,857.43",19/09/2018
Delivery Units,Adults and Communities,Other Agencies - Third Party P,90109633,WESTMINSTER HEALTH CARE LTD,"2,244.13",27/09/2018
Delivery Units,Adults and Communities,Other Agencies - Third Party P,90103870,HENRY NIHILL HOUSE,"2,165.68",04/09/2018
Delivery Units,Adults and Communities,Other Agencies - Third Party P,90103871,HENRY NIHILL HOUSE,"2,165.68",04/09/2018
Delivery Units,Adults and Communities,Other Agencies - Third Party P,90103872,HENRY NIHILL HOUSE,"2,165.68",04/09/2018
Delivery Units,Adults and Communities,Other Agencies - Third Party P,90103873,HENRY NIHILL HOUSE,"2,165.68",04/09/2018
Delivery Units,Adults and Communities,Other Agencies - Third Party P,90103875,HENRY NIHILL HOUSE,"2,165.68",04/09/2018
Delivery Units,Adults and Communities,Other Agencies - Third Party P,90103876,HENRY NIHILL HOUSE,"2,165.68",04/09/2018
Delivery Units,Adults and Communities,Other Agencies - Third Party P,90103877,HENRY NIHILL HOUSE,"2,165.68",04/09/2018
Delivery Units,Adults and Communities,Other Agencies - Third Party P,90103878,HENRY NIHILL HOUSE,8.04,04/09/2018
Delivery Units,Adults and Communities,Other Agencies - Third Party P,90103879,HENRY NIHILL HOUSE,8.04,04/09/2018
Delivery Units,Adults and Communities,Other Agencies - Third Party P,90103880,HENRY NIHILL HOUSE,8.04,04/09/2018
Delivery Units,Adults and Communities,Other Agencies - Third Party P,90103881,HENRY NIHILL HOUSE,8.04,04/09/2018
Delivery Units,Adults and Communities,Other Agencies - Third Party P,90103882,HENRY NIHILL HOUSE,8.04,04/09/2018
Delivery Units,Adults and Communities,Other Agencies - Third Party P,90103884,HENRY NIHILL HOUSE,8.04,04/09/2018
Delivery Units,Adults and Communities,Other Agencies - Third Party P,90103885,HENRY NIHILL HOUSE,8.04,04/09/2018
Delivery Units,Adults and Communities,Other Agencies - Third Party P,90103886,HENRY NIHILL HOUSE,8.04,04/09/2018
Delivery Units,Adults and Communities,Other Agencies - Third Party P,90105236,HENRY NIHILL HOUSE,"2,167.36",18/09/2018
Delivery Units,Adults and Communities,Other Agencies - Third Party P,90105237,HENRY NIHILL HOUSE,"2,167.36",18/09/2018
Delivery Units,Adults and Communities,Other Agencies - Third Party P,90105238,HENRY NIHILL HOUSE,"2,167.36",18/09/2018
Delivery Units,Adults and Communities,Other Agencies - Third Party P,90105239,HENRY NIHILL HOUSE,"2,167.36",18/09/2018
Delivery Units,Adults and Communities,Other Agencies - Third Party P,90105240,HENRY NIHILL HOUSE,"2,167.36",18/09/2018
Delivery Units,Adults and Communities,Other Agencies - Third Party P,90105242,HENRY NIHILL HOUSE,"2,167.36",18/09/2018
Delivery Units,Adults and Communities,Other Agencies - Third Party P,90105243,HENRY NIHILL HOUSE,"2,167.36",18/09/2018
Delivery Units,Adults and Communities,Other Agencies - Third Party P,90105244,HENRY NIHILL HOUSE,"2,165.68",18/09/2018
Delivery Units,Adults and Communities,Other Agencies - Third Party P,90104742,THE LEONARD CHESHIRE FOUNDATION,"6,532.14",26/09/2018
Delivery Units,Adults and Communities,Other Agencies - Third Party P,90104745,LIFESTYLE CARE PLC,"2,655.55",11/09/2018
Delivery Units,Adults and Communities,Other Agencies - Third Party P,90104746,LIFESTYLE CARE PLC,"2,399.58",11/09/2018
Delivery Units,Adults and Communities,Other Agencies - Third Party P,90104748,LIFESTYLE CARE PLC,"2,655.55",11/09/2018
Delivery Units,Adults and Communities,Other Agencies - Third Party P,90104749,LIFESTYLE CARE PLC,"2,397.72",11/09/2018
Delivery Units,Adults and Communities,Other Agencies - Third Party P,90104750,LIFESTYLE CARE PLC,"2,397.72",11/09/2018
Delivery Units,Adults and Communities,Other Agencies - Third Party P,90104751,LIFESTYLE CARE PLC,"2,397.72",11/09/2018
Delivery Units,Adults and Communities,Other Agencies - Third Party P,90104752,LIFESTYLE CARE PLC,"2,655.55",11/09/2018
Delivery Units,Adults and Communities,Other Agencies - Third Party P,90104753,LIFESTYLE CARE PLC,"2,397.72",11/09/2018
Delivery Units,Adults and Communities,Other Agencies - Third Party P,90104788,LIFESTYLE CARE PLC,"2,655.55",11/09/2018
Delivery Units,Adults and Communities,Other Agencies - Third Party P,90104789,LIFESTYLE CARE PLC,"2,399.58",11/09/2018
Delivery Units,Adults and Communities,Other Agencies - Third Party P,90104791,LIFESTYLE CARE PLC,"2,655.55",11/09/2018
Delivery Units,Adults and Communities,Other Agencies - Third Party P,90104792,LIFESTYLE CARE PLC,"2,397.72",11/09/2018
Delivery Units,Adults and Communities,Other Agencies - Third Party P,90104793,LIFESTYLE CARE PLC,"2,397.72",11/09/2018
Delivery Units,Adults and Communities,Other Agencies - Third Party P,90104794,LIFESTYLE CARE PLC,"2,397.72",11/09/2018
Delivery Units,Adults and Communities,Other Agencies - Third Party P,90104795,LIFESTYLE CARE PLC,"2,655.55",11/09/2018
Delivery Units,Adults and Communities,Other Agencies - Third Party P,90104796,LIFESTYLE CARE PLC,"2,397.72",11/09/2018
Delivery Units,Adults and Communities,Other Agencies - Third Party P,90105197,CARETECH COMMUNITY SERVICES LTD,"4,767.43",28/09/2018
Delivery Units,Adults and Communities,Other Agencies - Third Party P,90109641,SONESTA NURSING HOME LTD.,"2,569.89",27/09/2018
Delivery Units,Adults and Communities,Other Agencies - Third Party P,90109645,SONESTA NURSING HOME LTD.,"2,655.55",27/09/2018
Delivery Units,Adults and Communities,Other Agencies - Third Party P,90109646,SONESTA NURSING HOME LTD.,"-1,082.84",27/09/2018
Delivery Units,Adults and Communities,Other Agencies - Third Party P,90108218,MEERA NURSING HOME LIMITED,"2,445.68",19/09/2018
Delivery Units,Adults and Communities,Other Agencies - Third Party P,90109583,MEERA NURSING HOME LIMITED,"2,621.27",27/09/2018
Delivery Units,Adults and Communities,Other Agencies - Third Party P,90109584,MEERA NURSING HOME LIMITED,"2,366.79",27/09/2018
Delivery Units,Adults and Communities,Other Agencies - Third Party P,90109585,MEERA NURSING HOME LIMITED,"2,366.79",27/09/2018
Delivery Units,Adults and Communities,Other Agencies - Third Party P,90103887,NEWCENTURY CARE LTD,"3,321.43",04/09/2018
Delivery Units,Adults and Communities,Other Agencies - Third Party P,90103901,NEWCENTURY CARE LTD,-385.71,04/09/2018
Delivery Units,Adults and Communities,Other Agencies - Third Party P,90109349,NEWCENTURY CARE LTD,"2,398.56",25/09/2018
Delivery Units,Adults and Communities,Other Agencies - Third Party P,90109350,NEWCENTURY CARE LTD,"3,214.29",25/09/2018
Delivery Units,Adults and Communities,Other Agencies - Third Party P,90109351,NEWCENTURY CARE LTD,"3,642.86",25/09/2018
Delivery Units,Adults and Communities,Other Agencies - Third Party P,90109352,NEWCENTURY CARE LTD,"4,062.86",25/09/2018
Delivery Units,Adults and Communities,Other Agencies - Third Party P,90109354,NEWCENTURY CARE LTD,"4,200.00",25/09/2018
Delivery Units,Adults and Communities,Other Agencies - Third Party P,90109355,NEWCENTURY CARE LTD,"3,857.14",25/09/2018
Delivery Units,Adults and Communities,Other Agencies - Third Party P,90109356,NEWCENTURY CARE LTD,"3,214.29",25/09/2018
Delivery Units,Adults and Communities,Other Agencies - Third Party P,90109358,NEWCENTURY CARE LTD,"3,214.29",25/09/2018
Delivery Units,Adults and Communities,Other Agencies - Third Party P,90109607,BUPA CARE HOMES,"2,165.68",27/09/2018
Delivery Units,Adults and Communities,Other Agencies - Third Party P,90109608,BUPA CARE HOMES,"3,400.00",27/09/2018
Delivery Units,Adults and Communities,Other Agencies - Third Party P,90109609,BUPA CARE HOMES,"2,387.19",27/09/2018
Delivery Units,Adults and Communities,Other Agencies - Third Party P,90109610,BUPA CARE HOMES,"2,466.76",27/09/2018
Delivery Units,Adults and Communities,Other Agencies - Third Party P,90103694,BUPA CARE HOMES,"3,764.29",03/09/2018
Delivery Units,Adults and Communities,Other Agencies - Third Party P,90103695,BUPA CARE HOMES,"2,729.11",03/09/2018
Delivery Units,Adults and Communities,Other Agencies - Third Party P,90103710,BUPA CARE HOMES,"2,321.92",06/09/2018
Delivery Units,Adults and Communities,Other Agencies - Third Party P,90103711,BUPA CARE HOMES,"2,094.52",06/09/2018
Delivery Units,Adults and Communities,Other Agencies - Third Party P,90103712,BUPA CARE HOMES,"2,549.32",06/09/2018
Delivery Units,Adults and Communities,Other Agencies - Third Party P,90104771,BUPA CARE HOMES,"1,625.52",11/09/2018
Delivery Units,Adults and Communities,Other Agencies - Third Party P,90104772,BUPA CARE HOMES,"2,167.36",11/09/2018
Delivery Units,Adults and Communities,Other Agencies - Third Party P,90104773,BUPA CARE HOMES,"2,399.58",11/09/2018
Delivery Units,Adults and Communities,Other Agencies - Third Party P,90104774,BUPA CARE HOMES,"2,322.17",11/09/2018
Delivery Units,Adults and Communities,Other Agencies - Third Party P,90104775,BUPA CARE HOMES,774.06,11/09/2018
Delivery Units,Adults and Communities,Other Agencies - Third Party P,90109613,BUPA CARE HOMES,"2,399.58",27/09/2018
Delivery Units,Adults and Communities,Other Agencies - Third Party P,90109616,BUPA CARE HOMES,"2,399.58",27/09/2018
Delivery Units,Adults and Communities,Other Agencies - Third Party P,90109618,BUPA CARE HOMES,"2,729.11",27/09/2018
Delivery Units,Adults and Communities,Other Agencies - Third Party P,90109619,BUPA CARE HOMES,"3,764.29",27/09/2018
Delivery Units,Adults and Communities,Other Agencies - Third Party P,90108188,ASPEN VILLAGES LTD,"2,558.10",19/09/2018
Delivery Units,Adults and Communities,Other Agencies - Third Party P,90103708,FOUR SEASONS HEALTH CARE,"2,291.36",03/09/2018
Delivery Units,Adults and Communities,Other Agencies - Third Party P,90103709,FOUR SEASONS HEALTH CARE,"1,800.35",03/09/2018
Delivery Units,Adults and Communities,Other Agencies - Third Party P,90106447,FOUR SEASONS HEALTH CARE,491.01,14/09/2018
Delivery Units,Adults and Communities,Other Agencies - Third Party P,90108226,FOUR SEASONS HEALTH CARE,"2,291.36",19/09/2018
Delivery Units,Adults and Communities,Other Agencies - Third Party P,90108227,FOUR SEASONS HEALTH CARE,"2,291.36",19/09/2018
Delivery Units,Adults and Communities,Other Agencies - Third Party P,90108228,FOUR SEASONS HEALTH CARE,"2,291.36",19/09/2018
Delivery Units,Adults and Communities,Other Agencies - Third Party P,90108229,FOUR SEASONS HEALTH CARE,"2,291.36",19/09/2018
Delivery Units,Adults and Communities,Other Agencies - Third Party P,90109377,SANCTUARY CARE LTD,"2,490.81",25/09/2018
Delivery Units,Adults and Communities,Other Agencies - Third Party P,90104739,BUPA CARE HOMES,"2,466.05",14/09/2018
Delivery Units,Adults and Communities,Other Agencies - Third Party P,90104740,BUPA CARE HOMES,"3,007.40",14/09/2018
Delivery Units,Adults and Communities,Other Agencies - Third Party P,90108270,BUPA CARE HOMES,"3,305.91",20/09/2018
Delivery Units,Adults and Communities,Other Agencies - Third Party P,90108271,BUPA CARE HOMES,"3,235.71",20/09/2018
Delivery Units,Adults and Communities,Other Agencies - Third Party P,90104088,SAGE NURSING HOME,"4,207.14",07/09/2018
Delivery Units,Adults and Communities,Other Agencies - Third Party P,90104090,SAGE NURSING HOME,"5,314.29",10/09/2018
Delivery Units,Adults and Communities,Other Agencies - Third Party P,90104092,SAGE NURSING HOME,"2,397.72",10/09/2018
Delivery Units,Adults and Communities,Other Agencies - Third Party P,90104094,SAGE NURSING HOME,"2,788.32",10/09/2018
Delivery Units,Adults and Communities,Other Agencies - Third Party P,90104095,SAGE NURSING HOME,"2,517.60",10/09/2018
Delivery Units,Adults and Communities,Other Agencies - Third Party P,90104096,SAGE NURSING HOME,"2,517.60",10/09/2018
Delivery Units,Adults and Communities,Other Agencies - Third Party P,90108944,SAGE NURSING HOME,9.18,25/09/2018
Delivery Units,Adults and Communities,Other Agencies - Third Party P,90105233,M D HOMES,"2,973.21",13/09/2018
Delivery Units,Adults and Communities,Other Agencies - Third Party P,90109105,AUTUMN GARDENS,"4,800.00",25/09/2018
Delivery Units,Adults and Communities,Other Agencies - Third Party P,90109110,AUTUMN GARDENS,"4,800.00",25/09/2018
Delivery Units,Adults and Communities,Other Agencies - Third Party P,90104110,CARE UK COMMUNITY PARTNERSHIPS,"3,316.07",06/09/2018
Delivery Units,Adults and Communities,Other Agencies - Third Party P,90107818,SUNRISE SENIOR LIVING,"6,176.40",18/09/2018
Delivery Units,Adults and Communities,Other Agencies - Third Party P,90101671,ABBEY RAVENSCROFT PARK NURSING HOME,"-2,338.59",27/09/2018
Delivery Units,Adults and Communities,Other Agencies - Third Party P,90103696,ABBEY RAVENSCROFT PARK NURSING HOME,-735.00,27/09/2018
Delivery Units,Adults and Communities,Other Agencies - Third Party P,90109587,ABBEY RAVENSCROFT PARK NURSING HOME,"3,214.29",27/09/2018
Delivery Units,Adults and Communities,Other Agencies - Third Party P,90109589,ABBEY RAVENSCROFT PARK NURSING HOME,"3,214.29",27/09/2018
Delivery Units,Adults and Communities,Other Agencies - Third Party P,90109590,ABBEY RAVENSCROFT PARK NURSING HOME,"3,214.29",27/09/2018
Delivery Units,Adults and Communities,Other Agencies - Third Party P,90109595,ABBEY RAVENSCROFT PARK NURSING HOME,"2,698.37",27/09/2018
Delivery Units,Adults and Communities,Other Agencies - Third Party P,90109596,ABBEY RAVENSCROFT PARK NURSING HOME,"2,698.37",27/09/2018
Delivery Units,Adults and Communities,Other Agencies - Third Party P,90109597,ABBEY RAVENSCROFT PARK NURSING HOME,"3,214.29",27/09/2018
Delivery Units,Adults and Communities,Other Agencies - Third Party P,90109599,ABBEY RAVENSCROFT PARK NURSING HOME,"3,214.29",27/09/2018
Delivery Units,Adults and Communities,Other Agencies - Third Party P,90109600,ABBEY RAVENSCROFT PARK NURSING HOME,"3,679.24",27/09/2018
Delivery Units,Adults and Communities,Other Agencies - Third Party P,90109602,ABBEY RAVENSCROFT PARK NURSING HOME,"2,698.37",27/09/2018
Delivery Units,Adults and Communities,Other Agencies - Third Party P,90109120,CARLTON COURT (TLC GROUP),"4,285.71",25/09/2018
Delivery Units,Adults and Communities,Other Agencies - Third Party P,90109121,CARLTON COURT (TLC GROUP),"3,616.07",25/09/2018
Delivery Units,Adults and Communities,Other Agencies - Third Party P,90109124,CARLTON COURT (TLC GROUP),"5,142.86",25/09/2018
Delivery Units,Adults and Communities,Other Agencies - Third Party P,90109126,CARLTON COURT (TLC GROUP),"2,369.79",25/09/2018
Delivery Units,Adults and Communities,Other Agencies - Third Party P,90109127,CARLTON COURT (TLC GROUP),"3,000.00",25/09/2018
Delivery Units,Adults and Communities,Other Agencies - Third Party P,90108212,ASHTON LODGE CARE CENTRE,"3,621.21",19/09/2018
Delivery Units,Adults and Communities,Other Agencies - Third Party P,90109376,WESTGATE HOUSE CARE CENTRE,"3,605.57",25/09/2018
Delivery Units,Adults and Communities,Other Agencies - Third Party P,90104743,VICTORIA CARE CENTRE,"2,985.95",10/09/2018
Delivery Units,Adults and Communities,Other Agencies - Third Party P,90109134,KARUNA MANOR,"4,071.43",25/09/2018
Delivery Units,Adults and Communities,Other Agencies - Third Party P,90108232,ST ANNS HOME-LITTLE SISTERS OF THE POOR,"2,397.73",19/09/2018
Delivery Units,Adults and Communities,Other Agencies - Third Party P,90101093,PINELODGE CARE HOME,"2,655.55",06/09/2018
Delivery Units,Adults and Communities,Other Agencies - Third Party P,90104720,GCH (HERTFORDSHIRE) LTD T/A,"2,358.76",10/09/2018
Delivery Units,Adults and Communities,Other Agencies - Third Party P,90108203,GCH (HERTFORDSHIRE) LTD T/A,"2,358.76",19/09/2018
Delivery Units,Adults and Communities,Other Agencies - Third Party P,90108233,GCH (HERTFORDSHIRE) LTD T/A,"-1,684.83",19/09/2018
Delivery Units,Adults and Communities,Other Agencies - Third Party P,90107134,AARANDALE MANOR CARE HOME,"9,508.58",17/09/2018
Delivery Units,Adults and Communities,Other Agencies - Third Party P,90107206,AARANDALE MANOR CARE HOME,"23,300.00",17/09/2018
Delivery Units,Adults and Communities,Other Agencies - Third Party P,90109581,AARANDALE MANOR CARE HOME,"4,285.71",27/09/2018
Delivery Units,Adults and Communities,Other Agencies - Third Party P,90109582,AARANDALE MANOR CARE HOME,"2,487.64",27/09/2018
Delivery Units,Adults and Communities,Other Agencies - Third Party P,90109662,LADY OF THE VALE NURSING HOME,"3,642.86",27/09/2018
Delivery Units,Adults and Communities,Other Agencies - Third Party P,90109653,BONDCARE LONDON (THE FOUNTAINS),"2,138.00",27/09/2018
Delivery Units,Adults and Communities,Other Agencies - Third Party P,90109654,BONDCARE LONDON (THE FOUNTAINS),"2,138.00",27/09/2018
Delivery Units,Adults and Communities,Other Agencies - Third Party P,90109655,BONDCARE LONDON (THE FOUNTAINS),"2,138.00",27/09/2018
Delivery Units,Adults and Communities,Other Agencies - Third Party P,90104802,BUPA CARE HOMES LTD (SUTTON LODGE),"2,420.00",11/09/2018
Delivery Units,Adults and Communities,Other Agencies - Third Party P,90108299,ST JOHNS WOOD CARE CENTRE,"2,764.07",28/09/2018
Delivery Units,Adults and Communities,Other Agencies - Third Party P,90109136,ACACIA CARE LTD,"4,250.00",25/09/2018
Delivery Units,Adults and Communities,Other Agencies - Third Party P,90104570,ROSEACRES CARE HOME LIMITED,"3,321.43",10/09/2018
Delivery Units,Adults and Communities,Other Agencies - Third Party P,90104571,ROSEACRES CARE HOME LIMITED,"1,553.72",10/09/2018
Delivery Units,Adults and Communities,Other Agencies - Third Party P,90104573,ROSEACRES CARE HOME LIMITED,"3,321.43",10/09/2018
Delivery Units,Adults and Communities,Other Agencies - Third Party P,90104574,ROSEACRES CARE HOME LIMITED,"2,585.02",10/09/2018
Delivery Units,Adults and Communities,Other Agencies - Third Party P,90104575,ROSEACRES CARE HOME LIMITED,"3,321.43",10/09/2018
Delivery Units,Adults and Communities,Other Agencies - Third Party P,90104577,ROSEACRES CARE HOME LIMITED,"2,988.53",10/09/2018
Delivery Units,Adults and Communities,Other Agencies - Third Party P,90104579,ROSEACRES CARE HOME LIMITED,"2,584.50",10/09/2018
Delivery Units,Adults and Communities,Other Agencies - Third Party P,90104580,ROSEACRES CARE HOME LIMITED,"2,584.50",10/09/2018
Delivery Units,Adults and Communities,Other Agencies - Third Party P,90104581,ROSEACRES CARE HOME LIMITED,"2,584.50",10/09/2018
Delivery Units,Adults and Communities,Other Agencies - Third Party P,90104582,ROSEACRES CARE HOME LIMITED,"2,524.63",10/09/2018
Delivery Units,Adults and Communities,Other Agencies - Third Party P,90104583,ROSEACRES CARE HOME LIMITED,"3,764.29",10/09/2018
Delivery Units,Adults and Communities,Other Agencies - Third Party P,90104585,ROSEACRES CARE HOME LIMITED,"3,321.43",10/09/2018
Delivery Units,Adults and Communities,Other Agencies - Third Party P,90104586,ROSEACRES CARE HOME LIMITED,"2,584.50",10/09/2018
Delivery Units,Adults and Communities,Other Agencies - Third Party P,90104587,ROSEACRES CARE HOME LIMITED,"2,584.50",10/09/2018
Delivery Units,Adults and Communities,Other Agencies - Third Party P,90104588,ROSEACRES CARE HOME LIMITED,"3,321.43",10/09/2018
Delivery Units,Adults and Communities,Other Agencies - Third Party P,90106403,ELEANOR PALMER TRUST NO 2 A/C.,55.71,14/09/2018
Delivery Units,Adults and Communities,Other Agencies - Third Party P,90106405,ELEANOR PALMER TRUST NO 2 A/C.,55.71,14/09/2018
Delivery Units,Adults and Communities,Other Agencies - Third Party P,90106406,ELEANOR PALMER TRUST NO 2 A/C.,51.17,14/09/2018
Delivery Units,Adults and Communities,Other Agencies - Third Party P,90106407,ELEANOR PALMER TRUST NO 2 A/C.,55.71,14/09/2018
Delivery Units,Adults and Communities,Other Agencies - Third Party P,90106408,ELEANOR PALMER TRUST NO 2 A/C.,72.64,14/09/2018
Delivery Units,Adults and Communities,Other Agencies - Third Party P,90106409,ELEANOR PALMER TRUST NO 2 A/C.,55.71,14/09/2018
Delivery Units,Adults and Communities,Other Agencies - Third Party P,90106410,ELEANOR PALMER TRUST NO 2 A/C.,72.64,14/09/2018
Delivery Units,Adults and Communities,Other Agencies - Third Party P,90106411,ELEANOR PALMER TRUST NO 2 A/C.,204.60,14/09/2018
Delivery Units,Adults and Communities,Other Agencies - Third Party P,90106412,ELEANOR PALMER TRUST NO 2 A/C.,51.17,14/09/2018
Delivery Units,Adults and Communities,Other Agencies - Third Party P,90106413,ELEANOR PALMER TRUST NO 2 A/C.,12.11,14/09/2018
Delivery Units,Adults and Communities,Other Agencies - Third Party P,90106414,ELEANOR PALMER TRUST NO 2 A/C.,72.64,14/09/2018
Delivery Units,Adults and Communities,Other Agencies - Third Party P,90106415,ELEANOR PALMER TRUST NO 2 A/C.,72.64,14/09/2018
Delivery Units,Adults and Communities,Other Agencies - Third Party P,90106416,ELEANOR PALMER TRUST NO 2 A/C.,51.17,14/09/2018
Delivery Units,Adults and Communities,Other Agencies - Third Party P,90106417,ELEANOR PALMER TRUST NO 2 A/C.,58.11,14/09/2018
Delivery Units,Adults and Communities,Other Agencies - Third Party P,90106418,ELEANOR PALMER TRUST NO 2 A/C.,55.71,14/09/2018
Delivery Units,Adults and Communities,Other Agencies - Third Party P,90107136,ELEANOR PALMER TRUST NO 2 A/C.,57.57,17/09/2018
Delivery Units,Adults and Communities,Other Agencies - Third Party P,90107137,ELEANOR PALMER TRUST NO 2 A/C.,57.57,17/09/2018
Delivery Units,Adults and Communities,Other Agencies - Third Party P,90107138,ELEANOR PALMER TRUST NO 2 A/C.,52.88,17/09/2018
Delivery Units,Adults and Communities,Other Agencies - Third Party P,90107139,ELEANOR PALMER TRUST NO 2 A/C.,57.57,17/09/2018
Delivery Units,Adults and Communities,Other Agencies - Third Party P,90107140,ELEANOR PALMER TRUST NO 2 A/C.,75.06,17/09/2018
Delivery Units,Adults and Communities,Other Agencies - Third Party P,90107141,ELEANOR PALMER TRUST NO 2 A/C.,57.57,17/09/2018
Delivery Units,Adults and Communities,Other Agencies - Third Party P,90107142,ELEANOR PALMER TRUST NO 2 A/C.,75.06,17/09/2018
Delivery Units,Adults and Communities,Other Agencies - Third Party P,90107143,ELEANOR PALMER TRUST NO 2 A/C.,211.42,17/09/2018
Delivery Units,Adults and Communities,Other Agencies - Third Party P,90107144,ELEANOR PALMER TRUST NO 2 A/C.,52.88,17/09/2018
Delivery Units,Adults and Communities,Other Agencies - Third Party P,90107145,ELEANOR PALMER TRUST NO 2 A/C.,75.06,17/09/2018
Delivery Units,Adults and Communities,Other Agencies - Third Party P,90107146,ELEANOR PALMER TRUST NO 2 A/C.,75.06,17/09/2018
Delivery Units,Adults and Communities,Other Agencies - Third Party P,90107147,ELEANOR PALMER TRUST NO 2 A/C.,75.06,17/09/2018
Delivery Units,Adults and Communities,Other Agencies - Third Party P,90107148,ELEANOR PALMER TRUST NO 2 A/C.,52.88,17/09/2018
Delivery Units,Adults and Communities,Other Agencies - Third Party P,90107149,ELEANOR PALMER TRUST NO 2 A/C.,60.05,17/09/2018
Delivery Units,Adults and Communities,Other Agencies - Third Party P,90107150,ELEANOR PALMER TRUST NO 2 A/C.,57.57,17/09/2018
Delivery Units,Adults and Communities,Other Agencies - Third Party P,90107151,ELEANOR PALMER TRUST NO 2 A/C.,75.06,17/09/2018
Delivery Units,Adults and Communities,Other Agencies - Third Party P,90107152,ELEANOR PALMER TRUST NO 2 A/C.,75.06,17/09/2018
Delivery Units,Adults and Communities,Other Agencies - Third Party P,90107153,ELEANOR PALMER TRUST NO 2 A/C.,43.59,17/09/2018
Delivery Units,Adults and Communities,Other Agencies - Third Party P,90107154,ELEANOR PALMER TRUST NO 2 A/C.,55.71,17/09/2018
Delivery Units,Adults and Communities,Other Agencies - Third Party P,90107155,ELEANOR PALMER TRUST NO 2 A/C.,55.71,17/09/2018
Delivery Units,Adults and Communities,Other Agencies - Third Party P,90107156,ELEANOR PALMER TRUST NO 2 A/C.,51.17,17/09/2018
Delivery Units,Adults and Communities,Other Agencies - Third Party P,90107157,ELEANOR PALMER TRUST NO 2 A/C.,55.71,17/09/2018
Delivery Units,Adults and Communities,Other Agencies - Third Party P,90107158,ELEANOR PALMER TRUST NO 2 A/C.,72.64,17/09/2018
Delivery Units,Adults and Communities,Other Agencies - Third Party P,90107159,ELEANOR PALMER TRUST NO 2 A/C.,55.71,17/09/2018
Delivery Units,Adults and Communities,Other Agencies - Third Party P,90107160,ELEANOR PALMER TRUST NO 2 A/C.,72.64,17/09/2018
Delivery Units,Adults and Communities,Other Agencies - Third Party P,90107161,ELEANOR PALMER TRUST NO 2 A/C.,204.60,17/09/2018
Delivery Units,Adults and Communities,Other Agencies - Third Party P,90107162,ELEANOR PALMER TRUST NO 2 A/C.,51.17,17/09/2018
Delivery Units,Adults and Communities,Other Agencies - Third Party P,90107163,ELEANOR PALMER TRUST NO 2 A/C.,72.64,17/09/2018
Delivery Units,Adults and Communities,Other Agencies - Third Party P,90107164,ELEANOR PALMER TRUST NO 2 A/C.,72.64,17/09/2018
Delivery Units,Adults and Communities,Other Agencies - Third Party P,90107165,ELEANOR PALMER TRUST NO 2 A/C.,72.64,17/09/2018
Delivery Units,Adults and Communities,Other Agencies - Third Party P,90107166,ELEANOR PALMER TRUST NO 2 A/C.,51.17,17/09/2018
Delivery Units,Adults and Communities,Other Agencies - Third Party P,90107167,ELEANOR PALMER TRUST NO 2 A/C.,30.99,17/09/2018
Delivery Units,Adults and Communities,Other Agencies - Third Party P,90107168,ELEANOR PALMER TRUST NO 2 A/C.,55.71,17/09/2018
Delivery Units,Adults and Communities,Other Agencies - Third Party P,90107169,ELEANOR PALMER TRUST NO 2 A/C.,72.64,17/09/2018
Delivery Units,Adults and Communities,Other Agencies - Third Party P,90107170,ELEANOR PALMER TRUST NO 2 A/C.,72.64,17/09/2018
Delivery Units,Adults and Communities,Other Agencies - Third Party P,90107171,ELEANOR PALMER TRUST NO 2 A/C.,72.64,17/09/2018
Delivery Units,Adults and Communities,Other Agencies - Third Party P,90107172,ELEANOR PALMER TRUST NO 2 A/C.,47.76,17/09/2018
Delivery Units,Adults and Communities,Other Agencies - Third Party P,90107173,ELEANOR PALMER TRUST NO 2 A/C.,-226.40,17/09/2018
Delivery Units,Adults and Communities,Other Agencies - Third Party P,90107174,ELEANOR PALMER TRUST NO 2 A/C.,75.06,17/09/2018
Delivery Units,Adults and Communities,Other Agencies - Third Party P,90107175,ELEANOR PALMER TRUST NO 2 A/C.,75.06,17/09/2018
Delivery Units,Adults and Communities,Other Agencies - Third Party P,90107176,ELEANOR PALMER TRUST NO 2 A/C.,52.88,17/09/2018
Delivery Units,Adults and Communities,Other Agencies - Third Party P,90107177,ELEANOR PALMER TRUST NO 2 A/C.,57.57,17/09/2018
Delivery Units,Adults and Communities,Other Agencies - Third Party P,90107178,ELEANOR PALMER TRUST NO 2 A/C.,75.06,17/09/2018
Delivery Units,Adults and Communities,Other Agencies - Third Party P,90107179,ELEANOR PALMER TRUST NO 2 A/C.,75.06,17/09/2018
Delivery Units,Adults and Communities,Other Agencies - Third Party P,90107180,ELEANOR PALMER TRUST NO 2 A/C.,75.06,17/09/2018
Delivery Units,Adults and Communities,Other Agencies - Third Party P,90107181,ELEANOR PALMER TRUST NO 2 A/C.,75.06,17/09/2018
Delivery Units,Adults and Communities,Other Agencies - Third Party P,90107182,ELEANOR PALMER TRUST NO 2 A/C.,57.57,17/09/2018
Delivery Units,Adults and Communities,Other Agencies - Third Party P,90107183,ELEANOR PALMER TRUST NO 2 A/C.,75.06,17/09/2018
Delivery Units,Adults and Communities,Other Agencies - Third Party P,90107184,ELEANOR PALMER TRUST NO 2 A/C.,211.42,17/09/2018
Delivery Units,Adults and Communities,Other Agencies - Third Party P,90107185,ELEANOR PALMER TRUST NO 2 A/C.,52.88,17/09/2018
Delivery Units,Adults and Communities,Other Agencies - Third Party P,90107186,ELEANOR PALMER TRUST NO 2 A/C.,75.06,17/09/2018
Delivery Units,Adults and Communities,Other Agencies - Third Party P,90107187,ELEANOR PALMER TRUST NO 2 A/C.,57.57,17/09/2018
Delivery Units,Adults and Communities,Other Agencies - Third Party P,90107188,ELEANOR PALMER TRUST NO 2 A/C.,57.57,17/09/2018
Delivery Units,Adults and Communities,Other Agencies - Third Party P,90107189,ELEANOR PALMER TRUST NO 2 A/C.,"2,520.30",17/09/2018
Delivery Units,Adults and Communities,Other Agencies - Third Party P,90107190,ELEANOR PALMER TRUST NO 2 A/C.,"2,520.30",17/09/2018
Delivery Units,Adults and Communities,Other Agencies - Third Party P,90107191,ELEANOR PALMER TRUST NO 2 A/C.,"2,520.30",17/09/2018
Delivery Units,Adults and Communities,Other Agencies - Third Party P,90107192,ELEANOR PALMER TRUST NO 2 A/C.,"3,286.93",17/09/2018
Delivery Units,Adults and Communities,Other Agencies - Third Party P,90107193,ELEANOR PALMER TRUST NO 2 A/C.,"2,520.30",17/09/2018
Delivery Units,Adults and Communities,Other Agencies - Third Party P,90107194,ELEANOR PALMER TRUST NO 2 A/C.,"3,286.93",17/09/2018
Delivery Units,Adults and Communities,Other Agencies - Third Party P,90107195,ELEANOR PALMER TRUST NO 2 A/C.,"2,468.57",17/09/2018
Delivery Units,Adults and Communities,Other Agencies - Third Party P,90107196,ELEANOR PALMER TRUST NO 2 A/C.,"2,315.14",17/09/2018
Delivery Units,Adults and Communities,Other Agencies - Third Party P,90107197,ELEANOR PALMER TRUST NO 2 A/C.,"3,286.93",17/09/2018
Delivery Units,Adults and Communities,Other Agencies - Third Party P,90107198,ELEANOR PALMER TRUST NO 2 A/C.,"3,286.93",17/09/2018
Delivery Units,Adults and Communities,Other Agencies - Third Party P,90107199,ELEANOR PALMER TRUST NO 2 A/C.,"3,286.93",17/09/2018
Delivery Units,Adults and Communities,Other Agencies - Third Party P,90107200,ELEANOR PALMER TRUST NO 2 A/C.,"2,315.14",17/09/2018
Delivery Units,Adults and Communities,Other Agencies - Third Party P,90107201,ELEANOR PALMER TRUST NO 2 A/C.,"3,214.29",17/09/2018
Delivery Units,Adults and Communities,Other Agencies - Third Party P,90107202,ELEANOR PALMER TRUST NO 2 A/C.,"2,520.30",17/09/2018
Delivery Units,Adults and Communities,Other Agencies - Third Party P,90107203,ELEANOR PALMER TRUST NO 2 A/C.,"3,286.93",17/09/2018
Delivery Units,Adults and Communities,Other Agencies - Third Party P,90107204,ELEANOR PALMER TRUST NO 2 A/C.,"3,286.93",17/09/2018
Delivery Units,Adults and Communities,Other Agencies - Third Party P,90107205,ELEANOR PALMER TRUST NO 2 A/C.,"3,286.93",17/09/2018
Delivery Units,Adults and Communities,Other Agencies - Third Party P,90109389,ELEANOR PALMER TRUST NO 2 A/C.,57.57,27/09/2018
Delivery Units,Adults and Communities,Other Agencies - Third Party P,90104755,ELM PARK LODGE,"3,543.30",11/09/2018
Delivery Units,Adults and Communities,Other Agencies - Third Party P,90104757,ELM PARK LODGE,"1,778.29",11/09/2018
Delivery Units,Adults and Communities,Other Agencies - Third Party P,90109580,SPANISH AND PORTUGUESE JEWISH,"2,674.86",27/09/2018
Delivery Units,Adults and Communities,Other Agencies - Third Party P,90109360,TORRINGTON HOMES,"2,176.89",25/09/2018
Delivery Units,Adults and Communities,Other Agencies - Third Party P,90109361,TORRINGTON HOMES,"2,369.79",25/09/2018
Delivery Units,Adults and Communities,Other Agencies - Third Party P,90109362,TORRINGTON HOMES,"2,369.79",25/09/2018
Delivery Units,Adults and Communities,Other Agencies - Third Party P,90107806,THE GRANGE,"2,600.00",18/09/2018
Delivery Units,Adults and Communities,Other Agencies - Third Party P,90107808,THE GRANGE,"2,322.73",18/09/2018
Delivery Units,Adults and Communities,Other Agencies - Third Party P,80019491,JEWISH CARE,"26,913.06",07/09/2018
Delivery Units,Adults and Communities,Other Agencies - Third Party P,80019492,JEWISH CARE,"25,682.76",07/09/2018
Delivery Units,Adults and Communities,Other Agencies - Third Party P,80019494,JEWISH CARE,"25,688.40",07/09/2018
Delivery Units,Adults and Communities,Other Agencies - Third Party P,90104115,JEWISH CARE,960.45,06/09/2018
Delivery Units,Adults and Communities,Other Agencies - Third Party P,90104116,JEWISH CARE,-158.48,06/09/2018
Delivery Units,Adults and Communities,Other Agencies - Third Party P,90105059,JEWISH CARE,"2,415.28",12/09/2018
Delivery Units,Adults and Communities,Other Agencies - Third Party P,90105060,JEWISH CARE,"4,733.40",12/09/2018
Delivery Units,Adults and Communities,Other Agencies - Third Party P,90105061,JEWISH CARE,"2,218.68",12/09/2018
Delivery Units,Adults and Communities,Other Agencies - Third Party P,90105062,JEWISH CARE,"2,218.68",12/09/2018
Delivery Units,Adults and Communities,Other Agencies - Third Party P,90105067,JEWISH CARE,"2,415.28",12/09/2018
Delivery Units,Adults and Communities,Other Agencies - Third Party P,90105068,JEWISH CARE,"2,415.28",12/09/2018
Delivery Units,Adults and Communities,Other Agencies - Third Party P,90105069,JEWISH CARE,"2,415.28",12/09/2018
Delivery Units,Adults and Communities,Other Agencies - Third Party P,90105070,JEWISH CARE,"2,415.28",12/09/2018
Delivery Units,Adults and Communities,Other Agencies - Third Party P,90105071,JEWISH CARE,"2,415.28",12/09/2018
Delivery Units,Adults and Communities,Other Agencies - Third Party P,90105072,JEWISH CARE,"2,415.28",12/09/2018
Delivery Units,Adults and Communities,Other Agencies - Third Party P,90105073,JEWISH CARE,"2,415.28",12/09/2018
Delivery Units,Adults and Communities,Other Agencies - Third Party P,90105074,JEWISH CARE,"2,218.68",12/09/2018
Delivery Units,Adults and Communities,Other Agencies - Third Party P,90105075,JEWISH CARE,"2,415.28",12/09/2018
Delivery Units,Adults and Communities,Other Agencies - Third Party P,90105076,JEWISH CARE,"2,415.28",12/09/2018
Delivery Units,Adults and Communities,Other Agencies - Third Party P,90105077,JEWISH CARE,"2,415.28",12/09/2018
Delivery Units,Adults and Communities,Other Agencies - Third Party P,90105078,JEWISH CARE,"2,415.28",12/09/2018
Delivery Units,Adults and Communities,Other Agencies - Third Party P,90105080,JEWISH CARE,"2,415.28",12/09/2018
Delivery Units,Adults and Communities,Other Agencies - Third Party P,90105081,JEWISH CARE,"2,415.28",12/09/2018
Delivery Units,Adults and Communities,Other Agencies - Third Party P,90105082,JEWISH CARE,"2,218.68",12/09/2018
Delivery Units,Adults and Communities,Other Agencies - Third Party P,90105083,JEWISH CARE,"2,415.28",12/09/2018
Delivery Units,Adults and Communities,Other Agencies - Third Party P,90105084,JEWISH CARE,"2,415.28",12/09/2018
Delivery Units,Adults and Communities,Other Agencies - Third Party P,90105085,JEWISH CARE,"2,218.68",12/09/2018
Delivery Units,Adults and Communities,Other Agencies - Third Party P,90105086,JEWISH CARE,"2,415.28",12/09/2018
Delivery Units,Adults and Communities,Other Agencies - Third Party P,90105088,JEWISH CARE,"2,415.28",12/09/2018
Delivery Units,Adults and Communities,Other Agencies - Third Party P,90105090,JEWISH CARE,"2,218.68",12/09/2018
Delivery Units,Adults and Communities,Other Agencies - Third Party P,90105092,JEWISH CARE,"2,415.28",12/09/2018
Delivery Units,Adults and Communities,Other Agencies - Third Party P,90105093,JEWISH CARE,"2,415.28",12/09/2018
Delivery Units,Adults and Communities,Other Agencies - Third Party P,90105110,JEWISH CARE,"2,218.68",12/09/2018
Delivery Units,Adults and Communities,Other Agencies - Third Party P,90105111,JEWISH CARE,"2,218.68",12/09/2018
Delivery Units,Adults and Communities,Other Agencies - Third Party P,90105112,JEWISH CARE,"2,415.28",12/09/2018
Delivery Units,Adults and Communities,Other Agencies - Third Party P,90105113,JEWISH CARE,"2,218.68",12/09/2018
Delivery Units,Adults and Communities,Other Agencies - Third Party P,90105114,JEWISH CARE,"2,415.28",12/09/2018
Delivery Units,Adults and Communities,Other Agencies - Third Party P,90105115,JEWISH CARE,"2,218.68",12/09/2018
Delivery Units,Adults and Communities,Other Agencies - Third Party P,90105116,JEWISH CARE,"2,415.28",12/09/2018
Delivery Units,Adults and Communities,Other Agencies - Third Party P,90105117,JEWISH CARE,"2,218.68",12/09/2018
Delivery Units,Adults and Communities,Other Agencies - Third Party P,90105119,JEWISH CARE,"2,218.68",12/09/2018
Delivery Units,Adults and Communities,Other Agencies - Third Party P,90105120,JEWISH CARE,"2,218.68",12/09/2018
Delivery Units,Adults and Communities,Other Agencies - Third Party P,90105121,JEWISH CARE,"2,218.68",12/09/2018
Delivery Units,Adults and Communities,Other Agencies - Third Party P,90105122,JEWISH CARE,"2,218.68",12/09/2018
Delivery Units,Adults and Communities,Other Agencies - Third Party P,90105123,JEWISH CARE,"2,415.28",12/09/2018
Delivery Units,Adults and Communities,Other Agencies - Third Party P,90105125,JEWISH CARE,"2,218.68",12/09/2018
Delivery Units,Adults and Communities,Other Agencies - Third Party P,90105127,JEWISH CARE,"2,218.68",12/09/2018
Delivery Units,Adults and Communities,Other Agencies - Third Party P,90105128,JEWISH CARE,"2,218.68",12/09/2018
Delivery Units,Adults and Communities,Other Agencies - Third Party P,90105129,JEWISH CARE,"2,415.28",12/09/2018
Delivery Units,Adults and Communities,Other Agencies - Third Party P,90105130,JEWISH CARE,"2,415.28",12/09/2018
Delivery Units,Adults and Communities,Other Agencies - Third Party P,90105131,JEWISH CARE,"2,218.68",12/09/2018
Delivery Units,Adults and Communities,Other Agencies - Third Party P,90105132,JEWISH CARE,"2,218.68",12/09/2018
Delivery Units,Adults and Communities,Other Agencies - Third Party P,90105133,JEWISH CARE,"2,415.28",12/09/2018
Delivery Units,Adults and Communities,Other Agencies - Third Party P,90105134,JEWISH CARE,"2,415.28",12/09/2018
Delivery Units,Adults and Communities,Other Agencies - Third Party P,90105135,JEWISH CARE,"2,415.28",12/09/2018
Delivery Units,Adults and Communities,Other Agencies - Third Party P,90105136,JEWISH CARE,"2,415.28",12/09/2018
Delivery Units,Adults and Communities,Other Agencies - Third Party P,90105137,JEWISH CARE,"2,415.28",12/09/2018
Delivery Units,Adults and Communities,Other Agencies - Third Party P,90105138,JEWISH CARE,"2,218.68",12/09/2018
Delivery Units,Adults and Communities,Other Agencies - Third Party P,90105139,JEWISH CARE,"2,218.68",12/09/2018
Delivery Units,Adults and Communities,Other Agencies - Third Party P,90105140,JEWISH CARE,"2,415.28",12/09/2018
Delivery Units,Adults and Communities,Other Agencies - Third Party P,90105142,JEWISH CARE,"2,415.28",12/09/2018
Delivery Units,Adults and Communities,Other Agencies - Third Party P,90105144,JEWISH CARE,"2,102.00",12/09/2018
Delivery Units,Adults and Communities,Other Agencies - Third Party P,90105149,JEWISH CARE,"2,415.28",12/09/2018
Delivery Units,Adults and Communities,Other Agencies - Third Party P,90105151,JEWISH CARE,"3,200.00",12/09/2018
Delivery Units,Adults and Communities,Other Agencies - Third Party P,90105152,JEWISH CARE,"2,415.28",12/09/2018
Delivery Units,Adults and Communities,Other Agencies - Third Party P,90105153,JEWISH CARE,"2,218.68",12/09/2018
Delivery Units,Adults and Communities,Other Agencies - Third Party P,90105155,JEWISH CARE,"2,415.28",12/09/2018
Delivery Units,Adults and Communities,Other Agencies - Third Party P,90105156,JEWISH CARE,"2,415.28",12/09/2018
Delivery Units,Adults and Communities,Other Agencies - Third Party P,90105158,JEWISH CARE,"2,415.28",12/09/2018
Delivery Units,Adults and Communities,Other Agencies - Third Party P,90105159,JEWISH CARE,"2,415.28",12/09/2018
Delivery Units,Adults and Communities,Other Agencies - Third Party P,90105160,JEWISH CARE,"2,415.28",12/09/2018
Delivery Units,Adults and Communities,Other Agencies - Third Party P,90105161,JEWISH CARE,"2,415.28",12/09/2018
Delivery Units,Adults and Communities,Other Agencies - Third Party P,90105162,JEWISH CARE,"2,218.68",12/09/2018
Delivery Units,Adults and Communities,Other Agencies - Third Party P,90105163,JEWISH CARE,"2,415.28",12/09/2018
Delivery Units,Adults and Communities,Other Agencies - Third Party P,90105165,JEWISH CARE,"2,568.84",12/09/2018
Delivery Units,Adults and Communities,Other Agencies - Third Party P,90106401,JEWISH CARE,"2,415.28",14/09/2018
Delivery Units,Adults and Communities,Other Agencies - Third Party P,90107133,JEWISH CARE,"2,415.28",17/09/2018
Delivery Units,Adults and Communities,Other Agencies - Third Party P,90108921,JEWISH CARE,"3,400.00",25/09/2018
Delivery Units,Adults and Communities,Other Agencies - Third Party P,90107794,CLOVELLY HOUSE RESID. HOME LTD,"2,600.00",18/09/2018
Delivery Units,Adults and Communities,Other Agencies - Third Party P,90107795,CLOVELLY HOUSE RESID. HOME LTD,"2,304.00",18/09/2018
Delivery Units,Adults and Communities,Other Agencies - Third Party P,90107796,CLOVELLY HOUSE RESID. HOME LTD,"2,600.00",18/09/2018
Delivery Units,Adults and Communities,Other Agencies - Third Party P,90107797,CLOVELLY HOUSE RESID. HOME LTD,"2,304.00",18/09/2018
Delivery Units,Adults and Communities,Other Agencies - Third Party P,90107801,CLOVELLY HOUSE RESID. HOME LTD,"2,600.00",18/09/2018
Delivery Units,Adults and Communities,Other Agencies - Third Party P,90107802,CLOVELLY HOUSE RESID. HOME LTD,"2,780.00",18/09/2018
Delivery Units,Adults and Communities,Other Agencies - Third Party P,90107804,CLOVELLY HOUSE RESID. HOME LTD,"2,780.00",18/09/2018
Delivery Units,Adults and Communities,Other Agencies - Third Party P,90105230,QUANTUM CARE LIMITED,"4,207.14",13/09/2018
Delivery Units,Adults and Communities,Other Agencies - Third Party P,90098319,CATHERINE LODGE,-394.96,06/09/2018
Delivery Units,Adults and Communities,Other Agencies - Third Party P,90103890,CATHERINE LODGE,401.73,06/09/2018
Delivery Units,Adults and Communities,Other Agencies - Third Party P,90103891,CATHERINE LODGE,401.73,06/09/2018
Delivery Units,Adults and Communities,Other Agencies - Third Party P,90103894,CATHERINE LODGE,"2,550.86",06/09/2018
Delivery Units,Adults and Communities,Other Agencies - Third Party P,90103895,CATHERINE LODGE,"3,365.71",06/09/2018
Delivery Units,Adults and Communities,Other Agencies - Third Party P,90103897,CATHERINE LODGE,"2,550.86",06/09/2018
Delivery Units,Adults and Communities,Other Agencies - Third Party P,90103898,CATHERINE LODGE,"3,520.71",06/09/2018
Delivery Units,Adults and Communities,Other Agencies - Third Party P,90103899,CATHERINE LODGE,"3,476.43",06/09/2018
Delivery Units,Adults and Communities,Other Agencies - Third Party P,90103900,CATHERINE LODGE,"3,520.71",06/09/2018
Delivery Units,Adults and Communities,Other Agencies - Third Party P,90108204,CATHERINE LODGE,"3,407.14",20/09/2018
Delivery Units,Adults and Communities,Other Agencies - Third Party P,90108205,CATHERINE LODGE,"2,468.57",20/09/2018
Delivery Units,Adults and Communities,Other Agencies - Third Party P,90108207,CATHERINE LODGE,"3,257.14",20/09/2018
Delivery Units,Adults and Communities,Other Agencies - Third Party P,90108208,CATHERINE LODGE,"2,468.57",20/09/2018
Delivery Units,Adults and Communities,Other Agencies - Third Party P,90108209,CATHERINE LODGE,"3,407.14",20/09/2018
Delivery Units,Adults and Communities,Other Agencies - Third Party P,90109398,CATHERINE LODGE,"3,364.29",27/09/2018
Delivery Units,Adults and Communities,Other Agencies - Third Party P,90108306,BUPA NURSING HOMES LTD - ARKLEY,"2,089.68",20/09/2018
Delivery Units,Adults and Communities,Other Agencies - Third Party P,90104695,NAZARETH HOUSE,"2,144.00",10/09/2018
Delivery Units,Adults and Communities,Other Agencies - Third Party P,90104696,NAZARETH HOUSE,"2,304.00",10/09/2018
Delivery Units,Adults and Communities,Other Agencies - Third Party P,90104697,NAZARETH HOUSE,"2,144.00",10/09/2018
Delivery Units,Adults and Communities,Other Agencies - Third Party P,90104698,NAZARETH HOUSE,"2,144.00",10/09/2018
Delivery Units,Adults and Communities,Other Agencies - Third Party P,90104699,NAZARETH HOUSE,"2,144.00",10/09/2018
Delivery Units,Adults and Communities,Other Agencies - Third Party P,90104700,NAZARETH HOUSE,"2,304.00",10/09/2018
Delivery Units,Adults and Communities,Other Agencies - Third Party P,90104701,NAZARETH HOUSE,"2,144.00",10/09/2018
Delivery Units,Adults and Communities,Other Agencies - Third Party P,90104702,NAZARETH HOUSE,"2,144.00",10/09/2018
Delivery Units,Adults and Communities,Other Agencies - Third Party P,90104704,NAZARETH HOUSE,"2,650.40",10/09/2018
Delivery Units,Adults and Communities,Other Agencies - Third Party P,90104705,NAZARETH HOUSE,"2,144.00",10/09/2018
Delivery Units,Adults and Communities,Other Agencies - Third Party P,90104706,NAZARETH HOUSE,"2,304.00",10/09/2018
Delivery Units,Adults and Communities,Other Agencies - Third Party P,90104707,NAZARETH HOUSE,"2,144.00",10/09/2018
Delivery Units,Adults and Communities,Other Agencies - Third Party P,90104708,NAZARETH HOUSE,"2,304.00",10/09/2018
Delivery Units,Adults and Communities,Other Agencies - Third Party P,90104709,NAZARETH HOUSE,"2,304.00",10/09/2018
Delivery Units,Adults and Communities,Other Agencies - Third Party P,90104710,NAZARETH HOUSE,"2,144.00",10/09/2018
Delivery Units,Adults and Communities,Other Agencies - Third Party P,90104711,NAZARETH HOUSE,"2,144.00",10/09/2018
Delivery Units,Adults and Communities,Other Agencies - Third Party P,90104712,NAZARETH HOUSE,"2,144.00",10/09/2018
Delivery Units,Adults and Communities,Other Agencies - Third Party P,90105232,NAZARETH HOUSE,"15,005.71",13/09/2018
Delivery Units,Adults and Communities,Other Agencies - Third Party P,90109650,FRIARY LODGE,"3,214.28",27/09/2018
Delivery Units,Adults and Communities,Other Agencies - Third Party P,90107810,THE WOODSIDE HOME,"2,304.00",18/09/2018
Delivery Units,Adults and Communities,Other Agencies - Third Party P,90107811,THE WOODSIDE HOME,"2,144.00",18/09/2018
Delivery Units,Adults and Communities,Other Agencies - Third Party P,90107812,THE WOODSIDE HOME,"2,144.00",18/09/2018
Delivery Units,Adults and Communities,Other Agencies - Third Party P,90107813,THE WOODSIDE HOME,"2,144.00",18/09/2018
Delivery Units,Adults and Communities,Other Agencies - Third Party P,90107814,THE WOODSIDE HOME,"2,304.00",18/09/2018
Delivery Units,Adults and Communities,Other Agencies - Third Party P,90107815,THE WOODSIDE HOME,"2,144.00",18/09/2018
Delivery Units,Adults and Communities,Other Agencies - Third Party P,90109667,WESTMINSTER HEALTH CARE LTD,550.76,27/09/2018
Delivery Units,Adults and Communities,Other Agencies - Third Party P,90109669,WESTMINSTER HEALTH CARE LTD,"3,741.92",27/09/2018
Delivery Units,Adults and Communities,Other Agencies - Third Party P,90108282,SYDMAR LODGE,"2,632.16",20/09/2018
Delivery Units,Adults and Communities,Other Agencies - Third Party P,90108283,SYDMAR LODGE,"2,671.52",20/09/2018
Delivery Units,Adults and Communities,Other Agencies - Third Party P,90108284,SYDMAR LODGE,"2,671.52",20/09/2018
Delivery Units,Adults and Communities,Other Agencies - Third Party P,90108285,SYDMAR LODGE,"2,671.52",20/09/2018
Delivery Units,Adults and Communities,Other Agencies - Third Party P,90106419,THE LIMES RESIDENTIAL HOME,"2,468.57",19/09/2018
Delivery Units,Adults and Communities,Other Agencies - Third Party P,90106421,THE LIMES RESIDENTIAL HOME,"2,468.57",19/09/2018
Delivery Units,Adults and Communities,Other Agencies - Third Party P,90106422,THE LIMES RESIDENTIAL HOME,"2,571.43",19/09/2018
Delivery Units,Adults and Communities,Other Agencies - Third Party P,90106423,THE LIMES RESIDENTIAL HOME,"2,468.57",19/09/2018
Delivery Units,Adults and Communities,Other Agencies - Third Party P,90106425,THE LIMES RESIDENTIAL HOME,"2,468.57",19/09/2018
Delivery Units,Adults and Communities,Other Agencies - Third Party P,90106426,THE LIMES RESIDENTIAL HOME,"2,468.57",19/09/2018
Delivery Units,Adults and Communities,Other Agencies - Third Party P,90106427,THE LIMES RESIDENTIAL HOME,"2,468.57",19/09/2018
Delivery Units,Adults and Communities,Other Agencies - Third Party P,90106428,THE LIMES RESIDENTIAL HOME,"2,571.43",19/09/2018
Delivery Units,Adults and Communities,Other Agencies - Third Party P,90106429,THE LIMES RESIDENTIAL HOME,"2,468.57",19/09/2018
Delivery Units,Adults and Communities,Other Agencies - Third Party P,90106430,THE LIMES RESIDENTIAL HOME,"2,382.86",19/09/2018
Delivery Units,Adults and Communities,Other Agencies - Third Party P,90106431,THE LIMES RESIDENTIAL HOME,"2,468.57",19/09/2018
Delivery Units,Adults and Communities,Other Agencies - Third Party P,90106432,THE LIMES RESIDENTIAL HOME,"2,785.71",19/09/2018
Delivery Units,Adults and Communities,Other Agencies - Third Party P,90107130,THE LIMES RESIDENTIAL HOME,"2,297.14",19/09/2018
Delivery Units,Adults and Communities,Other Agencies - Third Party P,90107131,THE LIMES RESIDENTIAL HOME,"2,297.14",19/09/2018
Delivery Units,Adults and Communities,Other Agencies - Third Party P,90109338,SCIMITAR CARE HOTELS PLC,"3,310.71",27/09/2018
Delivery Units,Adults and Communities,Other Agencies - Third Party P,90109339,SCIMITAR CARE HOTELS PLC,"4,071.43",27/09/2018
Delivery Units,Adults and Communities,Other Agencies - Third Party P,80019473,FREMANTLE TRUST,"29,362.00",07/09/2018
Delivery Units,Adults and Communities,Other Agencies - Third Party P,80019474,FREMANTLE TRUST,"3,892.57",07/09/2018
Delivery Units,Adults and Communities,Other Agencies - Third Party P,90109045,FREMANTLE TRUST,"2,284.00",25/09/2018
Delivery Units,Adults and Communities,Other Agencies - Third Party P,90109048,FREMANTLE TRUST,"2,096.00",25/09/2018
Delivery Units,Adults and Communities,Other Agencies - Third Party P,90109049,FREMANTLE TRUST,"2,096.00",25/09/2018
Delivery Units,Adults and Communities,Other Agencies - Third Party P,90109050,FREMANTLE TRUST,"2,284.00",25/09/2018
Delivery Units,Adults and Communities,Other Agencies - Third Party P,90109051,FREMANTLE TRUST,"2,096.00",25/09/2018
Delivery Units,Adults and Communities,Other Agencies - Third Party P,90109052,FREMANTLE TRUST,"2,284.00",25/09/2018
Delivery Units,Adults and Communities,Other Agencies - Third Party P,90109054,FREMANTLE TRUST,"2,096.00",25/09/2018
Delivery Units,Adults and Communities,Other Agencies - Third Party P,90109055,FREMANTLE TRUST,"2,096.00",25/09/2018
Delivery Units,Adults and Communities,Other Agencies - Third Party P,90109056,FREMANTLE TRUST,"2,096.00",25/09/2018
Delivery Units,Adults and Communities,Other Agencies - Third Party P,90109057,FREMANTLE TRUST,"2,284.00",25/09/2018
Delivery Units,Adults and Communities,Other Agencies - Third Party P,90109058,FREMANTLE TRUST,"2,284.00",25/09/2018
Delivery Units,Adults and Communities,Other Agencies - Third Party P,90109059,FREMANTLE TRUST,"2,096.00",25/09/2018
Delivery Units,Adults and Communities,Other Agencies - Third Party P,90109060,FREMANTLE TRUST,"2,284.00",25/09/2018
Delivery Units,Adults and Communities,Other Agencies - Third Party P,90109061,FREMANTLE TRUST,"2,096.00",25/09/2018
Delivery Units,Adults and Communities,Other Agencies - Third Party P,90109062,FREMANTLE TRUST,"2,284.00",25/09/2018
Delivery Units,Adults and Communities,Other Agencies - Third Party P,90109063,FREMANTLE TRUST,"2,284.00",25/09/2018
Delivery Units,Adults and Communities,Other Agencies - Third Party P,90109067,FREMANTLE TRUST,"2,096.00",25/09/2018
Delivery Units,Adults and Communities,Other Agencies - Third Party P,90109068,FREMANTLE TRUST,"2,284.00",25/09/2018
Delivery Units,Adults and Communities,Other Agencies - Third Party P,90109069,FREMANTLE TRUST,"2,284.00",25/09/2018
Delivery Units,Adults and Communities,Other Agencies - Third Party P,90109071,FREMANTLE TRUST,"2,096.00",25/09/2018
Delivery Units,Adults and Communities,Other Agencies - Third Party P,90109072,FREMANTLE TRUST,"2,096.00",25/09/2018
Delivery Units,Adults and Communities,Other Agencies - Third Party P,90109073,FREMANTLE TRUST,"2,096.00",25/09/2018
Delivery Units,Adults and Communities,Other Agencies - Third Party P,90109074,FREMANTLE TRUST,"2,284.00",25/09/2018
Delivery Units,Adults and Communities,Other Agencies - Third Party P,90109075,FREMANTLE TRUST,"2,284.00",25/09/2018
Delivery Units,Adults and Communities,Other Agencies - Third Party P,90109077,FREMANTLE TRUST,"2,096.00",25/09/2018
Delivery Units,Adults and Communities,Other Agencies - Third Party P,90109078,FREMANTLE TRUST,"2,284.00",25/09/2018
Delivery Units,Adults and Communities,Other Agencies - Third Party P,90109079,FREMANTLE TRUST,"2,096.00",25/09/2018
Delivery Units,Adults and Communities,Other Agencies - Third Party P,90109080,FREMANTLE TRUST,"2,096.00",25/09/2018
Delivery Units,Adults and Communities,Other Agencies - Third Party P,90109081,FREMANTLE TRUST,"2,096.00",25/09/2018
Delivery Units,Adults and Communities,Other Agencies - Third Party P,90109082,FREMANTLE TRUST,"2,096.00",25/09/2018
Delivery Units,Adults and Communities,Other Agencies - Third Party P,90109084,FREMANTLE TRUST,"2,096.00",25/09/2018
Delivery Units,Adults and Communities,Other Agencies - Third Party P,90109087,FREMANTLE TRUST,"2,096.00",25/09/2018
Delivery Units,Adults and Communities,Other Agencies - Third Party P,90109088,FREMANTLE TRUST,"2,096.00",25/09/2018
Delivery Units,Adults and Communities,Other Agencies - Third Party P,90109089,FREMANTLE TRUST,"2,096.00",25/09/2018
Delivery Units,Adults and Communities,Other Agencies - Third Party P,90109090,FREMANTLE TRUST,"2,096.00",25/09/2018
Delivery Units,Adults and Communities,Other Agencies - Third Party P,90109093,FREMANTLE TRUST,"2,096.00",25/09/2018
Delivery Units,Adults and Communities,Other Agencies - Third Party P,90109094,FREMANTLE TRUST,"2,096.00",25/09/2018
Delivery Units,Adults and Communities,Other Agencies - Third Party P,90109097,FREMANTLE TRUST,"2,096.00",25/09/2018
Delivery Units,Adults and Communities,Other Agencies - Third Party P,90109098,FREMANTLE TRUST,"2,096.00",25/09/2018
Delivery Units,Adults and Communities,Other Agencies - Third Party P,90109099,FREMANTLE TRUST,"2,096.00",25/09/2018
Delivery Units,Adults and Communities,Other Agencies - Third Party P,90109100,FREMANTLE TRUST,"2,096.00",25/09/2018
Delivery Units,Adults and Communities,Other Agencies - Third Party P,90109296,FREMANTLE TRUST,"2,284.00",25/09/2018
Delivery Units,Adults and Communities,Other Agencies - Third Party P,90109298,FREMANTLE TRUST,"2,096.00",25/09/2018
Delivery Units,Adults and Communities,Other Agencies - Third Party P,90109299,FREMANTLE TRUST,"2,284.00",25/09/2018
Delivery Units,Adults and Communities,Other Agencies - Third Party P,90109300,FREMANTLE TRUST,"2,284.00",25/09/2018
Delivery Units,Adults and Communities,Other Agencies - Third Party P,90109303,FREMANTLE TRUST,"2,096.00",25/09/2018
Delivery Units,Adults and Communities,Other Agencies - Third Party P,90109304,FREMANTLE TRUST,"2,096.00",25/09/2018
Delivery Units,Adults and Communities,Other Agencies - Third Party P,90109305,FREMANTLE TRUST,"2,284.00",25/09/2018
Delivery Units,Adults and Communities,Other Agencies - Third Party P,90109306,FREMANTLE TRUST,"2,284.00",25/09/2018
Delivery Units,Adults and Communities,Other Agencies - Third Party P,90109307,FREMANTLE TRUST,"2,096.00",25/09/2018
Delivery Units,Adults and Communities,Other Agencies - Third Party P,90109309,FREMANTLE TRUST,"2,284.00",25/09/2018
Delivery Units,Adults and Communities,Other Agencies - Third Party P,90109311,FREMANTLE TRUST,"2,284.00",25/09/2018
Delivery Units,Adults and Communities,Other Agencies - Third Party P,90109312,FREMANTLE TRUST,"2,096.00",25/09/2018
Delivery Units,Adults and Communities,Other Agencies - Third Party P,90109313,FREMANTLE TRUST,"2,284.00",25/09/2018
Delivery Units,Adults and Communities,Other Agencies - Third Party P,90109314,FREMANTLE TRUST,"2,096.00",25/09/2018
Delivery Units,Adults and Communities,Other Agencies - Third Party P,90109317,FREMANTLE TRUST,"2,096.00",25/09/2018
Delivery Units,Adults and Communities,Other Agencies - Third Party P,90109318,FREMANTLE TRUST,"2,096.00",25/09/2018
Delivery Units,Adults and Communities,Other Agencies - Third Party P,90109319,FREMANTLE TRUST,"2,284.00",25/09/2018
Delivery Units,Adults and Communities,Other Agencies - Third Party P,90109320,FREMANTLE TRUST,"2,284.00",25/09/2018
Delivery Units,Adults and Communities,Other Agencies - Third Party P,90109321,FREMANTLE TRUST,"2,284.00",25/09/2018
Delivery Units,Adults and Communities,Other Agencies - Third Party P,90109322,FREMANTLE TRUST,"2,284.00",25/09/2018
Delivery Units,Adults and Communities,Other Agencies - Third Party P,90109323,FREMANTLE TRUST,"2,284.00",25/09/2018
Delivery Units,Adults and Communities,Other Agencies - Third Party P,90109324,FREMANTLE TRUST,"2,096.00",25/09/2018
Delivery Units,Adults and Communities,Other Agencies - Third Party P,90109325,FREMANTLE TRUST,"2,284.00",25/09/2018
Delivery Units,Adults and Communities,Other Agencies - Third Party P,90109326,FREMANTLE TRUST,"2,284.00",25/09/2018
Delivery Units,Adults and Communities,Other Agencies - Third Party P,90109327,FREMANTLE TRUST,"2,284.00",25/09/2018
Delivery Units,Adults and Communities,Other Agencies - Third Party P,90109328,FREMANTLE TRUST,"2,284.00",25/09/2018
Delivery Units,Adults and Communities,Other Agencies - Third Party P,90109330,FREMANTLE TRUST,"31,861.14",25/09/2018
Delivery Units,Adults and Communities,Other Agencies - Third Party P,90109331,FREMANTLE TRUST,449.14,25/09/2018
Delivery Units,Adults and Communities,Other Agencies - Third Party P,90109332,FREMANTLE TRUST,"2,945.28",25/09/2018
Delivery Units,Adults and Communities,Other Agencies - Third Party P,90109611,BUPA CARE HOMES,"2,448.78",27/09/2018
Delivery Units,Adults and Communities,Other Agencies - Third Party P,90109612,BUPA CARE HOMES,"2,314.24",27/09/2018
Delivery Units,Adults and Communities,Other Agencies - Third Party P,90108189,ASPEN VILLAGES LTD,"2,144.91",19/09/2018
Delivery Units,Adults and Communities,Other Agencies - Third Party P,90109109,ANASTASIA LODGE,"2,800.00",25/09/2018
Delivery Units,Adults and Communities,Other Agencies - Third Party P,90107519,HILTON LODGE LTD.,"2,480.00",17/09/2018
Delivery Units,Adults and Communities,Other Agencies - Third Party P,90107520,HILTON LODGE LTD.,"2,880.00",17/09/2018
Delivery Units,Adults and Communities,Other Agencies - Third Party P,90107521,HILTON LODGE LTD.,"2,880.00",17/09/2018
Delivery Units,Adults and Communities,Other Agencies - Third Party P,90109626,LEWIS.W.HAMMERSON MEMORIAL HOME,"2,310.34",27/09/2018
Delivery Units,Adults and Communities,Other Agencies - Third Party P,90109627,LEWIS.W.HAMMERSON MEMORIAL HOME,"2,310.34",27/09/2018
Delivery Units,Adults and Communities,Other Agencies - Third Party P,90109103,B & M CARE,"2,176.89",25/09/2018
Delivery Units,Adults and Communities,Other Agencies - Third Party P,90109113,B & M CARE,"3,214.29",25/09/2018
Delivery Units,Adults and Communities,Other Agencies - Third Party P,90109129,B & M CARE,"2,242.20",25/09/2018
Delivery Units,Adults and Communities,Other Agencies - Third Party P,90104091,SAGE NURSING HOME,"2,249.45",10/09/2018
Delivery Units,Adults and Communities,Other Agencies - Third Party P,90104093,SAGE NURSING HOME,"2,657.14",10/09/2018
Delivery Units,Adults and Communities,Other Agencies - Third Party P,90108943,SAGE NURSING HOME,613.31,25/09/2018
Delivery Units,Adults and Communities,Other Agencies - Third Party P,90104713,NAZARETH HOUSE,"2,080.00",10/09/2018
Delivery Units,Adults and Communities,Other Agencies - Third Party P,90104714,NAZARETH HOUSE,"2,080.00",10/09/2018
Delivery Units,Adults and Communities,Other Agencies - Third Party P,90107836,ROLAND RESIDENTIAL CARE HOMES LTD,"3,242.88",18/09/2018
Delivery Units,Adults and Communities,Other Agencies - Third Party P,90109112,R.M.B.I,"2,176.80",25/09/2018
Delivery Units,Adults and Communities,Other Agencies - Third Party P,90104808,TENTERDEN HOUSE,"3,829.84",17/09/2018
Delivery Units,Adults and Communities,Other Agencies - Third Party P,90107547,ELIZA HOUSE,"2,448.78",17/09/2018
Delivery Units,Adults and Communities,Other Agencies - Third Party P,90107838,ELIZA HOUSE,"1,026.90",18/09/2018
Delivery Units,Adults and Communities,Other Agencies - Third Party P,90105220,SWANBOROUGH HOUSE,"3,988.33",13/09/2018
Delivery Units,Adults and Communities,Other Agencies - Third Party P,90109378,SWANBOROUGH HOUSE,"4,121.27",25/09/2018
Delivery Units,Adults and Communities,Other Agencies - Third Party P,90107538,ASHFIELDS RESIDENTIAL CARE HOME,"2,550.86",17/09/2018
Delivery Units,Adults and Communities,Other Agencies - Third Party P,90107539,ASHFIELDS RESIDENTIAL CARE HOME,"2,550.86",17/09/2018
Delivery Units,Adults and Communities,Other Agencies - Third Party P,90107540,ASHFIELDS RESIDENTIAL CARE HOME,"2,373.71",17/09/2018
Delivery Units,Adults and Communities,Other Agencies - Third Party P,90107541,ASHFIELDS RESIDENTIAL CARE HOME,"2,657.14",17/09/2018
Delivery Units,Adults and Communities,Other Agencies - Third Party P,90107542,ASHFIELDS RESIDENTIAL CARE HOME,"2,550.86",17/09/2018
Delivery Units,Adults and Communities,Other Agencies - Third Party P,90107543,ASHFIELDS RESIDENTIAL CARE HOME,"2,550.86",17/09/2018
Delivery Units,Adults and Communities,Other Agencies - Third Party P,90107544,ASHFIELDS RESIDENTIAL CARE HOME,"2,657.14",17/09/2018
Delivery Units,Adults and Communities,Other Agencies - Third Party P,90107545,ASHFIELDS RESIDENTIAL CARE HOME,"2,373.71",17/09/2018
Delivery Units,Adults and Communities,Other Agencies - Third Party P,90108922,ASHFIELDS RESIDENTIAL CARE HOME,"2,550.86",25/09/2018
Delivery Units,Adults and Communities,Other Agencies - Third Party P,90108924,ASHFIELDS RESIDENTIAL CARE HOME,"2,550.86",25/09/2018
Delivery Units,Adults and Communities,Other Agencies - Third Party P,90108925,ASHFIELDS RESIDENTIAL CARE HOME,"2,550.86",25/09/2018
Delivery Units,Adults and Communities,Other Agencies - Third Party P,90108926,ASHFIELDS RESIDENTIAL CARE HOME,"2,550.86",25/09/2018
Delivery Units,Adults and Communities,Other Agencies - Third Party P,90109652,ASHFIELDS RESIDENTIAL CARE HOME,"2,098.57",27/09/2018
Delivery Units,Adults and Communities,Other Agencies - Third Party P,90109106,AUTUMN GARDENS,"2,880.00",25/09/2018
Delivery Units,Adults and Communities,Other Agencies - Third Party P,90109108,AUTUMN GARDENS,"3,160.00",25/09/2018
Delivery Units,Adults and Communities,Other Agencies - Third Party P,90104715,THE CHRISTIAN CARE TRUST,"2,921.14",10/09/2018
Delivery Units,Adults and Communities,Other Agencies - Third Party P,90104716,THE CHRISTIAN CARE TRUST,"2,304.00",10/09/2018
Delivery Units,Adults and Communities,Other Agencies - Third Party P,90109116,CARLTON COURT (TLC GROUP),"2,176.89",25/09/2018
Delivery Units,Adults and Communities,Other Agencies - Third Party P,90107492,LIVABILITY,"3,180.00",17/09/2018
Delivery Units,Adults and Communities,Other Agencies - Third Party P,90108224,BIRCHWOOD GRANGE CARE HOME,"2,571.43",19/09/2018
Delivery Units,Adults and Communities,Other Agencies - Third Party P,90109648,MADELAYNE COURT,"2,144.91",27/09/2018
Delivery Units,Adults and Communities,Other Agencies - Third Party P,80019441,GLEBELANDS,"12,000.00",07/09/2018
Delivery Units,Adults and Communities,Other Agencies - Third Party P,90104734,Z & M CARE LTD,"2,600.00",10/09/2018
Delivery Units,Adults and Communities,Other Agencies - Third Party P,90108303,Z & M CARE LTD,604.75,20/09/2018
Delivery Units,Adults and Communities,Other Agencies - Third Party P,90108187,BELMONT LODGE CARE CENTRE,"2,327.14",19/09/2018
Delivery Units,Adults and Communities,Other Agencies - Third Party P,90109132,KARUNA MANOR,"3,981.43",25/09/2018
Delivery Units,Adults and Communities,Other Agencies - Third Party P,90109133,KARUNA MANOR,"4,071.43",25/09/2018
Delivery Units,Adults and Communities,Other Agencies - Third Party P,90109135,KARUNA MANOR,"3,857.14",25/09/2018
Delivery Units,Adults and Communities,Other Agencies - Third Party P,90109661,ALEXANDRA HOUSE (RUNWOOD HOMES),"2,262.69",27/09/2018
Delivery Units,Adults and Communities,Other Agencies - Third Party P,90104718,GCH (HERTFORDSHIRE) LTD T/A,"2,414.68",10/09/2018
Delivery Units,Adults and Communities,Other Agencies - Third Party P,90104719,GCH (HERTFORDSHIRE) LTD T/A,"2,356.00",10/09/2018
Delivery Units,Adults and Communities,Other Agencies - Third Party P,90108202,GCH (HERTFORDSHIRE) LTD T/A,"2,356.00",19/09/2018
Delivery Units,Adults and Communities,Other Agencies - Third Party P,90109395,YORK HOMES (DORSET) LTD,"2,600.00",27/09/2018
Delivery Units,Adults and Communities,Other Agencies - Third Party P,90109396,YORK HOMES (DORSET) LTD,"2,600.00",27/09/2018
Delivery Units,Adults and Communities,Other Agencies - Third Party P,90109397,YORK HOMES (DORSET) LTD,"2,600.00",27/09/2018
Delivery Units,Adults and Communities,Other Agencies - Third Party P,90106442,GCH (NORTH LONDON) T/A THE TUDORS,"2,300.00",14/09/2018
Delivery Units,Adults and Communities,Other Agencies - Third Party P,90106443,GCH (NORTH LONDON) T/A THE TUDORS,"2,300.00",14/09/2018
Delivery Units,Adults and Communities,Other Agencies - Third Party P,90106444,GCH (NORTH LONDON) T/A THE TUDORS,"2,300.00",14/09/2018
Delivery Units,Adults and Communities,Other Agencies - Third Party P,90105223,WILTON HOUSE LTD,"2,527.24",13/09/2018
Delivery Units,Adults and Communities,Other Agencies - Third Party P,90105224,WILTON HOUSE LTD,"2,536.46",13/09/2018
Delivery Units,Adults and Communities,Other Agencies - Third Party P,90107839,SAFFRONS RESIDENTIAL CARE HOME,"5,137.14",18/09/2018
Delivery Units,Adults and Communities,Direct Transfer Payments to So,90106317,WIRECARD - ADULT SERVICES,"1,200.00",14/09/2018
Delivery Units,Adults and Communities,Direct Transfer Payments to So,90106332,WIRECARD - ADULT SERVICES,280.00,14/09/2018
Delivery Units,Adults and Communities,Direct Transfer Payments to So,90106334,WIRECARD - ADULT SERVICES,462.00,14/09/2018
Delivery Units,Adults and Communities,Direct Transfer Payments to So,90106345,WIRECARD - ADULT SERVICES,480.80,14/09/2018
Delivery Units,Adults and Communities,Direct Transfer Payments to So,90106356,WIRECARD - ADULT SERVICES,"10,584.00",14/09/2018
Delivery Units,Adults and Communities,Direct Transfer Payments to So,90106245,REDACTED - PERSONAL DATA,"2,931.20",14/09/2018
Delivery Units,Adults and Communities,Fees and Charges,90104128,REDACTED - PERSONAL DATA,661.60,06/09/2018
Delivery Units,Adults and Communities,Direct Transfer Payments to So,90106114,REDACTED - PERSONAL DATA,"3,834.44",14/09/2018
Delivery Units,Adults and Communities,Direct Transfer Payments to So,90109576,REDACTED - PERSONAL DATA,513.35,27/09/2018
Delivery Units,Adults and Communities,Direct Transfer Payments to So,90106192,REDACTED - PERSONAL DATA,"1,248.16",14/09/2018
Delivery Units,Adults and Communities,Direct Transfer Payments to So,90106772,REDACTED - PERSONAL DATA,240.00,14/09/2018
Delivery Units,Adults and Communities,Direct Transfer Payments to So,90106130,REDACTED - PERSONAL DATA,295.68,14/09/2018
Delivery Units,Adults and Communities,Direct Transfer Payments to So,90106181,REDACTED - PERSONAL DATA,"6,572.64",14/09/2018
Delivery Units,Adults and Communities,Direct Transfer Payments to So,90106122,REDACTED - PERSONAL DATA,837.68,14/09/2018
Delivery Units,Adults and Communities,Direct Transfer Payments to So,90106581,REDACTED - PERSONAL DATA,961.60,14/09/2018
Delivery Units,Adults and Communities,Direct Transfer Payments to So,90106586,REDACTED - PERSONAL DATA,985.64,14/09/2018
Delivery Units,Adults and Communities,Direct Transfer Payments to So,90106798,REDACTED - PERSONAL DATA,144.24,14/09/2018
Delivery Units,Adults and Communities,Direct Transfer Payments to So,90106551,REDACTED - PERSONAL DATA,"1,766.96",14/09/2018
Delivery Units,Adults and Communities,Direct Transfer Payments to So,90106550,REDACTED - PERSONAL DATA,700.00,14/09/2018
Delivery Units,Adults and Communities,Fees and Charges,90107471,REDACTED - PERSONAL DATA,-20.00,17/09/2018
Delivery Units,Adults and Communities,Direct Transfer Payments to So,90106556,REDACTED - PERSONAL DATA,"1,730.88",14/09/2018
Delivery Units,Adults and Communities,Direct Transfer Payments to So,90105862,REDACTED - PERSONAL DATA,"1,185.32",14/09/2018
Delivery Units,Adults and Communities,Direct Transfer Payments to So,90105841,REDACTED - PERSONAL DATA,420.72,14/09/2018
Delivery Units,Adults and Communities,Direct Transfer Payments to So,90105785,REDACTED - PERSONAL DATA,589.00,14/09/2018
Delivery Units,Adults and Communities,Direct Transfer Payments to So,90104132,REDACTED - PERSONAL DATA,321.64,06/09/2018
Delivery Units,Adults and Communities,Direct Transfer Payments to So,90106112,REDACTED - PERSONAL DATA,781.32,14/09/2018
Delivery Units,Adults and Communities,Direct Transfer Payments to So,90105992,REDACTED - PERSONAL DATA,889.48,14/09/2018
Delivery Units,Adults and Communities,Direct Transfer Payments to So,90105795,REDACTED - PERSONAL DATA,456.76,14/09/2018
Delivery Units,Adults and Communities,Direct Transfer Payments to So,90106194,REDACTED - PERSONAL DATA,899.36,14/09/2018
Delivery Units,Adults and Communities,Direct Transfer Payments to So,90105818,REDACTED - PERSONAL DATA,925.40,14/09/2018
Delivery Units,Adults and Communities,Direct Transfer Payments to So,90106611,REDACTED - PERSONAL DATA,"2,005.04",14/09/2018
Delivery Units,Adults and Communities,Direct Transfer Payments to So,90106196,REDACTED - PERSONAL DATA,913.52,14/09/2018
Delivery Units,Adults and Communities,Direct Transfer Payments to So,90106688,REDACTED - PERSONAL DATA,"1,143.16",14/09/2018
Delivery Units,Adults and Communities,Direct Transfer Payments to So,90105822,REDACTED - PERSONAL DATA,502.40,14/09/2018
Delivery Units,Adults and Communities,Direct Transfer Payments to So,90106680,REDACTED - PERSONAL DATA,801.00,14/09/2018
Delivery Units,Adults and Communities,Direct Transfer Payments to So,90105967,REDACTED - PERSONAL DATA,927.84,14/09/2018
Delivery Units,Adults and Communities,Fees and Charges,90109515,REDACTED - PERSONAL DATA,883.21,27/09/2018
Delivery Units,Adults and Communities,Direct Transfer Payments to So,90104127,REDACTED - PERSONAL DATA,"7,882.51",06/09/2018
Delivery Units,Adults and Communities,Direct Transfer Payments to So,90104131,REDACTED - PERSONAL DATA,"-7,384.20",06/09/2018
Delivery Units,Adults and Communities,Direct Transfer Payments to So,90106275,REDACTED - PERSONAL DATA,"2,933.80",14/09/2018
Delivery Units,Adults and Communities,Fees and Charges,90106288,REDACTED - PERSONAL DATA,-157.16,14/09/2018
Delivery Units,Adults and Communities,Direct Transfer Payments to So,90105803,REDACTED - PERSONAL DATA,"1,238.92",14/09/2018
Delivery Units,Adults and Communities,Direct Transfer Payments to So,90105877,REDACTED - PERSONAL DATA,"1,545.48",14/09/2018
Delivery Units,Adults and Communities,Direct Transfer Payments to So,90106685,REDACTED - PERSONAL DATA,"1,525.44",14/09/2018
Delivery Units,Adults and Communities,Fees and Charges,90107478,REDACTED - PERSONAL DATA,-191.70,17/09/2018
Delivery Units,Adults and Communities,Direct Transfer Payments to So,90106598,REDACTED - PERSONAL DATA,"1,000.00",14/09/2018
Delivery Units,Adults and Communities,Direct Transfer Payments to So,90106740,REDACTED - PERSONAL DATA,338.64,14/09/2018
Delivery Units,Adults and Communities,Direct Transfer Payments to So,90105937,REDACTED - PERSONAL DATA,"1,260.00",14/09/2018
Delivery Units,Adults and Communities,Fees and Charges,90106335,REDACTED - PERSONAL DATA,-387.20,14/09/2018
Delivery Units,Adults and Communities,Direct Transfer Payments to So,90106269,REDACTED - PERSONAL DATA,360.00,14/09/2018
Delivery Units,Adults and Communities,Direct Transfer Payments to So,90106656,REDACTED - PERSONAL DATA,770.40,14/09/2018
Delivery Units,Adults and Communities,Direct Transfer Payments to So,90106276,REDACTED - PERSONAL DATA,687.12,14/09/2018
Delivery Units,Adults and Communities,Direct Transfer Payments to So,90105958,REDACTED - PERSONAL DATA,926.68,14/09/2018
Delivery Units,Adults and Communities,Direct Transfer Payments to So,90105940,REDACTED - PERSONAL DATA,336.56,14/09/2018
Delivery Units,Adults and Communities,Direct Transfer Payments to So,90106692,REDACTED - PERSONAL DATA,975.36,14/09/2018
Delivery Units,Adults and Communities,Direct Transfer Payments to So,90105978,REDACTED - PERSONAL DATA,800.00,14/09/2018
Delivery Units,Adults and Communities,Direct Transfer Payments to So,90105846,REDACTED - PERSONAL DATA,"2,031.88",14/09/2018
Delivery Units,Adults and Communities,Direct Transfer Payments to So,90106254,REDACTED - PERSONAL DATA,"1,514.52",14/09/2018
Delivery Units,Adults and Communities,Direct Transfer Payments to So,90106717,REDACTED - PERSONAL DATA,"2,139.20",14/09/2018
Delivery Units,Adults and Communities,Direct Transfer Payments to So,90105887,REDACTED - PERSONAL DATA,"1,312.64",14/09/2018
Delivery Units,Adults and Communities,Direct Transfer Payments to So,90106710,REDACTED - PERSONAL DATA,409.08,14/09/2018
Delivery Units,Adults and Communities,Direct Transfer Payments to So,90105925,REDACTED - PERSONAL DATA,968.80,14/09/2018
Delivery Units,Adults and Communities,Fees and Charges,90106314,REDACTED - PERSONAL DATA,-82.00,14/09/2018
Delivery Units,Adults and Communities,Direct Transfer Payments to So,90106747,REDACTED - PERSONAL DATA,588.24,14/09/2018
Delivery Units,Adults and Communities,Direct Transfer Payments to So,90106732,REDACTED - PERSONAL DATA,480.80,14/09/2018
Delivery Units,Adults and Communities,Direct Transfer Payments to So,90106748,REDACTED - PERSONAL DATA,"3,444.00",14/09/2018
Delivery Units,Adults and Communities,Direct Transfer Payments to So,90106260,REDACTED - PERSONAL DATA,"1,104.00",14/09/2018
Delivery Units,Adults and Communities,Direct Transfer Payments to So,90105974,REDACTED - PERSONAL DATA,160.00,14/09/2018
Delivery Units,Adults and Communities,Direct Transfer Payments to So,90105944,REDACTED - PERSONAL DATA,451.92,14/09/2018
Delivery Units,Adults and Communities,Direct Transfer Payments to So,90105421,REDACTED - PERSONAL DATA,649.08,14/09/2018
Delivery Units,Adults and Communities,Fees and Charges,90107470,REDACTED - PERSONAL DATA,-122.00,17/09/2018
Delivery Units,Adults and Communities,Direct Transfer Payments to So,90105927,REDACTED - PERSONAL DATA,504.00,14/09/2018
Delivery Units,Adults and Communities,Direct Transfer Payments to So,90105896,REDACTED - PERSONAL DATA,"1,035.24",14/09/2018
Delivery Units,Adults and Communities,Direct Transfer Payments to So,90105854,REDACTED - PERSONAL DATA,900.00,14/09/2018
Delivery Units,Adults and Communities,Direct Transfer Payments to So,90107475,REDACTED - PERSONAL DATA,-193.39,18/09/2018
Delivery Units,Adults and Communities,Direct Transfer Payments to So,90107857,REDACTED - PERSONAL DATA,"1,414.82",18/09/2018
Delivery Units,Adults and Communities,Direct Transfer Payments to So,90106696,REDACTED - PERSONAL DATA,348.00,14/09/2018
Delivery Units,Adults and Communities,Direct Transfer Payments to So,90105855,REDACTED - PERSONAL DATA,440.00,14/09/2018
Delivery Units,Adults and Communities,Direct Transfer Payments to So,90105946,REDACTED - PERSONAL DATA,"4,093.84",14/09/2018
Delivery Units,Adults and Communities,Direct Transfer Payments to So,90105430,REDACTED - PERSONAL DATA,700.00,14/09/2018
Delivery Units,Adults and Communities,Fees and Charges,90106322,REDACTED - PERSONAL DATA,-132.24,14/09/2018
Delivery Units,Adults and Communities,Direct Transfer Payments to So,90105522,REDACTED - PERSONAL DATA,160.00,14/09/2018
Delivery Units,Adults and Communities,Direct Transfer Payments to So,90106009,REDACTED - PERSONAL DATA,"1,560.72",14/09/2018
Delivery Units,Adults and Communities,Direct Transfer Payments to So,90105434,REDACTED - PERSONAL DATA,347.20,14/09/2018
Delivery Units,Adults and Communities,Direct Transfer Payments to So,90105949,REDACTED - PERSONAL DATA,347.20,14/09/2018
Delivery Units,Adults and Communities,Direct Transfer Payments to So,90105858,REDACTED - PERSONAL DATA,775.04,14/09/2018
Delivery Units,Adults and Communities,Direct Transfer Payments to So,90106662,REDACTED - PERSONAL DATA,560.00,14/09/2018
Delivery Units,Adults and Communities,Direct Transfer Payments to So,90105424,REDACTED - PERSONAL DATA,"1,063.72",14/09/2018
Delivery Units,Adults and Communities,Direct Transfer Payments to So,90105457,REDACTED - PERSONAL DATA,"1,346.24",14/09/2018
Delivery Units,Adults and Communities,Direct Transfer Payments to So,90105931,REDACTED - PERSONAL DATA,207.60,14/09/2018
Delivery Units,Adults and Communities,Direct Transfer Payments to So,90106722,REDACTED - PERSONAL DATA,360.60,14/09/2018
Delivery Units,Adults and Communities,Direct Transfer Payments to So,90105914,REDACTED - PERSONAL DATA,775.04,14/09/2018
Delivery Units,Adults and Communities,Direct Transfer Payments to So,90105516,REDACTED - PERSONAL DATA,"3,260.00",14/09/2018
Delivery Units,Adults and Communities,Fees and Charges,90107235,REDACTED - PERSONAL DATA,0.20,17/09/2018
Delivery Units,Adults and Communities,Direct Transfer Payments to So,90108421,REDACTED - PERSONAL DATA,"1,848.00",20/09/2018
Delivery Units,Adults and Communities,Fees and Charges,90109513,REDACTED - PERSONAL DATA,"2,240.44",27/09/2018
Delivery Units,Adults and Communities,Direct Transfer Payments to So,90105981,REDACTED - PERSONAL DATA,"2,686.00",14/09/2018
Delivery Units,Adults and Communities,Direct Transfer Payments to So,90105472,REDACTED - PERSONAL DATA,218.24,14/09/2018
Delivery Units,Adults and Communities,Direct Transfer Payments to So,90105409,REDACTED - PERSONAL DATA,"2,436.00",14/09/2018
Delivery Units,Adults and Communities,Direct Transfer Payments to So,90105496,REDACTED - PERSONAL DATA,870.00,14/09/2018
Delivery Units,Adults and Communities,Direct Transfer Payments to So,90105953,REDACTED - PERSONAL DATA,825.44,14/09/2018
Delivery Units,Adults and Communities,Direct Transfer Payments to So,90106794,REDACTED - PERSONAL DATA,"1,827.00",14/09/2018
Delivery Units,Adults and Communities,Direct Transfer Payments to So,90107232,REDACTED - PERSONAL DATA,"2,215.50",17/09/2018
Delivery Units,Adults and Communities,Direct Transfer Payments to So,90105527,REDACTED - PERSONAL DATA,"3,279.20",14/09/2018
Delivery Units,Adults and Communities,Fees and Charges,90105973,REDACTED - PERSONAL DATA,-216.40,14/09/2018
Delivery Units,Adults and Communities,Direct Transfer Payments to So,90105990,REDACTED - PERSONAL DATA,392.00,14/09/2018
Delivery Units,Adults and Communities,Direct Transfer Payments to So,90105982,REDACTED - PERSONAL DATA,960.00,14/09/2018
Delivery Units,Adults and Communities,Direct Transfer Payments to So,90105444,REDACTED - PERSONAL DATA,442.88,14/09/2018
Delivery Units,Adults and Communities,Direct Transfer Payments to So,90106783,REDACTED - PERSONAL DATA,"2,066.00",14/09/2018
Delivery Units,Adults and Communities,Direct Transfer Payments to So,90108419,REDACTED - PERSONAL DATA,"2,541.29",20/09/2018
Delivery Units,Adults and Communities,Direct Transfer Payments to So,90105510,REDACTED - PERSONAL DATA,"2,092.96",14/09/2018
Delivery Units,Adults and Communities,Direct Transfer Payments to So,90106754,REDACTED - PERSONAL DATA,"1,869.00",14/09/2018
Delivery Units,Adults and Communities,Direct Transfer Payments to So,90105492,REDACTED - PERSONAL DATA,"1,092.00",14/09/2018
Delivery Units,Adults and Communities,Direct Transfer Payments to So,90105993,REDACTED - PERSONAL DATA,231.40,14/09/2018
Delivery Units,Adults and Communities,Direct Transfer Payments to So,90106023,REDACTED - PERSONAL DATA,944.40,14/09/2018
Delivery Units,Adults and Communities,Direct Transfer Payments to So,90106004,REDACTED - PERSONAL DATA,643.60,14/09/2018
Delivery Units,Adults and Communities,Direct Transfer Payments to So,90105538,REDACTED - PERSONAL DATA,"1,680.00",14/09/2018
Delivery Units,Adults and Communities,Direct Transfer Payments to So,90106777,REDACTED - PERSONAL DATA,950.60,14/09/2018
Delivery Units,Adults and Communities,Direct Transfer Payments to So,90105465,REDACTED - PERSONAL DATA,790.84,14/09/2018
Delivery Units,Adults and Communities,Direct Transfer Payments to So,90105495,REDACTED - PERSONAL DATA,280.00,14/09/2018
Delivery Units,Adults and Communities,Direct Transfer Payments to So,90105529,REDACTED - PERSONAL DATA,333.84,14/09/2018
Delivery Units,Adults and Communities,Direct Transfer Payments to So,90106765,REDACTED - PERSONAL DATA,"2,211.80",14/09/2018
Delivery Units,Adults and Communities,Direct Transfer Payments to So,90105447,REDACTED - PERSONAL DATA,772.32,14/09/2018
Delivery Units,Adults and Communities,Direct Transfer Payments to So,90106008,REDACTED - PERSONAL DATA,"2,200.00",14/09/2018
Delivery Units,Adults and Communities,Direct Transfer Payments to So,90106795,REDACTED - PERSONAL DATA,"1,222.84",14/09/2018
Delivery Units,Adults and Communities,Direct Transfer Payments to So,90106787,REDACTED - PERSONAL DATA,"2,518.48",14/09/2018
Delivery Units,Adults and Communities,Direct Transfer Payments to So,90106024,REDACTED - PERSONAL DATA,"1,351.56",14/09/2018
Delivery Units,Adults and Communities,Direct Transfer Payments to So,90105462,REDACTED - PERSONAL DATA,"1,802.08",14/09/2018
Delivery Units,Adults and Communities,Direct Transfer Payments to So,90105997,REDACTED - PERSONAL DATA,966.84,14/09/2018
Delivery Units,Adults and Communities,Direct Transfer Payments to So,90106010,REDACTED - PERSONAL DATA,321.80,14/09/2018
Delivery Units,Adults and Communities,Direct Transfer Payments to So,90106780,REDACTED - PERSONAL DATA,390.00,14/09/2018
Delivery Units,Adults and Communities,Direct Transfer Payments to So,90106026,REDACTED - PERSONAL DATA,969.00,14/09/2018
Delivery Units,Adults and Communities,Fees and Charges,90107477,REDACTED - PERSONAL DATA,-256.80,17/09/2018
Delivery Units,Adults and Communities,Direct Transfer Payments to So,90106025,REDACTED - PERSONAL DATA,"1,222.84",14/09/2018
Delivery Units,Adults and Communities,Direct Transfer Payments to So,90108420,REDACTED - PERSONAL DATA,633.24,20/09/2018
Delivery Units,Adults and Communities,Direct Transfer Payments to So,90105998,REDACTED - PERSONAL DATA,"1,438.32",14/09/2018
Delivery Units,Adults and Communities,Direct Transfer Payments to So,90106035,REDACTED - PERSONAL DATA,901.04,14/09/2018
Delivery Units,Adults and Communities,Direct Transfer Payments to So,90105984,REDACTED - PERSONAL DATA,"1,582.00",14/09/2018
Delivery Units,Adults and Communities,Direct Transfer Payments to So,90106011,REDACTED - PERSONAL DATA,136.00,14/09/2018
Delivery Units,Adults and Communities,Direct Transfer Payments to So,90105533,REDACTED - PERSONAL DATA,"1,113.44",14/09/2018
Delivery Units,Adults and Communities,Direct Transfer Payments to So,90106771,REDACTED - PERSONAL DATA,563.16,14/09/2018
Delivery Units,Adults and Communities,Direct Transfer Payments to So,90105988,REDACTED - PERSONAL DATA,"2,520.00",14/09/2018
Delivery Units,Adults and Communities,Direct Transfer Payments to So,90106033,REDACTED - PERSONAL DATA,"1,164.24",14/09/2018
Delivery Units,Adults and Communities,Direct Transfer Payments to So,90105485,REDACTED - PERSONAL DATA,514.88,14/09/2018
Delivery Units,Adults and Communities,Fees and Charges,90107233,REDACTED - PERSONAL DATA,0.30,17/09/2018
Delivery Units,Adults and Communities,Direct Transfer Payments to So,90105452,REDACTED - PERSONAL DATA,279.12,14/09/2018
Delivery Units,Adults and Communities,Direct Transfer Payments to So,90106018,REDACTED - PERSONAL DATA,"2,300.00",14/09/2018
Delivery Units,Adults and Communities,Direct Transfer Payments to So,90104129,REDACTED - PERSONAL DATA,784.00,06/09/2018
Delivery Units,Adults and Communities,Direct Transfer Payments to So,90105488,REDACTED - PERSONAL DATA,787.20,14/09/2018
Delivery Units,Adults and Communities,Direct Transfer Payments to So,90105504,REDACTED - PERSONAL DATA,589.68,14/09/2018
Delivery Units,Adults and Communities,Direct Transfer Payments to So,90105455,REDACTED - PERSONAL DATA,"1,061.96",14/09/2018
Delivery Units,Adults and Communities,Fees and Charges,90107480,REDACTED - PERSONAL DATA,115.48,17/09/2018
Delivery Units,Adults and Communities,Fees and Charges,90100717,REDACTED - PERSONAL DATA,"-1,992.12",14/09/2018
Delivery Units,Adults and Communities,Direct Transfer Payments to So,90105540,REDACTED - PERSONAL DATA,730.92,14/09/2018
Delivery Units,Adults and Communities,Direct Transfer Payments to So,90108919,REDACTED - PERSONAL DATA,0.40,25/09/2018
Delivery Units,Adults and Communities,Direct Transfer Payments to So,90107234,REDACTED - PERSONAL DATA,493.71,17/09/2018
Delivery Units,Adults and Communities,Fees and Charges,90104279,REDACTED - PERSONAL DATA,0.46,10/09/2018
Delivery Units,Adults and Communities,Fees and Charges,90107237,REDACTED - PERSONAL DATA,-699.96,17/09/2018
Delivery Units,Adults and Communities,Direct Transfer Payments to So,90107850,REDACTED - PERSONAL DATA,743.52,18/09/2018
Delivery Units,Adults and Communities,Direct Transfer Payments to So,90106858,REDACTED - PERSONAL DATA,800.00,17/09/2018
Delivery Units,Adults and Communities,Other Agencies - Third Party P,80019957,JEWISH CARE,"10,000.00",25/09/2018
Delivery Units,Adults and Communities,Other Agencies - Third Party P,90108765,NORWOOD RAVENSWOOD SCHOOLS LTD,334.00,24/09/2018
Delivery Units,Adults and Communities,Other Agencies - Third Party P,90108766,NORWOOD RAVENSWOOD SCHOOLS LTD,334.00,24/09/2018
Delivery Units,Adults and Communities,Other Agencies - Third Party P,90108767,NORWOOD RAVENSWOOD SCHOOLS LTD,334.00,24/09/2018
Delivery Units,Adults and Communities,Other Agencies - Third Party P,90108768,NORWOOD RAVENSWOOD SCHOOLS LTD,334.00,24/09/2018
Delivery Units,Adults and Communities,Other Agencies - Third Party P,90108769,NORWOOD RAVENSWOOD SCHOOLS LTD,334.00,24/09/2018
Delivery Units,Adults and Communities,Other Agencies - Third Party P,90108770,NORWOOD RAVENSWOOD SCHOOLS LTD,334.00,24/09/2018
Delivery Units,Adults and Communities,Other Agencies - Third Party P,90106951,WESTMINSTER HOMECARE LTD,480.99,17/09/2018
Delivery Units,Adults and Communities,Other Agencies - Third Party P,90106952,WESTMINSTER HOMECARE LTD,634.13,17/09/2018
Delivery Units,Adults and Communities,Other Agencies - Third Party P,90106954,WESTMINSTER HOMECARE LTD,630.46,17/09/2018
Delivery Units,Adults and Communities,Other Agencies - Third Party P,90106955,WESTMINSTER HOMECARE LTD,413.55,17/09/2018
Delivery Units,Adults and Communities,Other Agencies - Third Party P,90106956,WESTMINSTER HOMECARE LTD,160.60,17/09/2018
Delivery Units,Adults and Communities,Other Agencies - Third Party P,90106957,WESTMINSTER HOMECARE LTD,"1,305.17",17/09/2018
Delivery Units,Adults and Communities,Other Agencies - Third Party P,90106958,WESTMINSTER HOMECARE LTD,132.52,17/09/2018
Delivery Units,Adults and Communities,Other Agencies - Third Party P,90106959,WESTMINSTER HOMECARE LTD,477.92,17/09/2018
Delivery Units,Adults and Communities,Other Agencies - Third Party P,90106960,WESTMINSTER HOMECARE LTD,898.92,17/09/2018
Delivery Units,Adults and Communities,Other Agencies - Third Party P,90106961,WESTMINSTER HOMECARE LTD,447.27,17/09/2018
Delivery Units,Adults and Communities,Other Agencies - Third Party P,90106962,WESTMINSTER HOMECARE LTD,655.26,17/09/2018
Delivery Units,Adults and Communities,Other Agencies - Third Party P,90106964,WESTMINSTER HOMECARE LTD,305.27,17/09/2018
Delivery Units,Adults and Communities,Other Agencies - Third Party P,90106965,WESTMINSTER HOMECARE LTD,514.04,17/09/2018
Delivery Units,Adults and Communities,Other Agencies - Third Party P,90106966,WESTMINSTER HOMECARE LTD,127.70,17/09/2018
Delivery Units,Adults and Communities,Other Agencies - Third Party P,90106967,WESTMINSTER HOMECARE LTD,981.60,17/09/2018
Delivery Units,Adults and Communities,Other Agencies - Third Party P,90106968,WESTMINSTER HOMECARE LTD,524.44,17/09/2018
Delivery Units,Adults and Communities,Other Agencies - Third Party P,90106969,WESTMINSTER HOMECARE LTD,357.10,17/09/2018
Delivery Units,Adults and Communities,Other Agencies - Third Party P,90106970,WESTMINSTER HOMECARE LTD,373.41,17/09/2018
Delivery Units,Adults and Communities,Other Agencies - Third Party P,90106971,WESTMINSTER HOMECARE LTD,96.36,17/09/2018
Delivery Units,Adults and Communities,Other Agencies - Third Party P,90106972,WESTMINSTER HOMECARE LTD,96.36,17/09/2018
Delivery Units,Adults and Communities,Other Agencies - Third Party P,90106973,WESTMINSTER HOMECARE LTD,425.88,17/09/2018
Delivery Units,Adults and Communities,Other Agencies - Third Party P,90106974,WESTMINSTER HOMECARE LTD,48.18,17/09/2018
Delivery Units,Adults and Communities,Other Agencies - Third Party P,90106975,WESTMINSTER HOMECARE LTD,96.36,17/09/2018
Delivery Units,Adults and Communities,Other Agencies - Third Party P,90106976,WESTMINSTER HOMECARE LTD,393.63,17/09/2018
Delivery Units,Adults and Communities,Other Agencies - Third Party P,90106977,WESTMINSTER HOMECARE LTD,"1,011.92",17/09/2018
Delivery Units,Adults and Communities,Other Agencies - Third Party P,90106978,WESTMINSTER HOMECARE LTD,297.21,17/09/2018
Delivery Units,Adults and Communities,Other Agencies - Third Party P,90106979,WESTMINSTER HOMECARE LTD,"1,221.76",17/09/2018
Delivery Units,Adults and Communities,Other Agencies - Third Party P,90106980,WESTMINSTER HOMECARE LTD,436.92,17/09/2018
Delivery Units,Adults and Communities,Other Agencies - Third Party P,90106981,WESTMINSTER HOMECARE LTD,208.84,17/09/2018
Delivery Units,Adults and Communities,Other Agencies - Third Party P,90106982,WESTMINSTER HOMECARE LTD,"1,007.91",17/09/2018
Delivery Units,Adults and Communities,Other Agencies - Third Party P,90106983,WESTMINSTER HOMECARE LTD,377.43,17/09/2018
Delivery Units,Adults and Communities,Other Agencies - Third Party P,90106984,WESTMINSTER HOMECARE LTD,674.69,17/09/2018
Delivery Units,Adults and Communities,Other Agencies - Third Party P,90106985,WESTMINSTER HOMECARE LTD,64.24,17/09/2018
Delivery Units,Adults and Communities,Other Agencies - Third Party P,90106986,WESTMINSTER HOMECARE LTD,112.46,17/09/2018
Delivery Units,Adults and Communities,Other Agencies - Third Party P,90106987,WESTMINSTER HOMECARE LTD,"1,517.67",17/09/2018
Delivery Units,Adults and Communities,Other Agencies - Third Party P,90106989,WESTMINSTER HOMECARE LTD,329.36,17/09/2018
Delivery Units,Adults and Communities,Other Agencies - Third Party P,90106990,WESTMINSTER HOMECARE LTD,787.08,17/09/2018
Delivery Units,Adults and Communities,Other Agencies - Third Party P,90106991,WESTMINSTER HOMECARE LTD,919.27,17/09/2018
Delivery Units,Adults and Communities,Other Agencies - Third Party P,90106992,WESTMINSTER HOMECARE LTD,639.51,17/09/2018
Delivery Units,Adults and Communities,Other Agencies - Third Party P,90106995,WESTMINSTER HOMECARE LTD,64.24,17/09/2018
Delivery Units,Adults and Communities,Other Agencies - Third Party P,90106996,WESTMINSTER HOMECARE LTD,549.03,17/09/2018
Delivery Units,Adults and Communities,Other Agencies - Third Party P,90106998,WESTMINSTER HOMECARE LTD,690.80,17/09/2018
Delivery Units,Adults and Communities,Other Agencies - Third Party P,90106999,WESTMINSTER HOMECARE LTD,422.10,17/09/2018
Delivery Units,Adults and Communities,Other Agencies - Third Party P,90107000,WESTMINSTER HOMECARE LTD,"1,574.02",17/09/2018
Delivery Units,Adults and Communities,Other Agencies - Third Party P,90107002,WESTMINSTER HOMECARE LTD,671.57,17/09/2018
Delivery Units,Adults and Communities,Other Agencies - Third Party P,90107003,WESTMINSTER HOMECARE LTD,"1,675.32",17/09/2018
Delivery Units,Adults and Communities,Other Agencies - Third Party P,90107412,WESTMINSTER HOMECARE LTD,475.65,17/09/2018
Delivery Units,Adults and Communities,Other Agencies - Third Party P,90107413,WESTMINSTER HOMECARE LTD,672.64,17/09/2018
Delivery Units,Adults and Communities,Other Agencies - Third Party P,90107415,WESTMINSTER HOMECARE LTD,614.40,17/09/2018
Delivery Units,Adults and Communities,Other Agencies - Third Party P,90107416,WESTMINSTER HOMECARE LTD,449.68,17/09/2018
Delivery Units,Adults and Communities,Other Agencies - Third Party P,90107417,WESTMINSTER HOMECARE LTD,"1,341.29",17/09/2018
Delivery Units,Adults and Communities,Other Agencies - Third Party P,90107418,WESTMINSTER HOMECARE LTD,156.59,17/09/2018
Delivery Units,Adults and Communities,Other Agencies - Third Party P,90107419,WESTMINSTER HOMECARE LTD,397.60,17/09/2018
Delivery Units,Adults and Communities,Other Agencies - Third Party P,90107420,WESTMINSTER HOMECARE LTD,897.84,17/09/2018
Delivery Units,Adults and Communities,Other Agencies - Third Party P,90107421,WESTMINSTER HOMECARE LTD,440.30,17/09/2018
Delivery Units,Adults and Communities,Other Agencies - Third Party P,90107423,WESTMINSTER HOMECARE LTD,650.43,17/09/2018
Delivery Units,Adults and Communities,Other Agencies - Third Party P,90107424,WESTMINSTER HOMECARE LTD,297.22,17/09/2018
Delivery Units,Adults and Communities,Other Agencies - Third Party P,90107425,WESTMINSTER HOMECARE LTD,514.05,17/09/2018
Delivery Units,Adults and Communities,Other Agencies - Third Party P,90107426,WESTMINSTER HOMECARE LTD,487.48,17/09/2018
Delivery Units,Adults and Communities,Other Agencies - Third Party P,90107427,WESTMINSTER HOMECARE LTD,"1,013.94",17/09/2018
Delivery Units,Adults and Communities,Other Agencies - Third Party P,90107428,WESTMINSTER HOMECARE LTD,532.75,17/09/2018
Delivery Units,Adults and Communities,Other Agencies - Third Party P,90107429,WESTMINSTER HOMECARE LTD,398.82,17/09/2018
Delivery Units,Adults and Communities,Other Agencies - Third Party P,90107430,WESTMINSTER HOMECARE LTD,80.32,17/09/2018
Delivery Units,Adults and Communities,Other Agencies - Third Party P,90107431,WESTMINSTER HOMECARE LTD,252.95,17/09/2018
Delivery Units,Adults and Communities,Other Agencies - Third Party P,90107432,WESTMINSTER HOMECARE LTD,96.36,17/09/2018
Delivery Units,Adults and Communities,Other Agencies - Third Party P,90107433,WESTMINSTER HOMECARE LTD,64.24,17/09/2018
Delivery Units,Adults and Communities,Other Agencies - Third Party P,90107434,WESTMINSTER HOMECARE LTD,289.08,17/09/2018
Delivery Units,Adults and Communities,Other Agencies - Third Party P,90107435,WESTMINSTER HOMECARE LTD,40.15,17/09/2018
Delivery Units,Adults and Communities,Other Agencies - Third Party P,90107436,WESTMINSTER HOMECARE LTD,176.66,17/09/2018
Delivery Units,Adults and Communities,Other Agencies - Third Party P,90107437,WESTMINSTER HOMECARE LTD,863.51,17/09/2018
Delivery Units,Adults and Communities,Other Agencies - Third Party P,90107438,WESTMINSTER HOMECARE LTD,"1,011.92",17/09/2018
Delivery Units,Adults and Communities,Other Agencies - Third Party P,90107439,WESTMINSTER HOMECARE LTD,277.14,17/09/2018
Delivery Units,Adults and Communities,Other Agencies - Third Party P,90107440,WESTMINSTER HOMECARE LTD,395.65,17/09/2018
Delivery Units,Adults and Communities,Other Agencies - Third Party P,90107441,WESTMINSTER HOMECARE LTD,401.56,17/09/2018
Delivery Units,Adults and Communities,Other Agencies - Third Party P,90107442,WESTMINSTER HOMECARE LTD,220.90,17/09/2018
Delivery Units,Adults and Communities,Other Agencies - Third Party P,90107443,WESTMINSTER HOMECARE LTD,"1,011.92",17/09/2018
Delivery Units,Adults and Communities,Other Agencies - Third Party P,90107444,WESTMINSTER HOMECARE LTD,425.60,17/09/2018
Delivery Units,Adults and Communities,Other Agencies - Third Party P,90107445,WESTMINSTER HOMECARE LTD,763.02,17/09/2018
Delivery Units,Adults and Communities,Other Agencies - Third Party P,90107446,WESTMINSTER HOMECARE LTD,64.24,17/09/2018
Delivery Units,Adults and Communities,Other Agencies - Third Party P,90107447,WESTMINSTER HOMECARE LTD,313.30,17/09/2018
Delivery Units,Adults and Communities,Other Agencies - Third Party P,90107448,WESTMINSTER HOMECARE LTD,"1,533.73",17/09/2018
Delivery Units,Adults and Communities,Other Agencies - Third Party P,90107449,WESTMINSTER HOMECARE LTD,321.32,17/09/2018
Delivery Units,Adults and Communities,Other Agencies - Third Party P,90107450,WESTMINSTER HOMECARE LTD,771.03,17/09/2018
Delivery Units,Adults and Communities,Other Agencies - Third Party P,90107451,WESTMINSTER HOMECARE LTD,40.15,17/09/2018
Delivery Units,Adults and Communities,Other Agencies - Third Party P,90107452,WESTMINSTER HOMECARE LTD,63.44,17/09/2018
Delivery Units,Adults and Communities,Other Agencies - Third Party P,90107453,WESTMINSTER HOMECARE LTD,490.03,17/09/2018
Delivery Units,Adults and Communities,Other Agencies - Third Party P,90107454,WESTMINSTER HOMECARE LTD,635.48,17/09/2018
Delivery Units,Adults and Communities,Other Agencies - Third Party P,90107457,WESTMINSTER HOMECARE LTD,64.24,17/09/2018
Delivery Units,Adults and Communities,Other Agencies - Third Party P,90107458,WESTMINSTER HOMECARE LTD,208.78,17/09/2018
Delivery Units,Adults and Communities,Other Agencies - Third Party P,90107459,WESTMINSTER HOMECARE LTD,345.05,17/09/2018
Delivery Units,Adults and Communities,Other Agencies - Third Party P,90107461,WESTMINSTER HOMECARE LTD,686.69,17/09/2018
Delivery Units,Adults and Communities,Other Agencies - Third Party P,90107462,WESTMINSTER HOMECARE LTD,392.42,17/09/2018
Delivery Units,Adults and Communities,Other Agencies - Third Party P,90107463,WESTMINSTER HOMECARE LTD,"1,457.57",17/09/2018
Delivery Units,Adults and Communities,Other Agencies - Third Party P,90103517,ENARA COMMUNITY CARE,122.64,03/09/2018
Delivery Units,Adults and Communities,Other Agencies - Third Party P,90103518,ENARA COMMUNITY CARE,26.28,03/09/2018
Delivery Units,Adults and Communities,Other Agencies - Third Party P,90103519,ENARA COMMUNITY CARE,70.08,03/09/2018
Delivery Units,Adults and Communities,Other Agencies - Third Party P,90103520,ENARA COMMUNITY CARE,179.58,03/09/2018
Delivery Units,Adults and Communities,Other Agencies - Third Party P,90103521,ENARA COMMUNITY CARE,96.36,03/09/2018
Delivery Units,Adults and Communities,Other Agencies - Third Party P,90103522,ENARA COMMUNITY CARE,696.42,03/09/2018
Delivery Units,Adults and Communities,Other Agencies - Third Party P,90103523,ENARA COMMUNITY CARE,140.16,03/09/2018
Delivery Units,Adults and Communities,Other Agencies - Third Party P,90103524,ENARA COMMUNITY CARE,109.50,03/09/2018
Delivery Units,Adults and Communities,Other Agencies - Third Party P,90103525,ENARA COMMUNITY CARE,293.46,03/09/2018
Delivery Units,Adults and Communities,Other Agencies - Third Party P,90103526,ENARA COMMUNITY CARE,127.02,03/09/2018
Delivery Units,Adults and Communities,Other Agencies - Third Party P,90103528,ENARA COMMUNITY CARE,17.52,03/09/2018
Delivery Units,Adults and Communities,Other Agencies - Third Party P,90103529,ENARA COMMUNITY CARE,135.78,03/09/2018
Delivery Units,Adults and Communities,Other Agencies - Third Party P,90103530,ENARA COMMUNITY CARE,179.58,03/09/2018
Delivery Units,Adults and Communities,Other Agencies - Third Party P,90103531,ENARA COMMUNITY CARE,122.64,03/09/2018
Delivery Units,Adults and Communities,Other Agencies - Third Party P,90103532,ENARA COMMUNITY CARE,144.54,03/09/2018
Delivery Units,Adults and Communities,Other Agencies - Third Party P,90103534,ENARA COMMUNITY CARE,91.98,03/09/2018
Delivery Units,Adults and Communities,Other Agencies - Third Party P,90103535,ENARA COMMUNITY CARE,109.50,03/09/2018
Delivery Units,Adults and Communities,Other Agencies - Third Party P,90103537,ENARA COMMUNITY CARE,61.32,03/09/2018
Delivery Units,Adults and Communities,Other Agencies - Third Party P,90103541,ENARA COMMUNITY CARE,122.64,03/09/2018
Delivery Units,Adults and Communities,Other Agencies - Third Party P,90103543,ENARA COMMUNITY CARE,214.62,03/09/2018
Delivery Units,Adults and Communities,Other Agencies - Third Party P,90103546,ENARA COMMUNITY CARE,407.34,03/09/2018
Delivery Units,Adults and Communities,Other Agencies - Third Party P,90103547,ENARA COMMUNITY CARE,52.56,03/09/2018
Delivery Units,Adults and Communities,Other Agencies - Third Party P,90103548,ENARA COMMUNITY CARE,249.66,03/09/2018
Delivery Units,Adults and Communities,Other Agencies - Third Party P,90103549,ENARA COMMUNITY CARE,179.58,03/09/2018
Delivery Units,Adults and Communities,Other Agencies - Third Party P,90103552,ENARA COMMUNITY CARE,74.46,03/09/2018
Delivery Units,Adults and Communities,Other Agencies - Third Party P,90103553,ENARA COMMUNITY CARE,61.32,03/09/2018
Delivery Units,Adults and Communities,Other Agencies - Third Party P,90103555,ENARA COMMUNITY CARE,65.70,03/09/2018
Delivery Units,Adults and Communities,Other Agencies - Third Party P,90103556,ENARA COMMUNITY CARE,324.12,03/09/2018
Delivery Units,Adults and Communities,Other Agencies - Third Party P,90103557,ENARA COMMUNITY CARE,245.28,03/09/2018
Delivery Units,Adults and Communities,Other Agencies - Third Party P,90103559,ENARA COMMUNITY CARE,271.56,03/09/2018
Delivery Units,Adults and Communities,Other Agencies - Third Party P,90103560,ENARA COMMUNITY CARE,91.98,03/09/2018
Delivery Units,Adults and Communities,Other Agencies - Third Party P,90103561,ENARA COMMUNITY CARE,240.90,03/09/2018
Delivery Units,Adults and Communities,Other Agencies - Third Party P,90103562,ENARA COMMUNITY CARE,122.64,03/09/2018
Delivery Units,Adults and Communities,Other Agencies - Third Party P,90103563,ENARA COMMUNITY CARE,223.38,03/09/2018
Delivery Units,Adults and Communities,Other Agencies - Third Party P,90103565,ENARA COMMUNITY CARE,122.64,03/09/2018
Delivery Units,Adults and Communities,Other Agencies - Third Party P,90103567,ENARA COMMUNITY CARE,17.52,03/09/2018
Delivery Units,Adults and Communities,Other Agencies - Third Party P,90103569,ENARA COMMUNITY CARE,26.28,03/09/2018
Delivery Units,Adults and Communities,Other Agencies - Third Party P,90103570,ENARA COMMUNITY CARE,52.56,03/09/2018
Delivery Units,Adults and Communities,Other Agencies - Third Party P,90103572,ENARA COMMUNITY CARE,96.36,03/09/2018
Delivery Units,Adults and Communities,Other Agencies - Third Party P,90103573,ENARA COMMUNITY CARE,52.56,03/09/2018
Delivery Units,Adults and Communities,Other Agencies - Third Party P,90103574,ENARA COMMUNITY CARE,52.56,03/09/2018
Delivery Units,Adults and Communities,Other Agencies - Third Party P,90103575,ENARA COMMUNITY CARE,766.50,03/09/2018
Delivery Units,Adults and Communities,Other Agencies - Third Party P,90103576,ENARA COMMUNITY CARE,52.56,03/09/2018
Delivery Units,Adults and Communities,Other Agencies - Third Party P,90103577,ENARA COMMUNITY CARE,420.48,03/09/2018
Delivery Units,Adults and Communities,Other Agencies - Third Party P,90103578,ENARA COMMUNITY CARE,179.58,03/09/2018
Delivery Units,Adults and Communities,Other Agencies - Third Party P,90103579,ENARA COMMUNITY CARE,122.64,03/09/2018
Delivery Units,Adults and Communities,Other Agencies - Third Party P,90103580,ENARA COMMUNITY CARE,87.60,03/09/2018
Delivery Units,Adults and Communities,Other Agencies - Third Party P,90103581,ENARA COMMUNITY CARE,48.18,03/09/2018
Delivery Units,Adults and Communities,Other Agencies - Third Party P,90103582,ENARA COMMUNITY CARE,122.64,03/09/2018
Delivery Units,Adults and Communities,Other Agencies - Third Party P,90103583,ENARA COMMUNITY CARE,52.56,03/09/2018
Delivery Units,Adults and Communities,Other Agencies - Third Party P,90103585,ENARA COMMUNITY CARE,183.96,03/09/2018
Delivery Units,Adults and Communities,Other Agencies - Third Party P,90103586,ENARA COMMUNITY CARE,39.42,03/09/2018
Delivery Units,Adults and Communities,Other Agencies - Third Party P,90103587,ENARA COMMUNITY CARE,26.28,03/09/2018
Delivery Units,Adults and Communities,Other Agencies - Third Party P,90103588,ENARA COMMUNITY CARE,219.00,03/09/2018
Delivery Units,Adults and Communities,Other Agencies - Third Party P,90103916,ENARA COMMUNITY CARE,122.64,04/09/2018
Delivery Units,Adults and Communities,Other Agencies - Third Party P,90103917,ENARA COMMUNITY CARE,109.50,04/09/2018
Delivery Units,Adults and Communities,Other Agencies - Third Party P,90103918,ENARA COMMUNITY CARE,144.54,04/09/2018
Delivery Units,Adults and Communities,Other Agencies - Third Party P,90103919,ENARA COMMUNITY CARE,170.82,04/09/2018
Delivery Units,Adults and Communities,Other Agencies - Third Party P,90103920,ENARA COMMUNITY CARE,262.80,04/09/2018
Delivery Units,Adults and Communities,Other Agencies - Third Party P,90103921,ENARA COMMUNITY CARE,214.62,04/09/2018
Delivery Units,Adults and Communities,Other Agencies - Third Party P,90103922,ENARA COMMUNITY CARE,183.96,04/09/2018
Delivery Units,Adults and Communities,Other Agencies - Third Party P,90103923,ENARA COMMUNITY CARE,245.28,04/09/2018
Delivery Units,Adults and Communities,Other Agencies - Third Party P,90103924,ENARA COMMUNITY CARE,122.64,04/09/2018
Delivery Units,Adults and Communities,Other Agencies - Third Party P,90103925,ENARA COMMUNITY CARE,245.28,04/09/2018
Delivery Units,Adults and Communities,Other Agencies - Third Party P,90103926,ENARA COMMUNITY CARE,289.08,04/09/2018
Delivery Units,Adults and Communities,Other Agencies - Third Party P,90103927,ENARA COMMUNITY CARE,170.82,04/09/2018
Delivery Units,Adults and Communities,Other Agencies - Third Party P,90103928,ENARA COMMUNITY CARE,183.96,04/09/2018
Delivery Units,Adults and Communities,Other Agencies - Third Party P,90103929,ENARA COMMUNITY CARE,275.94,04/09/2018
Delivery Units,Adults and Communities,Other Agencies - Third Party P,90103931,ENARA COMMUNITY CARE,227.76,04/09/2018
Delivery Units,Adults and Communities,Other Agencies - Third Party P,90103932,ENARA COMMUNITY CARE,275.94,04/09/2018
Delivery Units,Adults and Communities,Other Agencies - Third Party P,90103935,ENARA COMMUNITY CARE,91.98,04/09/2018
Delivery Units,Adults and Communities,Other Agencies - Third Party P,90103936,ENARA COMMUNITY CARE,582.54,04/09/2018
Delivery Units,Adults and Communities,Other Agencies - Third Party P,90103937,ENARA COMMUNITY CARE,122.64,04/09/2018
Delivery Units,Adults and Communities,Other Agencies - Third Party P,90103938,ENARA COMMUNITY CARE,275.94,04/09/2018
Delivery Units,Adults and Communities,Other Agencies - Third Party P,90103939,ENARA COMMUNITY CARE,91.98,04/09/2018
Delivery Units,Adults and Communities,Other Agencies - Third Party P,90103940,ENARA COMMUNITY CARE,306.60,04/09/2018
Delivery Units,Adults and Communities,Other Agencies - Third Party P,90103941,ENARA COMMUNITY CARE,280.32,04/09/2018
Delivery Units,Adults and Communities,Other Agencies - Third Party P,90103943,ENARA COMMUNITY CARE,332.88,04/09/2018
Delivery Units,Adults and Communities,Other Agencies - Third Party P,90103944,ENARA COMMUNITY CARE,214.62,04/09/2018
Delivery Units,Adults and Communities,Other Agencies - Third Party P,90103946,ENARA COMMUNITY CARE,275.94,04/09/2018
Delivery Units,Adults and Communities,Other Agencies - Third Party P,90103947,ENARA COMMUNITY CARE,157.68,04/09/2018
Delivery Units,Adults and Communities,Other Agencies - Third Party P,90103950,ENARA COMMUNITY CARE,275.94,04/09/2018
Delivery Units,Adults and Communities,Other Agencies - Third Party P,90103951,ENARA COMMUNITY CARE,122.64,04/09/2018
Delivery Units,Adults and Communities,Other Agencies - Third Party P,90103953,ENARA COMMUNITY CARE,61.32,04/09/2018
Delivery Units,Adults and Communities,Other Agencies - Third Party P,90103955,ENARA COMMUNITY CARE,293.46,04/09/2018
Delivery Units,Adults and Communities,Other Agencies - Third Party P,90103956,ENARA COMMUNITY CARE,398.58,04/09/2018
Delivery Units,Adults and Communities,Other Agencies - Third Party P,90103957,ENARA COMMUNITY CARE,183.96,04/09/2018
Delivery Units,Adults and Communities,Other Agencies - Third Party P,90103959,ENARA COMMUNITY CARE,61.32,04/09/2018
Delivery Units,Adults and Communities,Other Agencies - Third Party P,90103960,ENARA COMMUNITY CARE,153.30,04/09/2018
Delivery Units,Adults and Communities,Other Agencies - Third Party P,90103961,ENARA COMMUNITY CARE,306.60,04/09/2018
Delivery Units,Adults and Communities,Other Agencies - Third Party P,90103962,ENARA COMMUNITY CARE,275.94,04/09/2018
Delivery Units,Adults and Communities,Other Agencies - Third Party P,90103963,ENARA COMMUNITY CARE,306.60,04/09/2018
Delivery Units,Adults and Communities,Other Agencies - Third Party P,90103964,ENARA COMMUNITY CARE,153.30,04/09/2018
Delivery Units,Adults and Communities,Other Agencies - Third Party P,90103965,ENARA COMMUNITY CARE,26.28,04/09/2018
Delivery Units,Adults and Communities,Other Agencies - Third Party P,90103966,ENARA COMMUNITY CARE,153.30,04/09/2018
Delivery Units,Adults and Communities,Other Agencies - Third Party P,90103967,ENARA COMMUNITY CARE,91.98,04/09/2018
Delivery Units,Adults and Communities,Other Agencies - Third Party P,90103970,ENARA COMMUNITY CARE,170.82,04/09/2018
Delivery Units,Adults and Communities,Other Agencies - Third Party P,90103972,ENARA COMMUNITY CARE,254.04,04/09/2018
Delivery Units,Adults and Communities,Other Agencies - Third Party P,90103973,ENARA COMMUNITY CARE,275.94,04/09/2018
Delivery Units,Adults and Communities,Other Agencies - Third Party P,90103974,ENARA COMMUNITY CARE,310.98,04/09/2018
Delivery Units,Adults and Communities,Other Agencies - Third Party P,90103975,ENARA COMMUNITY CARE,52.56,04/09/2018
Delivery Units,Adults and Communities,Other Agencies - Third Party P,90107548,ENARA COMMUNITY CARE,144.54,17/09/2018
Delivery Units,Adults and Communities,Other Agencies - Third Party P,90107549,ENARA COMMUNITY CARE,122.64,17/09/2018
Delivery Units,Adults and Communities,Other Agencies - Third Party P,90107550,ENARA COMMUNITY CARE,131.40,17/09/2018
Delivery Units,Adults and Communities,Other Agencies - Third Party P,90107551,ENARA COMMUNITY CARE,245.28,17/09/2018
Delivery Units,Adults and Communities,Other Agencies - Third Party P,90107552,ENARA COMMUNITY CARE,245.28,17/09/2018
Delivery Units,Adults and Communities,Other Agencies - Third Party P,90107553,ENARA COMMUNITY CARE,96.36,17/09/2018
Delivery Units,Adults and Communities,Other Agencies - Third Party P,90107554,ENARA COMMUNITY CARE,131.40,17/09/2018
Delivery Units,Adults and Communities,Other Agencies - Third Party P,90107555,ENARA COMMUNITY CARE,188.34,17/09/2018
Delivery Units,Adults and Communities,Other Agencies - Third Party P,90107556,ENARA COMMUNITY CARE,315.36,17/09/2018
Delivery Units,Adults and Communities,Other Agencies - Third Party P,90107557,ENARA COMMUNITY CARE,643.86,17/09/2018
Delivery Units,Adults and Communities,Other Agencies - Third Party P,90107558,ENARA COMMUNITY CARE,183.96,17/09/2018
Delivery Units,Adults and Communities,Other Agencies - Third Party P,90107561,ENARA COMMUNITY CARE,91.98,17/09/2018
Delivery Units,Adults and Communities,Other Agencies - Third Party P,90107562,ENARA COMMUNITY CARE,770.88,17/09/2018
Delivery Units,Adults and Communities,Other Agencies - Third Party P,90107563,ENARA COMMUNITY CARE,113.88,17/09/2018
Delivery Units,Adults and Communities,Other Agencies - Third Party P,90107565,ENARA COMMUNITY CARE,17.52,17/09/2018
Delivery Units,Adults and Communities,Other Agencies - Third Party P,90107566,ENARA COMMUNITY CARE,140.16,17/09/2018
Delivery Units,Adults and Communities,Other Agencies - Third Party P,90107567,ENARA COMMUNITY CARE,275.94,17/09/2018
Delivery Units,Adults and Communities,Other Agencies - Third Party P,90107568,ENARA COMMUNITY CARE,122.64,17/09/2018
Delivery Units,Adults and Communities,Other Agencies - Third Party P,90107569,ENARA COMMUNITY CARE,153.30,17/09/2018
Delivery Units,Adults and Communities,Other Agencies - Third Party P,90107571,ENARA COMMUNITY CARE,118.26,17/09/2018
Delivery Units,Adults and Communities,Other Agencies - Third Party P,90107572,ENARA COMMUNITY CARE,118.26,17/09/2018
Delivery Units,Adults and Communities,Other Agencies - Third Party P,90107574,ENARA COMMUNITY CARE,262.80,17/09/2018
Delivery Units,Adults and Communities,Other Agencies - Third Party P,90107575,ENARA COMMUNITY CARE,52.56,17/09/2018
Delivery Units,Adults and Communities,Other Agencies - Third Party P,90107581,ENARA COMMUNITY CARE,214.62,17/09/2018
Delivery Units,Adults and Communities,Other Agencies - Third Party P,90107582,ENARA COMMUNITY CARE,74.46,17/09/2018
Delivery Units,Adults and Communities,Other Agencies - Third Party P,90107586,ENARA COMMUNITY CARE,376.68,17/09/2018
Delivery Units,Adults and Communities,Other Agencies - Third Party P,90107587,ENARA COMMUNITY CARE,52.56,17/09/2018
Delivery Units,Adults and Communities,Other Agencies - Third Party P,90107588,ENARA COMMUNITY CARE,210.24,17/09/2018
Delivery Units,Adults and Communities,Other Agencies - Third Party P,90107589,ENARA COMMUNITY CARE,122.64,17/09/2018
Delivery Units,Adults and Communities,Other Agencies - Third Party P,90107591,ENARA COMMUNITY CARE,78.84,17/09/2018
Delivery Units,Adults and Communities,Other Agencies - Third Party P,90107592,ENARA COMMUNITY CARE,65.70,17/09/2018
Delivery Units,Adults and Communities,Other Agencies - Third Party P,90107593,ENARA COMMUNITY CARE,61.32,17/09/2018
Delivery Units,Adults and Communities,Other Agencies - Third Party P,90107595,ENARA COMMUNITY CARE,17.52,17/09/2018
Delivery Units,Adults and Communities,Other Agencies - Third Party P,90107596,ENARA COMMUNITY CARE,65.70,17/09/2018
Delivery Units,Adults and Communities,Other Agencies - Third Party P,90107597,ENARA COMMUNITY CARE,324.12,17/09/2018
Delivery Units,Adults and Communities,Other Agencies - Third Party P,90107598,ENARA COMMUNITY CARE,245.28,17/09/2018
Delivery Units,Adults and Communities,Other Agencies - Third Party P,90107600,ENARA COMMUNITY CARE,52.56,17/09/2018
Delivery Units,Adults and Communities,Other Agencies - Third Party P,90107601,ENARA COMMUNITY CARE,258.42,17/09/2018
Delivery Units,Adults and Communities,Other Agencies - Third Party P,90107602,ENARA COMMUNITY CARE,183.96,17/09/2018
Delivery Units,Adults and Communities,Other Agencies - Third Party P,90107604,ENARA COMMUNITY CARE,61.32,17/09/2018
Delivery Units,Adults and Communities,Other Agencies - Third Party P,90107605,ENARA COMMUNITY CARE,232.14,17/09/2018
Delivery Units,Adults and Communities,Other Agencies - Third Party P,90107606,ENARA COMMUNITY CARE,122.64,17/09/2018
